Ref No,Fund Type,Dept,Cost Centre Description    ,Description    ,Creditor Name    ,GL Code Net Amount,Payment date        
2,Revenue,CCHD,Southmead Hospital Purchasing,Nursing Homes,.Manor Community Care Home,4694.47, 06-Sep-2011
3,Revenue,CCHD,Supporting People Programme,Grants to Voluntary Bodies,1625 Independent People,3658.32, 12-Sep-2011
4,Revenue,CCHD,Supporting People Programme,Grants to Voluntary Bodies,1625 Independent People,14490.12, 12-Sep-2011
5,Revenue,CCHD,Supported Living (S28a),Private & Voluntary Home Care,3 Trees Community Support Ltd,6085.56, 08-Sep-2011
6,Revenue,CCHD,Supported Living - KD,Private & Voluntary Home Care,3 Trees Community Support Ltd,5627, 12-Sep-2011
7,Revenue,CCHD,Home Care Purch North,Other Small Contracts,3 Trees Community Support Ltd,500.64, 19-Sep-2011
8,Revenue,CCHD,Purchase of Non-Res Care - KD,Private & Voluntary Day Care,3 Trees Community Support Ltd,1381.77, 19-Sep-2011
9,Revenue,CCHD,Purchase of Non-Res Care - PS,Private & Voluntary Day Care,3 Trees Community Support Ltd,526.34, 14-Sep-2011
10,Revenue,CCHD,Supported Living - KH,Private & Voluntary Home Care,3 Trees Community Support Ltd,886.46, 12-Sep-2011
11,Revenue,CCHD,Supported Living - KH,Private & Voluntary Home Care,3 Trees Community Support Ltd,7833.7, 12-Sep-2011
12,Revenue,CCHD,Purchase of Non-Res Care - KD,Private & Voluntary Day Care,3 Trees Community Support Ltd,1673.12, 12-Sep-2011
13,Revenue,CCHD,Purchase of Non-Res Care - KD,Private & Voluntary Day Care,3 Trees Community Support Ltd,5667.94, 22-Sep-2011
14,Revenue,CCHD,Supported Living - KD,Private & Voluntary Home Care,3 Trees Community Support Ltd,2234.58, 27-Sep-2011
15,Revenue,CCHD,Purchase of Non-Res Care - KD,Private & Voluntary Day Care,3 Trees Community Support Ltd,1661.4, 19-Sep-2011
16,Revenue,CCHD,Purchase of Non-Res Care - KH,Private & Voluntary Day Care,3 Trees Community Support Ltd,3082.96, 19-Sep-2011
17,Revenue,CCHD,Elderly Purchasing - South,Nursing Homes,Aabletone Nursing Home,1177.52, 06-Sep-2011
18,Revenue,CCHD,Under 65s PWLD - KD,Residential Homes,Abbeymead Lodge,6770.72, 06-Sep-2011
19,Revenue,CCHD,Elderly Purchasing - South,Residential Homes,Ablecare Homes,903.4, 06-Sep-2011
20,Revenue,CCHD,Southmead Hospital Purchasing,Residential Homes,Ablecare Homes,1418.08, 06-Sep-2011
21,Revenue,CCHD,Elderly Purchasing - North,Residential Homes,Ablecare Homes,782.5, 06-Sep-2011
22,Revenue,CCHD,Elderly Mental Health,Residential Homes,Ablecare Homes,1389, 06-Sep-2011
23,Revenue,CCHD,Elderly Purchasing - North,Residential Homes,Ablecare Homes,871.04, 06-Sep-2011
24,Revenue,CCHD,Frenchay Hospital Purchasing,Residential Homes,Ablecare Homes,1283.64, 06-Sep-2011
25,Revenue,CCHD,Elderly Purchasing - North,Residential Homes,Ablecare Homes,778.32, 06-Sep-2011
26,Revenue,CCHD,Elderly Purchasing - South,Residential Homes,Ablecare Homes,1572.44, 06-Sep-2011
27,Revenue,CCHD,Elderly Purchasing - North,Residential Homes,Ablecare Homes,1226.72, 06-Sep-2011
28,Revenue,CCHD,Elderly Purchasing - South,Residential Homes,Ablecare Homes,5236.02, 06-Sep-2011
29,Revenue,CCHD,Elderly Purchasing - South,Residential Homes,Ablecare Homes,1102.32, 06-Sep-2011
30,Revenue,CCHD,Frenchay Hospital Purchasing,Residential Homes,Ablecare Homes,1232.16, 06-Sep-2011
31,Revenue,CCHD,Southmead Hospital Purchasing,Residential Homes,Ablecare Homes,1229, 06-Sep-2011
32,Revenue,CCHD,Elderly Mental Health,Residential Homes,Ablecare Homes,1267.32, 06-Sep-2011
33,Revenue,CCHD,Elderly Mental Health,Residential Homes,Ablecare Homes,1180.8, 06-Sep-2011
34,Revenue,CCHD,Elderly Purchasing - South,Residential Homes,Ablecare Homes,1263.6, 06-Sep-2011
35,Revenue,CCHD,Elderly Purchasing - South,Residential Homes,Ablecare Homes,1229, 06-Sep-2011
36,Revenue,CCHD,Elderly Purchasing - South,Residential Homes,Ablecare Homes,921.75, 06-Sep-2011
37,Revenue,CCHD,P&SI - Commissioned Services,Grants to Voluntary Bodies,Action for Blind People,18750, 30-Sep-2011
38,Revenue,CCHD,Day Care - North,Private & Voluntary Day Care,Action on Hearing Loss,944.88, 12-Sep-2011
39,Revenue,CCHD,Day Care - North,Private & Voluntary Day Care,Age UK South Gloucestershire,1619.2, 14-Sep-2011
40,Revenue,CCHD,Day Care - North,Private & Voluntary Day Care,Age UK South Gloucestershire,577.2, 12-Sep-2011
41,Revenue,CCHD,Day Care - South,Private & Voluntary Day Care,Age UK South Gloucestershire,1865.28, 13-Sep-2011
42,Revenue,CCHD,Home Care Purch North,Other Small Contracts,Agincare UK Limited,799.96, 05-Sep-2011
43,Revenue,CCHD,Home Care Purch North,Other Small Contracts,Agincare UK Limited,799.96, 05-Sep-2011
44,Revenue,CCHD,Contracts & Commissioning Team,Other Small Contracts,Agincare UK Limited,4500, 02-Sep-2011
45,Revenue,CCHD,Contracts & Commissioning Team,Other Small Contracts,Agincare UK Limited,4500, 09-Sep-2011
46,Revenue,CCHD,Contracts & Commissioning Team,Other Small Contracts,Agincare UK Limited,4500, 16-Sep-2011
47,Revenue,CCHD,Contracts & Commissioning Team,Other Small Contracts,Agincare UK Limited,4500, 23-Sep-2011
48,Revenue,CCHD,Contracts & Commissioning Team,Other Small Contracts,Agincare UK Limited,4500, 30-Sep-2011
49,Revenue,CCHD,S117 Placements PCT,Residential Homes,Alexandra House,6697.76, 06-Sep-2011
50,Revenue,CCHD,Southmead Hospital Team,Agency Staff (Operational)/PCT Pay,Allied Health Professionals Ltd,1168, 22-Sep-2011
51,Revenue,CCHD,Southmead Hospital Team,Agency Staff (Operational)/PCT Pay,Allied Health Professionals Ltd,1184, 22-Sep-2011
52,Revenue,CCHD,Contracts & Commissioning Team,Other Small Contracts,Allied Healthcare Group,5000, 02-Sep-2011
53,Revenue,CCHD,Contracts & Commissioning Team,Other Small Contracts,Allied Healthcare Group,5000, 09-Sep-2011
54,Revenue,CCHD,Contracts & Commissioning Team,Other Small Contracts,Allied Healthcare Group,5000, 16-Sep-2011
55,Revenue,CCHD,Contracts & Commissioning Team,Other Small Contracts,Allied Healthcare Group,5000, 23-Sep-2011
56,Revenue,CCHD,Contracts & Commissioning Team,Other Small Contracts,Allied Healthcare Group,5000, 30-Sep-2011
57,Revenue,CCHD,Elderly MH non-res purchasing,Private & Voluntary Day Care,Alzheimers Society,538.24, 15-Sep-2011
58,Revenue,CCHD,Elderly MH non-res purchasing,Private & Voluntary Day Care,Alzheimers Society,874.64, 15-Sep-2011
59,Revenue,CCHD,Elderly MH non-res purchasing,Private & Voluntary Day Care,Alzheimers Society,874.64, 15-Sep-2011
60,Revenue,CCHD,Elderly MH non-res purchasing,Private & Voluntary Day Care,Alzheimers Society,807.36, 15-Sep-2011
61,Revenue,CCHD,Elderly MH non-res purchasing,Private & Voluntary Day Care,Alzheimers Society,605.52, 15-Sep-2011
62,Revenue,CCHD,Section 117 Placements,Private & Voluntary Day Care,Alzheimers Society,605.52, 15-Sep-2011
63,Revenue,CCHD,Frenchay Hospital Purchasing,Residential Homes,Anbridge Care Home,832, 06-Sep-2011
64,Revenue,CCHD,Under 65s PWLD - KD,Residential Homes,Ark Care Homes Ltd,10342.92, 06-Sep-2011
65,Revenue,CCHD,Bed and Breakfast,Bed & Breakfast,Ashley Guest House Ltd,1190, 02-Sep-2011
66,Revenue,CCHD,Bed and Breakfast,Bed & Breakfast,Ashley Guest House Ltd,1286, 02-Sep-2011
67,Revenue,CCHD,Bed and Breakfast,Bed & Breakfast,Ashley Guest House Ltd,792, 09-Sep-2011
68,Revenue,CCHD,Bed and Breakfast,Bed & Breakfast,Ashley Guest House Ltd,768, 16-Sep-2011
69,Revenue,CCHD,S28A - Over 65,Residential Homes,Aspects &  Milestones Trust,18183.38, 06-Sep-2011
70,Revenue,CCHD,S28A - Over 65,Residential Homes,Aspects &  Milestones Trust,3828.08, 06-Sep-2011
71,Revenue,CCHD,S28A - Over 65,Residential Homes,Aspects &  Milestones Trust,1373.53, 06-Sep-2011
72,Revenue,CCHD,Elderly Purchasing - South,Residential Homes,Aspects &  Milestones Trust,1379, 06-Sep-2011
73,Revenue,CCHD,Elderly Mental Health,Residential Homes,Aspects &  Milestones Trust,1229, 06-Sep-2011
74,Revenue,CCHD,S28A - Over 65,Residential Homes,Aspects &  Milestones Trust,2848.62, 06-Sep-2011
75,Revenue,CCHD,Section 117 Placements,Residential Homes,Aspects &  Milestones Trust,18861.43, 06-Sep-2011
76,Revenue,CCHD,Elderly Mental Health,Nursing Homes,Aspects &  Milestones Trust,797.08, 06-Sep-2011
77,Revenue,CCHD,Section 117 Placements,Nursing Homes,Aspects &  Milestones Trust,1911.96, 06-Sep-2011
78,Revenue,CCHD,Under 65s PWLD - PS,Residential Homes,Aspects &  Milestones Trust,5601.08, 06-Sep-2011
79,Revenue,CCHD,Under 65s PWLD - KD,Nursing Homes,Aspects &  Milestones Trust,2703.44, 06-Sep-2011
80,Revenue,CCHD,Section 117 Placements,Nursing Homes,Aspects &  Milestones Trust,1912, 06-Sep-2011
81,Revenue,CCHD,Swift Dump Code,Residential Homes,Aspects &  Milestones Trust,4942, 06-Sep-2011
82,Revenue,CCHD,Elderly Mental Health,Nursing Homes,Aspects &  Milestones Trust,1453, 06-Sep-2011
83,Revenue,CCHD,Elderly PWLD - PS,Residential Homes,Aspects &  Milestones Trust,3304.92, 06-Sep-2011
84,Revenue,CCHD,Elderly PWLD - PS,Residential Homes,Aspects &  Milestones Trust,20404.67, 06-Sep-2011
85,Revenue,CCHD,Elderly PWLD - PS,Residential Homes,Aspects &  Milestones Trust,4295.72, 06-Sep-2011
86,Revenue,CCHD,Elderly PWLD - PS,Residential Homes,Aspects &  Milestones Trust,1631.45, 06-Sep-2011
87,Revenue,CCHD,S28A - Under 65,Nursing Homes,Aspects &  Milestones Trust,5712.32, 06-Sep-2011
88,Revenue,CCHD,S28A - Under 65,Residential Homes,Aspects &  Milestones Trust,25043.14, 06-Sep-2011
89,Revenue,CCHD,S28A - Under 65,Residential Homes,Aspects &  Milestones Trust,5272.24, 06-Sep-2011
90,Revenue,CCHD,S28A - Under 65,Residential Homes,Aspects &  Milestones Trust,1886.66, 06-Sep-2011
91,Revenue,CCHD,Under 65s PWLD - KH,Residential Homes,Aspects &  Milestones Trust,12906.6, 06-Sep-2011
92,Revenue,CCHD,Under 65s PWLD - KH,Residential Homes,Aspects &  Milestones Trust,6912.12, 06-Sep-2011
93,Revenue,CCHD,Under 65s PWLD - KH,Residential Homes,Aspects &  Milestones Trust,1238.77, 06-Sep-2011
94,Revenue,CCHD,S28A - Under 65,Residential Homes,Aspects &  Milestones Trust,24942.44, 06-Sep-2011
95,Revenue,CCHD,S28A - Under 65,Residential Homes,Aspects &  Milestones Trust,5251.04, 06-Sep-2011
96,Revenue,CCHD,Under 65s PWLD - KD,Residential Homes,Aspects &  Milestones Trust,26782.02, 06-Sep-2011
97,Revenue,CCHD,Under 65s PWLD - KD,Residential Homes,Aspects &  Milestones Trust,5638.32, 06-Sep-2011
98,Revenue,CCHD,Under 65s PWLD - KD,Residential Homes,Aspects &  Milestones Trust,2017.4, 06-Sep-2011
99,Revenue,CCHD,Under 65s PWLD - KH,Residential Homes,Aspects &  Milestones Trust,3809.62, 06-Sep-2011
100,Revenue,CCHD,S28A - Under 65,Residential Homes,Aspects &  Milestones Trust,36217.99, 06-Sep-2011
101,Revenue,CCHD,S28A - Under 65,Residential Homes,Aspects &  Milestones Trust,7624.84, 06-Sep-2011
102,Revenue,CCHD,S28A - Under 65,Residential Homes,Aspects &  Milestones Trust,2726.87, 06-Sep-2011
103,Revenue,CCHD,MH Purchasing - Younger,Residential Homes,Aspects &  Milestones Trust,1009, 06-Sep-2011
104,Revenue,CCHD,Elderly PWLD - PS,Residential Homes,Aspects &  Milestones Trust,5191.2, 06-Sep-2011
105,Revenue,CCHD,Elderly PWLD - PS,Residential Homes,Aspects &  Milestones Trust,17761.2, 06-Sep-2011
106,Revenue,CCHD,Elderly PWLD - PS,Residential Homes,Aspects &  Milestones Trust,3739.2, 06-Sep-2011
107,Revenue,CCHD,Elderly PWLD - PS,Residential Homes,Aspects &  Milestones Trust,1432.7, 06-Sep-2011
108,Revenue,CCHD,Elderly PWLD - KH,Residential Homes,Aspects &  Milestones Trust,4891.88, 06-Sep-2011
109,Revenue,CCHD,S28A - Under 65,Residential Homes,Aspects &  Milestones Trust,21862.37, 06-Sep-2011
110,Revenue,CCHD,S28A - Under 65,Residential Homes,Aspects &  Milestones Trust,5187.68, 06-Sep-2011
111,Revenue,CCHD,S28A - Under 65,Residential Homes,Aspects &  Milestones Trust,1867.03, 06-Sep-2011
112,Revenue,CCHD,S28A - Under 65,Residential Homes,Aspects &  Milestones Trust,28671, 06-Sep-2011
113,Revenue,CCHD,S28A - Under 65,Residential Homes,Aspects &  Milestones Trust,6036, 06-Sep-2011
114,Revenue,CCHD,S28A - Under 65,Residential Homes,Aspects &  Milestones Trust,2159.43, 06-Sep-2011
115,Revenue,CCHD,S28A - Over 65,Residential Homes,Aspects &  Milestones Trust,16831.91, 06-Sep-2011
116,Revenue,CCHD,S28A - Over 65,Residential Homes,Aspects &  Milestones Trust,3543.56, 06-Sep-2011
117,Revenue,CCHD,S28A - Under 65,Nursing Homes,Aspects &  Milestones Trust,6122.48, 06-Sep-2011
118,Revenue,CCHD,Section 117 Placements MH Younger,Residential Homes,Aspects &  Milestones Trust,1304, 06-Sep-2011
119,Revenue,CCHD,Under 65s PWLD - PS,Residential Homes,Aspects &  Milestones Trust,3630.6, 06-Sep-2011
120,Revenue,CCHD,S28A - Under 65,Residential Homes,Aspects &  Milestones Trust,28671, 06-Sep-2011
121,Revenue,CCHD,S28A - Under 65,Residential Homes,Aspects &  Milestones Trust,6036, 06-Sep-2011
122,Revenue,CCHD,S28A - Under 65,Residential Homes,Aspects &  Milestones Trust,2159.43, 06-Sep-2011
123,Revenue,CCHD,S28A - Under 65,Residential Homes,Aspects &  Milestones Trust,22742.62, 06-Sep-2011
124,Revenue,CCHD,S28A - Under 65,Residential Homes,Aspects &  Milestones Trust,4787.92, 06-Sep-2011
125,Revenue,CCHD,S28A - Under 65,Residential Homes,Aspects &  Milestones Trust,1713.69, 06-Sep-2011
126,Revenue,CCHD,S28A - Over 65,Residential Homes,Aspects &  Milestones Trust,4892.16, 06-Sep-2011
127,Revenue,CCHD,S28A - Over 65,Residential Homes,Aspects &  Milestones Trust,4149.64, 06-Sep-2011
128,Revenue,CCHD,S28A - Under 65,Residential Homes,Aspects &  Milestones Trust,28671, 06-Sep-2011
129,Revenue,CCHD,S28A - Under 65,Residential Homes,Aspects &  Milestones Trust,6036, 06-Sep-2011
130,Revenue,CCHD,S28A - Under 65,Residential Homes,Aspects &  Milestones Trust,2159.43, 06-Sep-2011
131,Revenue,CCHD,S28A - Over 65,Residential Homes,Aspects &  Milestones Trust,19850.63, 06-Sep-2011
132,Revenue,CCHD,S28A - Over 65,Residential Homes,Aspects &  Milestones Trust,4179.08, 06-Sep-2011
133,Revenue,CCHD,S28A - Over 65,Residential Homes,Aspects &  Milestones Trust,1498.89, 06-Sep-2011
134,Revenue,CCHD,S28A - Under 65,Residential Homes,Aspects &  Milestones Trust,28671, 06-Sep-2011
135,Revenue,CCHD,S28A - Under 65,Residential Homes,Aspects &  Milestones Trust,6036, 06-Sep-2011
136,Revenue,CCHD,S28A - Under 65,Residential Homes,Aspects &  Milestones Trust,2159.43, 06-Sep-2011
137,Revenue,CCHD,S28A - Over 65,Residential Homes,Aspects &  Milestones Trust,18449.38, 06-Sep-2011
138,Revenue,CCHD,S28A - Over 65,Residential Homes,Aspects &  Milestones Trust,3854.92, 06-Sep-2011
139,Revenue,CCHD,S28A - Under 65,Residential Homes,Aspects &  Milestones Trust,23655, 06-Sep-2011
140,Revenue,CCHD,S28A - Under 65,Residential Homes,Aspects &  Milestones Trust,4980, 06-Sep-2011
141,Revenue,CCHD,S28A - Under 65,Residential Homes,Aspects &  Milestones Trust,1782.29, 06-Sep-2011
142,Revenue,CCHD,S28A - Under 65,Residential Homes,Aspects &  Milestones Trust,31008.19, 06-Sep-2011
143,Revenue,CCHD,S28A - Under 65,Residential Homes,Aspects &  Milestones Trust,6528.04, 06-Sep-2011
144,Revenue,CCHD,S28A - Under 65,Residential Homes,Aspects &  Milestones Trust,2335.16, 06-Sep-2011
145,Revenue,CCHD,S28A - Under 65,Residential Homes,Aspects &  Milestones Trust,18962.76, 06-Sep-2011
146,Revenue,CCHD,S28A - Under 65,Residential Homes,Aspects &  Milestones Trust,3992.16, 06-Sep-2011
147,Revenue,CCHD,S28A - Under 65,Residential Homes,Aspects &  Milestones Trust,1429.49, 06-Sep-2011
148,Revenue,CCHD,S28A - Over 65,Residential Homes,Aspects &  Milestones Trust,26595.25, 06-Sep-2011
149,Revenue,CCHD,S28A - Over 65,Residential Homes,Aspects &  Milestones Trust,5737.96, 06-Sep-2011
150,Revenue,CCHD,S28A - Over 65,Residential Homes,Aspects &  Milestones Trust,15919.72, 06-Sep-2011
151,Revenue,CCHD,S28A - Over 65,Residential Homes,Aspects &  Milestones Trust,3351.52, 06-Sep-2011
152,Revenue,CCHD,S28A - Over 65,Residential Homes,Aspects &  Milestones Trust,1203.33, 06-Sep-2011
153,Revenue,CCHD,S28A - Over 65,Residential Homes,Aspects &  Milestones Trust,22286.05, 06-Sep-2011
154,Revenue,CCHD,S28A - Over 65,Residential Homes,Aspects &  Milestones Trust,4691.8, 06-Sep-2011
155,Revenue,CCHD,S28A - Over 65,Residential Homes,Aspects &  Milestones Trust,1772.91, 06-Sep-2011
156,Revenue,CCHD,S28A - Over 65,Residential Homes,Aspects &  Milestones Trust,22975.94, 06-Sep-2011
157,Revenue,CCHD,S28A - Over 65,Residential Homes,Aspects &  Milestones Trust,4837.04, 06-Sep-2011
158,Revenue,CCHD,S28A - Over 65,Residential Homes,Aspects &  Milestones Trust,1733.87, 06-Sep-2011
159,Revenue,CCHD,S28A - Over 65,Residential Homes,Aspects &  Milestones Trust,21641.76, 06-Sep-2011
160,Revenue,CCHD,S28A - Over 65,Residential Homes,Aspects &  Milestones Trust,4556.16, 06-Sep-2011
161,Revenue,CCHD,S28A - Over 65,Residential Homes,Aspects &  Milestones Trust,1633.56, 06-Sep-2011
162,Revenue,CCHD,S28A - Over 65,Residential Homes,Aspects &  Milestones Trust,21090, 06-Sep-2011
163,Revenue,CCHD,S28A - Over 65,Residential Homes,Aspects &  Milestones Trust,4440, 06-Sep-2011
164,Revenue,CCHD,S28A - Over 65,Residential Homes,Aspects &  Milestones Trust,1583.71, 06-Sep-2011
165,Revenue,CCHD,S28A - Over 65,Residential Homes,Aspects &  Milestones Trust,19533.33, 06-Sep-2011
166,Revenue,CCHD,S28A - Over 65,Residential Homes,Aspects &  Milestones Trust,4112.28, 06-Sep-2011
167,Revenue,CCHD,S28A - Over 65,Residential Homes,Aspects &  Milestones Trust,1475.03, 06-Sep-2011
168,Revenue,CCHD,S28A - Over 65,Residential Homes,Aspects &  Milestones Trust,16243.29, 06-Sep-2011
169,Revenue,CCHD,S28A - Over 65,Residential Homes,Aspects &  Milestones Trust,3419.64, 06-Sep-2011
170,Revenue,CCHD,S28A - Over 65,Residential Homes,Aspects &  Milestones Trust,1227.66, 06-Sep-2011
171,Revenue,CCHD,S28A - Under 65,Residential Homes,Aspects &  Milestones Trust,34200, 06-Sep-2011
172,Revenue,CCHD,S28A - Under 65,Residential Homes,Aspects &  Milestones Trust,7200, 06-Sep-2011
173,Revenue,CCHD,S28A - Under 65,Residential Homes,Aspects &  Milestones Trust,2575.15, 06-Sep-2011
174,Revenue,CCHD,S28A - Under 65,Nursing Homes,Aspects &  Milestones Trust,6203.68, 06-Sep-2011
175,Revenue,CCHD,S28A - Over 65,Residential Homes,Aspects &  Milestones Trust,16364.32, 06-Sep-2011
176,Revenue,CCHD,S28A - Over 65,Residential Homes,Aspects &  Milestones Trust,3445.12, 06-Sep-2011
177,Revenue,CCHD,S28A - Over 65,Residential Homes,Aspects &  Milestones Trust,1236.76, 06-Sep-2011
178,Revenue,CCHD,S28A - Over 65,Residential Homes,Aspects &  Milestones Trust,15236.48, 06-Sep-2011
179,Revenue,CCHD,S28A - Over 65,Residential Homes,Aspects &  Milestones Trust,3207.68, 06-Sep-2011
180,Revenue,CCHD,S28A - Over 65,Residential Homes,Aspects &  Milestones Trust,1242.87, 06-Sep-2011
181,Revenue,CCHD,S28A - Over 65,Residential Homes,Aspects &  Milestones Trust,15503.81, 06-Sep-2011
182,Revenue,CCHD,S28A - Over 65,Residential Homes,Aspects &  Milestones Trust,3263.96, 06-Sep-2011
183,Revenue,CCHD,S28A - Over 65,Residential Homes,Aspects &  Milestones Trust,1172.06, 06-Sep-2011
184,Revenue,CCHD,S28A - Over 65,Residential Homes,Aspects &  Milestones Trust,22098.71, 06-Sep-2011
185,Revenue,CCHD,S28A - Over 65,Residential Homes,Aspects &  Milestones Trust,4652.36, 06-Sep-2011
186,Revenue,CCHD,S28A - Over 65,Residential Homes,Aspects &  Milestones Trust,1667.92, 06-Sep-2011
187,Revenue,CCHD,Elderly Mental Health,Residential Homes,Aspects &  Milestones Trust,845.36, 06-Sep-2011
188,Revenue,CCHD,S28A - Under 65,Residential Homes,Aspects &  Milestones Trust,22434.44, 06-Sep-2011
189,Revenue,CCHD,S28A - Under 65,Residential Homes,Aspects &  Milestones Trust,4723.04, 06-Sep-2011
190,Revenue,CCHD,S28A - Under 65,Residential Homes,Aspects &  Milestones Trust,1690.52, 06-Sep-2011
191,Revenue,CCHD,Elderly PWLD - KD,Residential Homes,Aspects &  Milestones Trust,12933.68, 06-Sep-2011
192,Revenue,CCHD,Elderly PWLD - KD,Residential Homes,Aspects &  Milestones Trust,2722.88, 06-Sep-2011
193,Revenue,CCHD,Elderly PWLD - KD,Residential Homes,Aspects &  Milestones Trust,978.82, 06-Sep-2011
194,Revenue,CCHD,Elderly PWLD - KH,Residential Homes,Aspects &  Milestones Trust,25385.71, 06-Sep-2011
195,Revenue,CCHD,Elderly PWLD - KH,Residential Homes,Aspects &  Milestones Trust,5344.36, 06-Sep-2011
196,Revenue,CCHD,Elderly PWLD - KH,Residential Homes,Aspects &  Milestones Trust,1915.06, 06-Sep-2011
197,Revenue,CCHD,Under 65s PWLD - KD,Residential Homes,Aspects &  Milestones Trust,5705.36, 06-Sep-2011
198,Revenue,CCHD,Elderly PWLD - KD,Residential Homes,Aspects &  Milestones Trust,19857.85, 06-Sep-2011
199,Revenue,CCHD,Elderly PWLD - KD,Residential Homes,Aspects &  Milestones Trust,4180.6, 06-Sep-2011
200,Revenue,CCHD,Elderly PWLD - KD,Residential Homes,Aspects &  Milestones Trust,1499.43, 06-Sep-2011
201,Revenue,CCHD,Under 65s PWLD - PS,Residential Homes,Aspects &  Milestones Trust,18035.94, 06-Sep-2011
202,Revenue,CCHD,Under 65s PWLD - PS,Residential Homes,Aspects &  Milestones Trust,3797.04, 06-Sep-2011
203,Revenue,CCHD,Under 65s PWLD - PS,Residential Homes,Aspects &  Milestones Trust,1359.8, 06-Sep-2011
204,Revenue,CCHD,Under 65s PWLD - KD,Residential Homes,Aspects &  Milestones Trust,5687.48, 06-Sep-2011
205,Revenue,CCHD,S28A - Over 65,Residential Homes,Aspects &  Milestones Trust,3294.24, 06-Sep-2011
206,Revenue,CCHD,Section 117 Placements MH Younger,Residential Homes,Aspects &  Milestones Trust,1688, 06-Sep-2011
207,Revenue,CCHD,MH Purchasing - Younger,Residential Homes,Aspects &  Milestones Trust,1009, 06-Sep-2011
208,Revenue,CCHD,S28A - Over 65,Residential Homes,Aspects &  Milestones Trust,16118.65, 06-Sep-2011
209,Revenue,CCHD,S28A - Over 65,Residential Homes,Aspects &  Milestones Trust,3463.2, 06-Sep-2011
210,Revenue,CCHD,S28A - Under 65,Residential Homes,Aspects &  Milestones Trust,16696.06, 06-Sep-2011
211,Revenue,CCHD,S28A - Under 65,Residential Homes,Aspects &  Milestones Trust,3514.96, 06-Sep-2011
212,Revenue,CCHD,S28A - Under 65,Residential Homes,Aspects &  Milestones Trust,1261.7, 06-Sep-2011
213,Revenue,CCHD,S28A - Under 65,Residential Homes,Aspects &  Milestones Trust,23655, 06-Sep-2011
214,Revenue,CCHD,S28A - Under 65,Residential Homes,Aspects &  Milestones Trust,4980, 06-Sep-2011
215,Revenue,CCHD,S28A - Under 65,Residential Homes,Aspects &  Milestones Trust,1782.29, 06-Sep-2011
216,Revenue,CCHD,S28A - Under 65,Residential Homes,Aspects &  Milestones Trust,28197.71, 06-Sep-2011
217,Revenue,CCHD,S28A - Under 65,Residential Homes,Aspects &  Milestones Trust,5936.36, 06-Sep-2011
218,Revenue,CCHD,S28A - Over 65,Residential Homes,Aspects &  Milestones Trust,27600.54, 06-Sep-2011
219,Revenue,CCHD,S28A - Over 65,Residential Homes,Aspects &  Milestones Trust,5810.64, 06-Sep-2011
220,Revenue,CCHD,S28A - Over 65,Residential Homes,Aspects &  Milestones Trust,19503.88, 06-Sep-2011
221,Revenue,CCHD,S28A - Over 65,Residential Homes,Aspects &  Milestones Trust,4106.08, 06-Sep-2011
222,Revenue,CCHD,S28A - Over 65,Residential Homes,Aspects &  Milestones Trust,22098.71, 06-Sep-2011
223,Revenue,CCHD,S28A - Over 65,Residential Homes,Aspects &  Milestones Trust,4652.36, 06-Sep-2011
224,Revenue,CCHD,S28A - Over 65,Residential Homes,Aspects &  Milestones Trust,1667.92, 06-Sep-2011
225,Revenue,CCHD,S28A - Over 65,Residential Homes,Aspects &  Milestones Trust,4923.12, 06-Sep-2011
226,Revenue,CCHD,S28A - Under 65,Residential Homes,Aspects &  Milestones Trust,26243.18, 06-Sep-2011
227,Revenue,CCHD,S28A - Under 65,Residential Homes,Aspects &  Milestones Trust,5524.88, 06-Sep-2011
228,Revenue,CCHD,S28A - Under 65,Residential Homes,Aspects &  Milestones Trust,1979.53, 06-Sep-2011
229,Revenue,CCHD,S28A - Under 65,Residential Homes,Aspects &  Milestones Trust,79129.11, 06-Sep-2011
230,Revenue,CCHD,S28A - Under 65,Residential Homes,Aspects &  Milestones Trust,36203.17, 06-Sep-2011
231,Revenue,CCHD,S28A - Under 65,Residential Homes,Aspects &  Milestones Trust,7621.72, 06-Sep-2011
232,Revenue,CCHD,S28A - Under 65,Residential Homes,Aspects &  Milestones Trust,2725.76, 06-Sep-2011
233,Revenue,CCHD,S28A - Over 65,Residential Homes,Aspects &  Milestones Trust,22948.39, 06-Sep-2011
234,Revenue,CCHD,S28A - Over 65,Residential Homes,Aspects &  Milestones Trust,4831.24, 06-Sep-2011
235,Revenue,CCHD,S28A - Over 65,Residential Homes,Aspects &  Milestones Trust,1731.8, 06-Sep-2011
236,Revenue,CCHD,S28A - Under 65,Residential Homes,Aspects &  Milestones Trust,22208.53, 06-Sep-2011
237,Revenue,CCHD,S28A - Under 65,Residential Homes,Aspects &  Milestones Trust,4675.48, 06-Sep-2011
238,Revenue,CCHD,S28A - Under 65,Residential Homes,Aspects &  Milestones Trust,1676.17, 06-Sep-2011
239,Revenue,CCHD,S28A - Over 65,Nursing Homes,Aspects &  Milestones Trust,22208.53, 06-Sep-2011
240,Revenue,CCHD,S28A - Over 65,Nursing Homes,Aspects &  Milestones Trust,1676.17, 06-Sep-2011
241,Revenue,CCHD,S28A - Over 65,Nursing Homes,Aspects &  Milestones Trust,1385.03, 06-Sep-2011
242,Revenue,CCHD,S28A - Under 65,Residential Homes,Aspects &  Milestones Trust,9909.43, 06-Sep-2011
243,Revenue,CCHD,S28A - Under 65,Residential Homes,Aspects &  Milestones Trust,2165.04, 06-Sep-2011
244,Revenue,CCHD,S28A - Over 65,Residential Homes,Aspects &  Milestones Trust,22869.35, 06-Sep-2011
245,Revenue,CCHD,S28A - Over 65,Residential Homes,Aspects &  Milestones Trust,4814.6, 06-Sep-2011
246,Revenue,CCHD,S28A - Over 65,Residential Homes,Aspects &  Milestones Trust,1725.86, 06-Sep-2011
247,Revenue,CCHD,S28A - Over 65,Residential Homes,Aspects &  Milestones Trust,25617.32, 06-Sep-2011
248,Revenue,CCHD,S28A - Over 65,Residential Homes,Aspects &  Milestones Trust,5393.12, 06-Sep-2011
249,Revenue,CCHD,S28A - Over 65,Residential Homes,Aspects &  Milestones Trust,1932.47, 06-Sep-2011
250,Revenue,CCHD,S28A - Under 65,Residential Homes,Aspects &  Milestones Trust,21595.97, 06-Sep-2011
251,Revenue,CCHD,S28A - Under 65,Residential Homes,Aspects &  Milestones Trust,4546.52, 06-Sep-2011
252,Revenue,CCHD,S28A - Under 65,Residential Homes,Aspects &  Milestones Trust,1627.47, 06-Sep-2011
253,Revenue,CCHD,S28A - Over 65,Residential Homes,Aspects &  Milestones Trust,22869.35, 06-Sep-2011
254,Revenue,CCHD,S28A - Over 65,Residential Homes,Aspects &  Milestones Trust,4814.6, 06-Sep-2011
255,Revenue,CCHD,S28A - Over 65,Residential Homes,Aspects &  Milestones Trust,1725.86, 06-Sep-2011
256,Revenue,CCHD,Elderly PWLD - KD,Residential Homes,Aspects &  Milestones Trust,5200, 06-Sep-2011
257,Revenue,CCHD,S28A - Over 65,Residential Homes,Aspects &  Milestones Trust,21554.93, 06-Sep-2011
258,Revenue,CCHD,S28A - Over 65,Residential Homes,Aspects &  Milestones Trust,4837.04, 06-Sep-2011
259,Revenue,CCHD,S28A - Under 65,Residential Homes,Aspects &  Milestones Trust,21052.95, 06-Sep-2011
260,Revenue,CCHD,S28A - Under 65,Residential Homes,Aspects &  Milestones Trust,4667.44, 06-Sep-2011
261,Revenue,CCHD,S28A - Under 65,Residential Homes,Aspects &  Milestones Trust,28671, 06-Sep-2011
262,Revenue,CCHD,S28A - Under 65,Residential Homes,Aspects &  Milestones Trust,6036, 06-Sep-2011
263,Revenue,CCHD,S28A - Under 65,Residential Homes,Aspects &  Milestones Trust,2159.43, 06-Sep-2011
264,Revenue,CCHD,S28A - Over 65,Residential Homes,Aspects &  Milestones Trust,5538.72, 06-Sep-2011
265,Revenue,CCHD,S28A - Under 65,Residential Homes,Aspects &  Milestones Trust,15134.07, 06-Sep-2011
266,Revenue,CCHD,S28A - Under 65,Residential Homes,Aspects &  Milestones Trust,3186.12, 06-Sep-2011
267,Revenue,CCHD,S28A - Under 65,Residential Homes,Aspects &  Milestones Trust,1141.62, 06-Sep-2011
268,Revenue,CCHD,S28A - Over 65,Residential Homes,Aspects &  Milestones Trust,15347.06, 06-Sep-2011
269,Revenue,CCHD,S28A - Over 65,Residential Homes,Aspects &  Milestones Trust,3230.96, 06-Sep-2011
270,Revenue,CCHD,S28A - Over 65,Residential Homes,Aspects &  Milestones Trust,1160.27, 06-Sep-2011
271,Revenue,CCHD,S28A - Over 65,Residential Homes,Aspects &  Milestones Trust,15990.4, 06-Sep-2011
272,Revenue,CCHD,S28A - Over 65,Residential Homes,Aspects &  Milestones Trust,4665.95, 06-Sep-2011
273,Revenue,CCHD,S28A - Over 65,Residential Homes,Aspects &  Milestones Trust,15015.7, 06-Sep-2011
274,Revenue,CCHD,S28A - Over 65,Residential Homes,Aspects &  Milestones Trust,3161.2, 06-Sep-2011
275,Revenue,CCHD,S28A - Over 65,Residential Homes,Aspects &  Milestones Trust,1135.36, 06-Sep-2011
276,Revenue,CCHD,Under 65s PWLD - KH,Residential Homes,Aspects &  Milestones Trust,7561.2, 06-Sep-2011
277,Revenue,CCHD,Section 117 Placements,Residential Homes,Aspects &  Milestones Trust,1913.04, 06-Sep-2011
278,Revenue,CCHD,Elderly Mental Health,Nursing Homes,Aspects &  Milestones Trust,1323.08, 06-Sep-2011
279,Revenue,CCHD,Under 65s PWLD - KD,Residential Homes,Aspects &  Milestones Trust,28671, 06-Sep-2011
280,Revenue,CCHD,Under 65s PWLD - KD,Residential Homes,Aspects &  Milestones Trust,6036, 06-Sep-2011
281,Revenue,CCHD,Under 65s PWLD - KD,Residential Homes,Aspects &  Milestones Trust,2159.43, 06-Sep-2011
282,Revenue,CCHD,MH Purchasing - Younger,Nursing Homes,Aspects &  Milestones Trust,908.88, 06-Sep-2011
283,Revenue,CCHD,MH Purchasing - Younger,Nursing Homes,Aspects &  Milestones Trust,1097, 06-Sep-2011
284,Revenue,CCHD,MH Purchasing - Younger,Residential Homes,Aspects &  Milestones Trust,1009, 06-Sep-2011
285,Revenue,CCHD,Under 65s PWLD - PS,Residential Homes,Aspects &  Milestones Trust,15929.22, 06-Sep-2011
286,Revenue,CCHD,Under 65s PWLD - PS,Residential Homes,Aspects &  Milestones Trust,3353.52, 06-Sep-2011
287,Revenue,CCHD,Under 65s PWLD - PS,Residential Homes,Aspects &  Milestones Trust,1204.04, 06-Sep-2011
288,Revenue,CCHD,Section 117 Placements MH Younger,Nursing Homes,Aspects &  Milestones Trust,1392, 06-Sep-2011
289,Revenue,CCHD,S28A - Over 65,Residential Homes,Aspects &  Milestones Trust,25137.76, 06-Sep-2011
290,Revenue,CCHD,S28A - Over 65,Residential Homes,Aspects &  Milestones Trust,4997.16, 06-Sep-2011
291,Revenue,CCHD,S28A - Under 65,Residential Homes,Aspects &  Milestones Trust,22782.14, 06-Sep-2011
292,Revenue,CCHD,S28A - Under 65,Residential Homes,Aspects &  Milestones Trust,4796.24, 06-Sep-2011
293,Revenue,CCHD,S28A - Under 65,Residential Homes,Aspects &  Milestones Trust,1776.66, 06-Sep-2011
294,Revenue,CCHD,S28A - Over 65,Residential Homes,Aspects &  Milestones Trust,3996.88, 06-Sep-2011
295,Revenue,CCHD,S28A - Over 65,Residential Homes,Aspects &  Milestones Trust,21670.07, 06-Sep-2011
296,Revenue,CCHD,S28A - Over 65,Residential Homes,Aspects &  Milestones Trust,4562.12, 06-Sep-2011
297,Revenue,CCHD,S28A - Over 65,Residential Homes,Aspects &  Milestones Trust,1635.69, 06-Sep-2011
298,Revenue,CCHD,Under 65s PWLD - KH,Residential Homes,Aspects &  Milestones Trust,19548.15, 06-Sep-2011
299,Revenue,CCHD,Under 65s PWLD - KH,Residential Homes,Aspects &  Milestones Trust,4115.4, 06-Sep-2011
300,Revenue,CCHD,S28A - Over 65,Residential Homes,Aspects &  Milestones Trust,19180.31, 06-Sep-2011
301,Revenue,CCHD,S28A - Over 65,Residential Homes,Aspects &  Milestones Trust,4037.96, 06-Sep-2011
302,Revenue,CCHD,S28A - Over 65,Residential Homes,Aspects &  Milestones Trust,1448.49, 06-Sep-2011
303,Revenue,CCHD,S28A - Over 65,Residential Homes,Aspects &  Milestones Trust,16951.61, 06-Sep-2011
304,Revenue,CCHD,S28A - Over 65,Residential Homes,Aspects &  Milestones Trust,3748.88, 06-Sep-2011
305,Revenue,CCHD,S28A - Over 65,Residential Homes,Aspects &  Milestones Trust,27600.54, 06-Sep-2011
306,Revenue,CCHD,S28A - Over 65,Residential Homes,Aspects &  Milestones Trust,5810.64, 06-Sep-2011
307,Revenue,CCHD,S28A - Over 65,Residential Homes,Aspects &  Milestones Trust,4641.36, 06-Sep-2011
308,Revenue,CCHD,S28A - Over 65,Residential Homes,Aspects &  Milestones Trust,18607.46, 06-Sep-2011
309,Revenue,CCHD,S28A - Over 65,Residential Homes,Aspects &  Milestones Trust,3917.36, 06-Sep-2011
310,Revenue,CCHD,S28A - Over 65,Residential Homes,Aspects &  Milestones Trust,1405.42, 06-Sep-2011
311,Revenue,CCHD,S28A - Over 65,Residential Homes,Aspects &  Milestones Trust,20633.62, 06-Sep-2011
312,Revenue,CCHD,S28A - Over 65,Residential Homes,Aspects &  Milestones Trust,4343.92, 06-Sep-2011
313,Revenue,CCHD,S28A - Over 65,Residential Homes,Aspects &  Milestones Trust,1557.76, 06-Sep-2011
314,Revenue,CCHD,S28A - Over 65,Residential Homes,Aspects &  Milestones Trust,24132.85, 06-Sep-2011
315,Revenue,CCHD,S28A - Over 65,Residential Homes,Aspects &  Milestones Trust,5080.6, 06-Sep-2011
316,Revenue,CCHD,S28A - Over 65,Residential Homes,Aspects &  Milestones Trust,1820.86, 06-Sep-2011
317,Revenue,CCHD,S28A - Over 65,Residential Homes,Aspects &  Milestones Trust,22030.69, 06-Sep-2011
318,Revenue,CCHD,S28A - Over 65,Residential Homes,Aspects &  Milestones Trust,4638.04, 06-Sep-2011
319,Revenue,CCHD,S28A - Over 65,Residential Homes,Aspects &  Milestones Trust,1662.8, 06-Sep-2011
320,Revenue,CCHD,Elderly Mental Health,Residential Homes,Aspects &  Milestones Trust,1214, 06-Sep-2011
321,Revenue,CCHD,S28A - Over 65,Residential Homes,Aspects &  Milestones Trust,4922.96, 06-Sep-2011
322,Revenue,CCHD,S28A - Under 65,Residential Homes,Aspects &  Milestones Trust,5606.64, 06-Sep-2011
323,Revenue,CCHD,Section 117 Placements,Nursing Homes,Aspects &  Milestones Trust,1912, 06-Sep-2011
324,Revenue,CCHD,Elderly Mental Health,Nursing Homes,Aspects &  Milestones Trust,1425, 06-Sep-2011
325,Revenue,CCHD,Section 117 Placements,Nursing Homes,Aspects &  Milestones Trust,1912, 06-Sep-2011
326,Revenue,CCHD,Section 117 Placements,Residential Homes,Aspects &  Milestones Trust,1304, 06-Sep-2011
327,Revenue,CCHD,Under 65s PWLD - KD,Residential Homes,Aspects & Milestones Trust,8708.64, 06-Sep-2011
328,Revenue,CCHD,Under 65s PWLD - KD,Residential Homes,Aspects & Milestones Trust,62131.28, 06-Sep-2011
329,Revenue,CCHD,Supporting People Programme,Grants to Voluntary Bodies,Aspects and Milestones Trust,1426.32, 06-Sep-2011
330,Revenue,CCHD,Supporting People Programme,Grants to Voluntary Bodies,Aspects and Milestones Trust,1737.24, 06-Sep-2011
331,Revenue,CCHD,Supporting People Programme,Grants to Voluntary Bodies,Aspects and Milestones Trust,2165.04, 06-Sep-2011
332,Revenue,CCHD,Supporting People Programme,Grants to Voluntary Bodies,Aspects and Milestones Trust,2783.52, 06-Sep-2011
333,Revenue,CCHD,Supporting People Programme,Grants to Voluntary Bodies,Aspects and Milestones Trust,2844.96, 06-Sep-2011
334,Revenue,CCHD,Supporting People Programme,Grants to Voluntary Bodies,Aspects and Milestones Trust,3996.4, 06-Sep-2011
335,Revenue,CCHD,Supporting People Programme,Grants to Voluntary Bodies,Aspects and Milestones Trust,3996.4, 06-Sep-2011
336,Revenue,CCHD,Supporting People Programme,Grants to Voluntary Bodies,Aspects and Milestones Trust,3996.4, 06-Sep-2011
337,Revenue,CCHD,Supporting People Programme,Grants to Voluntary Bodies,Aspects and Milestones Trust,3996.4, 06-Sep-2011
338,Revenue,CCHD,Supporting People Programme,Grants to Voluntary Bodies,Aspects and Milestones Trust,945.83, 06-Sep-2011
339,Revenue,CCHD,Supporting People Programme,Grants to Voluntary Bodies,Aspects and Milestones Trust,3996.4, 06-Sep-2011
340,Revenue,CCHD,Supporting People Programme,Grants to Voluntary Bodies,Aspects and Milestones Trust,3425.49, 06-Sep-2011
341,Revenue,CCHD,Supported Living - KD,Private & Voluntary Home Care,Aspects and Milestones Trust,10816.7, 26-Sep-2011
342,Revenue,CCHD,Under 65s PWLD - KH,Residential Homes,Autism Specialised Care Homes,5425.76, 06-Sep-2011
343,Revenue,CCHD,Training - Adult Services,Training Expenses,Avenues Cafe,1138.5, 08-Sep-2011
344,Revenue,CCHD,Younger Adult Mental Health,Management Contract - Unisys,Avon & Wiltshire Mental Health,8333, 22-Sep-2011
345,Revenue,CCHD,Younger Adult Mental Health,Management Contract - Unisys,Avon & Wiltshire Mental Health,1667, 30-Sep-2011
346,Revenue,CCHD,Frenchay Hospital Purchasing,Residential Homes,Beaufort House,670.32, 06-Sep-2011
347,Revenue,CCHD,Elderly Mental Health,Residential Homes,Beaufort House,1414.6, 06-Sep-2011
348,Revenue,CCHD,Southmead Hospital Purchasing,Residential Homes,Beaufort House,1545, 06-Sep-2011
349,Revenue,CCHD,Frenchay Hospital Purchasing,Residential Homes,Beaufort House,1258.76, 06-Sep-2011
350,Revenue,CCHD,Elderly Mental Health,Residential Homes,Beaufort House,1285.84, 06-Sep-2011
351,Revenue,CCHD,Southmead Hospital Purchasing,Residential Homes,Beaufort House,1389, 06-Sep-2011
352,Revenue,CCHD,Frenchay Hospital Purchasing,Residential Homes,Beaufort House,1263.8, 06-Sep-2011
353,Revenue,CCHD,Elderly Mental Health,Residential Homes,Beaufort House,1288.32, 06-Sep-2011
354,Revenue,CCHD,Elderly Mental Health,Residential Homes,Beaufort House,1307.68, 06-Sep-2011
355,Revenue,CCHD,Elderly Purchasing - North,Residential Homes,Beaufort House,1670.64, 06-Sep-2011
356,Revenue,CCHD,Elderly Mental Health,Residential Homes,Beaufort House,1934.68, 06-Sep-2011
357,Revenue,CCHD,Elderly Mental Health,Residential Homes,Beaufort House,1389, 06-Sep-2011
358,Revenue,CCHD,Elderly Mental Health,Residential Homes,Beaufort House,1328.16, 06-Sep-2011
359,Revenue,CCHD,Elderly Mental Health,Residential Homes,Beaufort House,1032.16, 06-Sep-2011
360,Revenue,CCHD,Elderly Mental Health,Residential Homes,Beaufort House,1654.92, 06-Sep-2011
361,Revenue,CCHD,Elderly PWLD - KH,Residential Homes,Bedrock Lodge,2821.28, 06-Sep-2011
362,Revenue,CCHD,Section 117 Placements MH Younger,Residential Homes,Bedrock Lodge,1790.12, 06-Sep-2011
363,Revenue,CCHD,South Glos Users in South Glos Homes,Nursing Homes,Beech House,869.6, 06-Sep-2011
364,Revenue,CCHD,South Glos Users in South Glos Homes,Nursing Homes,Beech House,869.6, 06-Sep-2011
365,Revenue,CCHD,South Glos Users in South Glos Homes,Nursing Homes,Beech House,869.6, 06-Sep-2011
366,Revenue,CCHD,Southmead Hospital Purchasing,Nursing Homes,Beech House,2646.53, 06-Sep-2011
367,Revenue,CCHD,South Glos Users in South Glos Homes,Nursing Homes,Beech House,1087, 06-Sep-2011
368,Revenue,CCHD,South Glos Users in South Glos Homes,Nursing Homes,Beech House,869.6, 06-Sep-2011
369,Revenue,CCHD,Elderly Purchasing - North,Nursing Homes,Beech House,2087.52, 06-Sep-2011
370,Revenue,CCHD,South Glos Users in South Glos Homes,Nursing Homes,Beech House,869.6, 06-Sep-2011
371,Revenue,CCHD,South Glos Users in South Glos Homes,Nursing Homes,Beech House,869.6, 06-Sep-2011
372,Revenue,CCHD,South Glos Users in South Glos Homes,Nursing Homes,Beech House,869.6, 06-Sep-2011
373,Revenue,CCHD,South Glos Users in South Glos Homes,Nursing Homes,Beech House,869.6, 06-Sep-2011
374,Revenue,CCHD,South Glos Users in South Glos Homes,Nursing Homes,Beech House,869.6, 06-Sep-2011
375,Revenue,CCHD,South Glos Users in South Glos Homes,Nursing Homes,Beech House,869.6, 06-Sep-2011
376,Revenue,CCHD,South Glos Users in South Glos Homes,Nursing Homes,Beech House,869.6, 06-Sep-2011
377,Revenue,CCHD,South Glos Users in South Glos Homes,Nursing Homes,Beech House,869.6, 06-Sep-2011
378,Revenue,CCHD,South Glos Users in South Glos Homes,Nursing Homes,Beech House,5093.37, 06-Sep-2011
379,Revenue,CCHD,South Glos Users in South Glos Homes,Nursing Homes,Beech House,2220.59, 06-Sep-2011
380,Revenue,CCHD,South Glos Users in South Glos Homes,Nursing Homes,Beech House,869.6, 06-Sep-2011
381,Revenue,CCHD,South Glos Users in South Glos Homes,Nursing Homes,Beech House,869.6, 06-Sep-2011
382,Revenue,CCHD,Southmead Hospital Purchasing,Nursing Homes,Beech House,2570, 06-Sep-2011
383,Revenue,CCHD,South Glos Users in South Glos Homes,Nursing Homes,Beech House,512.44, 06-Sep-2011
384,Revenue,CCHD,South Glos Users in South Glos Homes,Nursing Homes,Beech House,869.6, 06-Sep-2011
385,Revenue,CCHD,South Glos Users in South Glos Homes,Nursing Homes,Beech House,838.54, 06-Sep-2011
386,Revenue,CCHD,Frenchay Hospital Purchasing,Nursing Homes,Beech House,3130.16, 06-Sep-2011
387,Revenue,CCHD,South Glos Users in South Glos Homes,Nursing Homes,Beech House,869.6, 06-Sep-2011
388,Revenue,CCHD,Southmead Hospital Purchasing,Nursing Homes,Beech House,2864.72, 06-Sep-2011
389,Revenue,CCHD,Elderly Purchasing - North,Nursing Homes,Beech House,3844.64, 06-Sep-2011
390,Revenue,CCHD,South Glos Users in South Glos Homes,Nursing Homes,Beech House,869.6, 06-Sep-2011
391,Revenue,CCHD,South Glos Users in South Glos Homes,Nursing Homes,Beech House,869.6, 06-Sep-2011
392,Revenue,CCHD,Elderly Purchasing - North,Nursing Homes,Beech House,1608.48, 06-Sep-2011
393,Revenue,CCHD,Frenchay Hospital Purchasing,Nursing Homes,Beech House,1285, 06-Sep-2011
394,Revenue,CCHD,Frenchay Hospital Purchasing,Nursing Homes,Beech House,1193.22, 06-Sep-2011
395,Revenue,CCHD,South Glos Users in South Glos Homes,Nursing Homes,Beech House,869.6, 06-Sep-2011
396,Revenue,CCHD,Elderly Purchasing - North,Nursing Homes,Beech House,1285, 06-Sep-2011
397,Revenue,CCHD,Elderly Purchasing - North,Nursing Homes,Beech House,1147.32, 06-Sep-2011
398,Revenue,CCHD,South Glos Users in South Glos Homes,Nursing Homes,Beech House,869.6, 06-Sep-2011
399,Revenue,CCHD,South Glos Users in South Glos Homes,Nursing Homes,Beech House,869.6, 06-Sep-2011
400,Revenue,CCHD,Elderly Purchasing - North,Nursing Homes,Beech House,2741.12, 06-Sep-2011
401,Revenue,CCHD,South Glos Users in South Glos Homes,Nursing Homes,Beech House,869.6, 06-Sep-2011
402,Revenue,CCHD,South Glos Users in South Glos Homes,Nursing Homes,Beech House,1195.7, 06-Sep-2011
403,Revenue,CCHD,Southmead Hospital Purchasing,Nursing Homes,Beech House,3142.8, 06-Sep-2011
404,Revenue,CCHD,South Glos Users in South Glos Homes,Nursing Homes,Beech House,869.6, 06-Sep-2011
405,Revenue,CCHD,South Glos Users in South Glos Homes,Nursing Homes,Beech House,869.6, 06-Sep-2011
406,Revenue,CCHD,Elderly Purchasing - North,Nursing Homes,Beech House,2381.12, 06-Sep-2011
407,Revenue,CCHD,South Glos Users in South Glos Homes,Nursing Homes,Beech House,869.6, 06-Sep-2011
408,Revenue,CCHD,South Glos Users in South Glos Homes,Nursing Homes,Beech House,869.6, 06-Sep-2011
409,Revenue,CCHD,South Glos Users in South Glos Homes,Nursing Homes,Bloomfield Care Centre,838.54, 06-Sep-2011
410,Revenue,CCHD,Elderly Mental Health,Nursing Homes,Blossom Field,4545.62, 06-Sep-2011
411,Revenue,CCHD,Elderly Purchasing - South,Nursing Homes,Blossom Fields,5766.55, 30-Sep-2011
412,Revenue,CCHD,Private Sector Housing,Other Supplies & Services,Bluechip Technologies Limited,720, 22-Sep-2011
413,Revenue,CCHD,Training - Adult Services,Training Expenses,Bob Dawson,1102.5, 30-Sep-2011
414,Revenue,CCHD,Frenchay Hospital Purchasing,Nursing Homes,Bradbury House,1350.32, 06-Sep-2011
415,Revenue,CCHD,Home Care Purch North,Other Small Contracts,Bradley House Home Care Services,1784.34, 09-Sep-2011
416,Revenue,CCHD,Day Care - South,Private & Voluntary Day Care,Bradley House Home Care Services,60.34, 09-Sep-2011
417,Revenue,CCHD,Day Care - North,Private & Voluntary Day Care,Bradley House Home Care Services,211.19, 09-Sep-2011
418,Revenue,CCHD,Younger MH non-res purchasing,Private & Voluntary Day Care,Bradley House Home Care Services,68.96, 09-Sep-2011
419,Revenue,CCHD,Elderly MH Home Care,Other Small Contracts,Bradley House Home Care Services,146.54, 09-Sep-2011
420,Revenue,CCHD,Home Care Purch South,Other Small Contracts,Bradley House Home Care Services,73.27, 14-Sep-2011
421,Revenue,CCHD,Home Care Purch North,Other Small Contracts,Bradley House Home Care Services,1624.87, 14-Sep-2011
422,Revenue,CCHD,Day Care - South,Private & Voluntary Day Care,Bradley House Home Care Services,47.41, 14-Sep-2011
423,Revenue,CCHD,Day Care - North,Private & Voluntary Day Care,Bradley House Home Care Services,172.4, 14-Sep-2011
424,Revenue,CCHD,Younger MH non-res purchasing,Private & Voluntary Day Care,Bradley House Home Care Services,68.96, 14-Sep-2011
425,Revenue,CCHD,Home Care Purch South,Other Small Contracts,Bradley House Home Care Services,90.51, 16-Sep-2011
426,Revenue,CCHD,Home Care Purch North,Other Small Contracts,Bradley House Home Care Services,1848.99, 16-Sep-2011
427,Revenue,CCHD,Day Care - South,Private & Voluntary Day Care,Bradley House Home Care Services,51.72, 16-Sep-2011
428,Revenue,CCHD,Day Care - North,Private & Voluntary Day Care,Bradley House Home Care Services,215.5, 16-Sep-2011
429,Revenue,CCHD,Younger MH non-res purchasing,Private & Voluntary Day Care,Bradley House Home Care Services,68.96, 16-Sep-2011
430,Revenue,CCHD,Home Care Purch North,Other Small Contracts,Bradley House Home Care Services,2150.69, 09-Sep-2011
431,Revenue,CCHD,Day Care - South,Private & Voluntary Day Care,Bradley House Home Care Services,60.34, 09-Sep-2011
432,Revenue,CCHD,Day Care - North,Private & Voluntary Day Care,Bradley House Home Care Services,215.5, 09-Sep-2011
433,Revenue,CCHD,Younger MH non-res purchasing,Private & Voluntary Day Care,Bradley House Home Care Services,68.96, 09-Sep-2011
434,Revenue,CCHD,Elderly MH Home Care,Other Small Contracts,Bradley House Home Care Services,189.64, 09-Sep-2011
435,Revenue,CCHD,Home Care Purch South,Other Small Contracts,Bradley House Home Care Services,90.51, 26-Sep-2011
436,Revenue,CCHD,Home Care Purch North,Other Small Contracts,Bradley House Home Care Services,2176.55, 26-Sep-2011
437,Revenue,CCHD,Day Care - South,Private & Voluntary Day Care,Bradley House Home Care Services,60.34, 26-Sep-2011
438,Revenue,CCHD,Day Care - North,Private & Voluntary Day Care,Bradley House Home Care Services,215.5, 26-Sep-2011
439,Revenue,CCHD,Younger MH non-res purchasing,Private & Voluntary Day Care,Bradley House Home Care Services,68.96, 26-Sep-2011
440,Revenue,CCHD,Home Care Purch North,Other Small Contracts,Bradley House Home Care Services,1905.02, 09-Sep-2011
441,Revenue,CCHD,Day Care - South,Private & Voluntary Day Care,Bradley House Home Care Services,60.34, 09-Sep-2011
442,Revenue,CCHD,Day Care - North,Private & Voluntary Day Care,Bradley House Home Care Services,215.5, 09-Sep-2011
443,Revenue,CCHD,Younger MH non-res purchasing,Private & Voluntary Day Care,Bradley House Home Care Services,64.65, 09-Sep-2011
444,Revenue,CCHD,Elderly MH Home Care,Other Small Contracts,Bradley House Home Care Services,206.88, 09-Sep-2011
445,Revenue,CCHD,Woodleaze,"Provisions (Food, etc)",Brake Bros,800.36, 05-Sep-2011
446,Revenue,CCHD,Woodleaze,"Provisions (Food, etc)",Brake Bros,781.84, 19-Sep-2011
447,Revenue,CCHD,Elderly Purchasing - North,Residential Homes,Bridge House Care Home,2465.2, 06-Sep-2011
448,Revenue,CCHD,Elderly Purchasing - North,Residential Homes,Bridge House Care Home,2058.32, 06-Sep-2011
449,Revenue,CCHD,Elderly Purchasing - North,Residential Homes,Bridge House Care Home,1091.96, 06-Sep-2011
450,Revenue,CCHD,Elderly Mental Health,Residential Homes,Brightbow,2487.2, 06-Sep-2011
451,Revenue,CCHD,MH Purchasing - Younger,Residential Homes,Brightbow,904.84, 06-Sep-2011
452,Revenue,CCHD,Older People's Commissioned Se,Grants to Voluntary Bodies,Bristol Area Stroke Foundation,4500, 30-Sep-2011
453,Revenue,CCHD,Supporting People Programme,Grants to Voluntary Bodies,Bristol Care & Repair,9780.82, 12-Sep-2011
454,Revenue,CCHD,Housing Needs,Fees - General,Bristol City Council,6900, 06-Sep-2011
455,Revenue,CCHD,Supported Living - KH,Private & Voluntary Home Care,Bristol City Council,17406.62, 01-Sep-2011
456,Revenue,CCHD,Getting a Life Project,Other Supplies & Services,Bristol City Council,21292.83, 06-Sep-2011
457,Revenue,CCHD,Supported Living - KD,Private & Voluntary Home Care,Bristol Houses UK Ltd,1269.1, 06-Sep-2011
458,Revenue,CCHD,Supported Living - KD,Private & Voluntary Home Care,Bristol Houses UK Ltd,1029, 06-Sep-2011
459,Revenue,CCHD,Supported Living - KD,Private & Voluntary Home Care,Bristol Houses UK Ltd,1843.63, 06-Sep-2011
460,Revenue,CCHD,Day Care - North,Private & Voluntary Day Care,Bristol Houses UK Ltd,1543.16, 12-Sep-2011
461,Revenue,CCHD,Supported Living - KD,Private & Voluntary Home Care,Bristol Houses UK Ltd,1029, 06-Sep-2011
462,Revenue,CCHD,Day Care - North,Private & Voluntary Day Care,Bristol Houses UK Ltd,2859.76, 09-Sep-2011
463,Revenue,CCHD,Supported Living - KD,Private & Voluntary Home Care,Bristol Houses UK Ltd,562.2, 06-Sep-2011
464,Revenue,CCHD,Bed and Breakfast,Bed & Breakfast,Bristol Housing & Support Limited,448, 02-Sep-2011
465,Revenue,CCHD,Bed and Breakfast,Bed & Breakfast,Bristol Housing & Support Limited,448, 02-Sep-2011
466,Revenue,CCHD,Charlton,Water Charges,Bristol Wessex Billing Services Limited,2392.96, 29-Sep-2011
467,Revenue,CCHD,Alexandra Way,Water Charges,Bristol Wessex Billing Services Limited,4528.43, 16-Sep-2011
468,Revenue,CCHD,Frome House,Water Charges,Bristol Wessex Billing Services Limited,1059.29, 07-Sep-2011
469,Revenue,CCHD,Section 117 Placements,Residential Homes,Brockley Court Care Home,1788, 06-Sep-2011
470,Revenue,CCHD,Supporting People Programme,Grants to Voluntary Bodies,Bromford Housing Group,1020.94, 12-Sep-2011
471,Revenue,CCHD,Elderly Purchasing - North,Residential Homes,Brook Lane Residential Home,886.4, 06-Sep-2011
472,Revenue,CCHD,Elderly Purchasing - South,Nursing Homes,Brunelcare,9411.33, 13-Sep-2011
473,Revenue,CCHD,Elderly Purchasing - North,Nursing Homes,Brunelcare,3148.27, 13-Sep-2011
474,Revenue,CCHD,Frenchay Hospital Purchasing,Nursing Homes,Brunelcare,1989.92, 13-Sep-2011
475,Revenue,CCHD,Southmead Hospital Purchasing,Nursing Homes,Brunelcare,5623.98, 13-Sep-2011
476,Revenue,CCHD,South Glos Users in South Glos Homes,Nursing Homes,Brunelcare,10512.84, 13-Sep-2011
477,Revenue,CCHD,Elderly Mental Health,Nursing Homes,Brunelcare,12268.43, 13-Sep-2011
478,Revenue,CCHD,Section 117 Placements,Nursing Homes,Brunelcare,4384.95, 13-Sep-2011
479,Revenue,CCHD,Elderly Purchasing - South,Nursing Homes,Brunelcare,9411.33, 13-Sep-2011
480,Revenue,CCHD,Elderly Purchasing - North,Nursing Homes,Brunelcare,4942.73, 13-Sep-2011
481,Revenue,CCHD,Frenchay Hospital Purchasing,Nursing Homes,Brunelcare,2759.53, 13-Sep-2011
482,Revenue,CCHD,Southmead Hospital Purchasing,Nursing Homes,Brunelcare,2839.95, 13-Sep-2011
483,Revenue,CCHD,South Glos Users in South Glos Homes,Nursing Homes,Brunelcare,11351.39, 13-Sep-2011
484,Revenue,CCHD,Elderly Mental Health,Nursing Homes,Brunelcare,13636.66, 13-Sep-2011
485,Revenue,CCHD,Section 117 Placements,Nursing Homes,Brunelcare,4215.43, 13-Sep-2011
486,Revenue,CCHD,Elderly MH non-res purchasing,Private & Voluntary Day Care,Brunelcare,767.2, 26-Sep-2011
487,Revenue,CCHD,Contracts & Commissioning Team,Other Small Contracts,Brunelcare,10500, 02-Sep-2011
488,Revenue,CCHD,Contracts & Commissioning Team,Other Small Contracts,Brunelcare,10500, 09-Sep-2011
489,Revenue,CCHD,Contracts & Commissioning Team,Other Small Contracts,Brunelcare,10500, 16-Sep-2011
490,Revenue,CCHD,Contracts & Commissioning Team,Other Small Contracts,Brunelcare,10500, 23-Sep-2011
491,Revenue,CCHD,Contracts & Commissioning Team,Other Small Contracts,Brunelcare,10500, 30-Sep-2011
492,Revenue,CCHD,Information Systems - Software,Computer Equipment - Purchase,BT Global Services Solutions,759.31, 12-Sep-2011
493,Revenue,CCHD,Woodleaze,Cleaning & Domestic Supplies,Bunzl Cleaning & Hygiene Supplies,508.47, 14-Sep-2011
494,Revenue,CCHD,Purchasing Phys Dis - North,Nursing Homes,Bupa Care Services  Bridge House,5700.16, 06-Sep-2011
495,Revenue,CCHD,South Glos Users in all other LA Homes,Nursing Homes,Bupa Care Services  Bridge House,598.4, 06-Sep-2011
496,Revenue,CCHD,Purchasing Phys Dis - North,Nursing Homes,Bupa Care Services  Bridge House,4195.2, 06-Sep-2011
497,Revenue,CCHD,Frenchay Hospital Purchasing,Nursing Homes,Bupa Care Services  Bridge House,692.16, 06-Sep-2011
498,Revenue,CCHD,Elderly Mental Health,Residential Homes,Bupa Care Services  Bridge House,1389, 06-Sep-2011
499,Revenue,CCHD,Newton House,Prop.Serv. General Repairs,C B Decorators,1470, 07-Sep-2011
500,Revenue,CCHD,Purchase of Non-Res Care - KD,Private & Voluntary Day Care,Camphill Communities Thornbury Limited,1968.68, 13-Sep-2011
501,Revenue,CCHD,Purchase of Non-Res Care - KD,Private & Voluntary Day Care,Camphill Communities Thornbury Limited,2179.44, 30-Sep-2011
502,Revenue,CCHD,Purchase of Non-Res Care - KD,Private & Voluntary Day Care,Camphill Communities Thornbury Limited,1964.32, 30-Sep-2011
503,Revenue,CCHD,Supported Living - KD,Private & Voluntary Home Care,Camphill Communities Thornbury Limited,2231.92, 13-Sep-2011
504,Revenue,CCHD,Purchase of Non-Res Care - KD,Private & Voluntary Day Care,Camphill Communities Thornbury Limited,1996.72, 30-Sep-2011
505,Revenue,CCHD,Purchase of Non-Res Care - KD,Private & Voluntary Day Care,Camphill Communities Thornbury Limited,2077.72, 30-Sep-2011
506,Revenue,CCHD,Supported Living - KD,Private & Voluntary Home Care,Camphill Communities Thornbury Limited,1964.56, 14-Sep-2011
507,Revenue,CCHD,Purchase of Non-Res Care - KD,Private & Voluntary Day Care,Camphill Communities Thornbury Limited,2231.64, 30-Sep-2011
508,Revenue,CCHD,Purchase of Non-Res Care - KD,Private & Voluntary Day Care,Camphill Communities Thornbury Limited,2211.36, 30-Sep-2011
509,Revenue,CCHD,Purchase of Non-Res Care - KD,Private & Voluntary Day Care,Camphill Communities Thornbury Limited,1017.22, 09-Sep-2011
510,Revenue,CCHD,Purchase of Non-Res Care - KD,Private & Voluntary Day Care,Camphill Communities Thornbury Limited,1964.32, 30-Sep-2011
511,Revenue,CCHD,Supported Living - KD,Private & Voluntary Home Care,Camphill Communities Thornbury Limited,2219.76, 14-Sep-2011
512,Revenue,CCHD,Purchase of Non-Res Care - KD,Private & Voluntary Day Care,Camphill Communities Thornbury Limited,2231.64, 30-Sep-2011
513,Revenue,CCHD,Purchase of Non-Res Care - KD,Private & Voluntary Day Care,Camphill Communities Thornbury Limited,1996.72, 30-Sep-2011
514,Revenue,CCHD,Purchase of Non-Res Care - KD,Private & Voluntary Day Care,Camphill Communities Thornbury Limited,2211.36, 30-Sep-2011
515,Revenue,CCHD,Purchase of Non-Res Care - KD,Private & Voluntary Day Care,Camphill Communities Thornbury Limited,1964.32, 30-Sep-2011
516,Revenue,CCHD,Purchase of Non-Res Care - KD,Private & Voluntary Day Care,Camphill Communities Thornbury Limited,2077.72, 30-Sep-2011
517,Revenue,CCHD,Purchase of Non-Res Care - KD,Private & Voluntary Day Care,Camphill Communities Thornbury Limited,1017.22, 30-Sep-2011
518,Revenue,CCHD,Purchase of Non-Res Care - KD,Private & Voluntary Day Care,Camphill Communities Thornbury Limited,1964.32, 30-Sep-2011
519,Revenue,CCHD,Purchase of Non-Res Care - KD,Private & Voluntary Day Care,Camphill Communities Thornbury Limited,2179.44, 30-Sep-2011
520,Revenue,CCHD,Under 65s PWLD - KD,Residential Homes,Camphill Devon Community,3143.88, 06-Sep-2011
521,Revenue,CCHD,Under 65s PWLD - KD,Residential Homes,Camphill Devon Community,2208.44, 06-Sep-2011
522,Revenue,CCHD,Home Care Purch South,Other Small Contracts,Care 1st Homecare,3030.52, 09-Sep-2011
523,Revenue,CCHD,Home Care Purch North,Other Small Contracts,Care 1st Homecare,3844.68, 09-Sep-2011
524,Revenue,CCHD,Day Care - South,Private & Voluntary Day Care,Care 1st Homecare,213.6, 09-Sep-2011
525,Revenue,CCHD,Day Care - North,Private & Voluntary Day Care,Care 1st Homecare,818.88, 09-Sep-2011
526,Revenue,CCHD,Elderly MH Home Care,Other Small Contracts,Care 1st Homecare,179.1, 09-Sep-2011
527,Revenue,CCHD,Elderly MH non-res purchasing,Private & Voluntary Day Care,Care 1st Homecare,95.76, 09-Sep-2011
528,Revenue,CCHD,PWLD Home Care - Under 65 - PS,Private & Voluntary Home Care,Care 1st Homecare,31.84, 09-Sep-2011
529,Revenue,CCHD,PWLD Home Care - Under 65 - KD,Private & Voluntary Home Care,Care 1st Homecare,15.92, 09-Sep-2011
530,Revenue,CCHD,PWLD Home Care - Under 65 - KH,Private & Voluntary Home Care,Care 1st Homecare,167.16, 09-Sep-2011
531,Revenue,CCHD,Home Care Purch South,Other Small Contracts,Care 1st Homecare,4105.12, 09-Sep-2011
532,Revenue,CCHD,Home Care Purch North,Other Small Contracts,Care 1st Homecare,4716.3, 09-Sep-2011
533,Revenue,CCHD,Day Care - South,Private & Voluntary Day Care,Care 1st Homecare,381.44, 09-Sep-2011
534,Revenue,CCHD,Day Care - North,Private & Voluntary Day Care,Care 1st Homecare,840.52, 09-Sep-2011
535,Revenue,CCHD,Elderly MH Home Care,Other Small Contracts,Care 1st Homecare,318.4, 09-Sep-2011
536,Revenue,CCHD,Elderly MH non-res purchasing,Private & Voluntary Day Care,Care 1st Homecare,99.18, 09-Sep-2011
537,Revenue,CCHD,PWLD Home Care - Under 65 - PS,Private & Voluntary Home Care,Care 1st Homecare,31.84, 09-Sep-2011
538,Revenue,CCHD,PWLD Home Care - Under 65 - KD,Private & Voluntary Home Care,Care 1st Homecare,15.92, 09-Sep-2011
539,Revenue,CCHD,PWLD Home Care - Under 65 - KH,Private & Voluntary Home Care,Care 1st Homecare,163.18, 09-Sep-2011
540,Revenue,CCHD,Home Care Purch South,Other Small Contracts,Care 1st Homecare,4206.86, 09-Sep-2011
541,Revenue,CCHD,Home Care Purch North,Other Small Contracts,Care 1st Homecare,5213.8, 09-Sep-2011
542,Revenue,CCHD,Day Care - South,Private & Voluntary Day Care,Care 1st Homecare,388.84, 09-Sep-2011
543,Revenue,CCHD,Day Care - North,Private & Voluntary Day Care,Care 1st Homecare,780.2, 09-Sep-2011
544,Revenue,CCHD,Elderly MH Home Care,Other Small Contracts,Care 1st Homecare,282.58, 09-Sep-2011
545,Revenue,CCHD,Elderly MH non-res purchasing,Private & Voluntary Day Care,Care 1st Homecare,58.14, 09-Sep-2011
546,Revenue,CCHD,PWLD Home Care - Under 65 - KD,Private & Voluntary Home Care,Care 1st Homecare,15.92, 09-Sep-2011
547,Revenue,CCHD,PWLD Home Care - Under 65 - KH,Private & Voluntary Home Care,Care 1st Homecare,151.24, 09-Sep-2011
548,Revenue,CCHD,Management & Support costs,Other Supplies & Services,Care Horizons Limited,670, 08-Sep-2011
549,Revenue,CCHD,Purchase of Non-Res Care - PS,Private & Voluntary Day Care,Care Horizons Limited,1383.96, 12-Sep-2011
550,Revenue,CCHD,Supported Living - KD,Private & Voluntary Home Care,Care Horizons Limited,5622.03, 23-Sep-2011
551,Revenue,CCHD,Purchase of Non-Res Care - KD,Private & Voluntary Day Care,Care Horizons Limited,1067, 23-Sep-2011
552,Revenue,CCHD,Purchase of Non-Res Care - KD,Private & Voluntary Day Care,Care Horizons Limited,1169.57, 27-Sep-2011
553,Revenue,CCHD,Purchase of Non-Res Care - KD,Private & Voluntary Day Care,Care Horizons Limited,1266.77, 23-Sep-2011
554,Revenue,CCHD,Purchase of Non-Res Care - KD,Private & Voluntary Day Care,Care Horizons Limited,1691.29, 23-Sep-2011
555,Revenue,CCHD,Day Care - North,Private & Voluntary Day Care,Care Horizons Limited,754.19, 30-Sep-2011
556,Revenue,CCHD,Supported Living - KH,Private & Voluntary Home Care,Care Horizons Limited,1923.38, 30-Sep-2011
557,Revenue,CCHD,Electronic Home Care Monitoring,Other Supplies & Services,Care Monitoring 2000 Limited,5683.46, 09-Sep-2011
558,Revenue,CCHD,Home Care - General,Other Supplies & Services,Care Monitoring 2000 Limited,7078.1, 09-Sep-2011
559,Revenue,CCHD,Detained,Nursing Homes,Care Principles,13392, 15-Sep-2011
560,Revenue,CCHD,Contracts & Commissioning Team,Other Small Contracts,Care UK Homecare,16000, 02-Sep-2011
561,Revenue,CCHD,Contracts & Commissioning Team,Other Small Contracts,Care UK Homecare,16000, 09-Sep-2011
562,Revenue,CCHD,Contracts & Commissioning Team,Other Small Contracts,Care UK Homecare,16000, 16-Sep-2011
563,Revenue,CCHD,Contracts & Commissioning Team,Other Small Contracts,Care UK Homecare,16000, 23-Sep-2011
564,Revenue,CCHD,Contracts & Commissioning Team,Other Small Contracts,Care UK Homecare,16000, 30-Sep-2011
565,Revenue,CCHD,Home Care Purch North,Other Small Contracts,Care UK Homecare,1397.84, 26-Sep-2011
566,Revenue,CCHD,Home Care Purch South,Other Small Contracts,Care UK Homecare,1620.04, 26-Sep-2011
567,Revenue,CCHD,Home Care Purch South,Other Small Contracts,Care UK Homecare,1935.16, 26-Sep-2011
568,Revenue,CCHD,Elderly MH Home Care,Other Small Contracts,Care UK Homecare,1962.36, 26-Sep-2011
569,Revenue,CCHD,Home Care Purch South,Other Small Contracts,Care UK Homecare,2078.28, 26-Sep-2011
570,Revenue,CCHD,Home Care Purch South,Other Small Contracts,Care UK Homecare,720.36, 26-Sep-2011
571,Revenue,CCHD,Contracts & Commissioning Team,Other Small Contracts,Carewatch (Bristol),2200, 02-Sep-2011
572,Revenue,CCHD,Contracts & Commissioning Team,Other Small Contracts,Carewatch (Bristol),2200, 09-Sep-2011
573,Revenue,CCHD,Contracts & Commissioning Team,Other Small Contracts,Carewatch (Bristol),2200, 16-Sep-2011
574,Revenue,CCHD,Contracts & Commissioning Team,Other Small Contracts,Carewatch (Bristol),2200, 23-Sep-2011
575,Revenue,CCHD,Contracts & Commissioning Team,Other Small Contracts,Carewatch (Bristol),2200, 30-Sep-2011
576,Revenue,CCHD,Home Care Purch South,Other Small Contracts,Cash Friday at Lloyds TSB,200.64, 19-Sep-2011
577,Revenue,CCHD,Home Care Purch North,Other Small Contracts,Cash Friday at Lloyds TSB,2424.4, 19-Sep-2011
578,Revenue,CCHD,Day Care - South,Private & Voluntary Day Care,Cash Friday at Lloyds TSB,33.44, 19-Sep-2011
579,Revenue,CCHD,Day Care - North,Private & Voluntary Day Care,Cash Friday at Lloyds TSB,96.14, 19-Sep-2011
580,Revenue,CCHD,Elderly MH Home Care,Other Small Contracts,Cash Friday at Lloyds TSB,125.4, 19-Sep-2011
581,Revenue,CCHD,Home Care Purch South,Other Small Contracts,Cash Friday at Lloyds TSB,200.64, 06-Sep-2011
582,Revenue,CCHD,Home Care Purch North,Other Small Contracts,Cash Friday at Lloyds TSB,2378.42, 06-Sep-2011
583,Revenue,CCHD,Day Care - South,Private & Voluntary Day Care,Cash Friday at Lloyds TSB,33.44, 06-Sep-2011
584,Revenue,CCHD,Day Care - North,Private & Voluntary Day Care,Cash Friday at Lloyds TSB,100.32, 06-Sep-2011
585,Revenue,CCHD,Elderly MH Home Care,Other Small Contracts,Cash Friday at Lloyds TSB,133.76, 06-Sep-2011
586,Revenue,CCHD,Home Care Purch South,Other Small Contracts,Cash Friday at Lloyds TSB,200.64, 09-Sep-2011
587,Revenue,CCHD,Home Care Purch North,Other Small Contracts,Cash Friday at Lloyds TSB,2436.94, 09-Sep-2011
588,Revenue,CCHD,Day Care - South,Private & Voluntary Day Care,Cash Friday at Lloyds TSB,33.44, 09-Sep-2011
589,Revenue,CCHD,Day Care - North,Private & Voluntary Day Care,Cash Friday at Lloyds TSB,100.32, 09-Sep-2011
590,Revenue,CCHD,Elderly MH Home Care,Other Small Contracts,Cash Friday at Lloyds TSB,133.76, 09-Sep-2011
591,Revenue,CCHD,Home Care Purch South,Other Small Contracts,Cash Friday at Lloyds TSB,196.46, 09-Sep-2011
592,Revenue,CCHD,Home Care Purch North,Other Small Contracts,Cash Friday at Lloyds TSB,2420.22, 09-Sep-2011
593,Revenue,CCHD,Day Care - South,Private & Voluntary Day Care,Cash Friday at Lloyds TSB,33.44, 09-Sep-2011
594,Revenue,CCHD,Day Care - North,Private & Voluntary Day Care,Cash Friday at Lloyds TSB,100.32, 09-Sep-2011
595,Revenue,CCHD,Elderly MH Home Care,Other Small Contracts,Cash Friday at Lloyds TSB,41.8, 09-Sep-2011
596,Revenue,CCHD,Home Care Purch South,Other Small Contracts,Cash Friday at Lloyds TSB,192.28, 09-Sep-2011
597,Revenue,CCHD,Home Care Purch North,Other Small Contracts,Cash Friday at Lloyds TSB,2399.32, 09-Sep-2011
598,Revenue,CCHD,Day Care - South,Private & Voluntary Day Care,Cash Friday at Lloyds TSB,33.44, 09-Sep-2011
599,Revenue,CCHD,Day Care - North,Private & Voluntary Day Care,Cash Friday at Lloyds TSB,79.42, 09-Sep-2011
600,Revenue,CCHD,Home Care Purch South,Other Small Contracts,Cash Friday at Lloyds TSB,200.64, 09-Sep-2011
601,Revenue,CCHD,Home Care Purch North,Other Small Contracts,Cash Friday at Lloyds TSB,2307.36, 09-Sep-2011
602,Revenue,CCHD,Day Care - South,Private & Voluntary Day Care,Cash Friday at Lloyds TSB,33.44, 09-Sep-2011
603,Revenue,CCHD,Day Care - North,Private & Voluntary Day Care,Cash Friday at Lloyds TSB,91.96, 09-Sep-2011
604,Revenue,CCHD,Home Care Purch South,Other Small Contracts,Cash Friday at Lloyds TSB,200.64, 19-Sep-2011
605,Revenue,CCHD,Home Care Purch North,Other Small Contracts,Cash Friday at Lloyds TSB,2453.66, 19-Sep-2011
606,Revenue,CCHD,Day Care - South,Private & Voluntary Day Care,Cash Friday at Lloyds TSB,33.44, 19-Sep-2011
607,Revenue,CCHD,Day Care - North,Private & Voluntary Day Care,Cash Friday at Lloyds TSB,87.78, 19-Sep-2011
608,Revenue,CCHD,Detained,Nursing Homes,Castlebeck Care (Teesdale) Limited,16218.98, 23-Sep-2011
609,Revenue,CCHD,Frenchay Hospital Purchasing,Nursing Homes,Cedar Care Homes Ltd,1051.8, 06-Sep-2011
610,Revenue,CCHD,Elderly Purchasing - South,Residential Homes,Cepen Lodge Care Home,2120, 06-Sep-2011
611,Revenue,CCHD,Elderly Purchasing - South,Residential Homes,Cepen Lodge Care Home,2120, 06-Sep-2011
612,Revenue,CCHD,Training - Adult Services,Books & Publications,Chartered Management Institute,995, 29-Sep-2011
613,Revenue,CCHD,Frenchay Hospital Purchasing,Residential Homes,Chatsworth House,1389, 06-Sep-2011
614,Revenue,CCHD,Elderly Mental Health,Residential Homes,Chatsworth House,1280.24, 06-Sep-2011
615,Revenue,CCHD,Southmead Hospital Purchasing,Residential Homes,Chatsworth House,1008.6, 06-Sep-2011
616,Revenue,CCHD,S28A - Under 65,Residential Homes,Chescombe Lodge,16720.08, 06-Sep-2011
617,Revenue,CCHD,Under 65s PWLD - PS,Residential Homes,Chosen Court,7040.44, 06-Sep-2011
618,Revenue,CCHD,Under 65s PWLD - KD,Residential Homes,Church House,12598.28, 06-Sep-2011
619,Revenue,CCHD,Under 65s PWLD - KH,Nursing Homes,Churchill House,9504.88, 06-Sep-2011
620,Revenue,CCHD,Under 65s PWLD - PS,Residential Homes,Churchill House,12402.6, 06-Sep-2011
621,Revenue,CCHD,Elderly Purchasing - North,Residential Homes,Cleeve Lodge,1596.44, 06-Sep-2011
622,Revenue,CCHD,Southmead Hospital Purchasing,Residential Homes,Cleeve Lodge,1065.6, 06-Sep-2011
623,Revenue,CCHD,Southmead Hospital Purchasing,Residential Homes,Cleeve Lodge,1406.2, 06-Sep-2011
624,Revenue,CCHD,Elderly Purchasing - North,Residential Homes,Cleeve Lodge,1639.24, 06-Sep-2011
625,Revenue,CCHD,Elderly Purchasing - North,Residential Homes,Cleeve Lodge,1497.16, 06-Sep-2011
626,Revenue,CCHD,Frenchay Hospital Purchasing,Residential Homes,Cleeve Lodge,1831.76, 06-Sep-2011
627,Revenue,CCHD,Elderly Purchasing - South,Residential Homes,Cleeve Lodge,1290.08, 06-Sep-2011
628,Revenue,CCHD,Elderly Purchasing - South,Residential Homes,Cleeve Lodge,1305, 06-Sep-2011
629,Revenue,CCHD,Elderly Purchasing - North,Residential Homes,Cleeve Lodge,1474.32, 06-Sep-2011
630,Revenue,CCHD,Elderly Purchasing - North,Residential Homes,Cleeve Lodge,1647.6, 06-Sep-2011
631,Revenue,CCHD,Elderly Purchasing - South,Residential Homes,Cleeve Lodge,1439.52, 06-Sep-2011
632,Revenue,CCHD,Elderly Purchasing - South,Residential Homes,Cleeve Lodge,7071.43, 06-Sep-2011
633,Revenue,CCHD,Elderly Purchasing - North,Residential Homes,Cleeve Lodge,1752.2, 06-Sep-2011
634,Revenue,CCHD,Southmead Hospital Purchasing,Residential Homes,Cleeve Lodge,1419.76, 06-Sep-2011
635,Revenue,CCHD,Southmead Hospital Purchasing,Residential Homes,Clifftop Care Home,1175.72, 06-Sep-2011
636,Revenue,CCHD,Frenchay Hospital Purchasing,Residential Homes,Collingwood Residential Home,1035.92, 06-Sep-2011
637,Revenue,CCHD,Elderly Purchasing - South,Residential Homes,Collingwood Residential Home,3809.03, 06-Sep-2011
638,Revenue,CCHD,Elderly Purchasing - South,Residential Homes,Collingwood Residential Home,3197.25, 06-Sep-2011
639,Revenue,CCHD,Elderly Purchasing - South,Residential Homes,Collingwood Residential Home,1421, 06-Sep-2011
640,Revenue,CCHD,Elderly Purchasing - South,Residential Homes,Collingwood Residential Home,1066.44, 06-Sep-2011
641,Revenue,CCHD,Elderly Purchasing - South,Residential Homes,Collingwood Residential Home,1297.84, 06-Sep-2011
642,Revenue,CCHD,Frenchay Hospital Purchasing,Residential Homes,Collingwood Residential Home,1229, 06-Sep-2011
643,Revenue,CCHD,Frenchay Hospital Purchasing,Residential Homes,Collingwood Residential Home,1214.6, 06-Sep-2011
644,Revenue,CCHD,Elderly Mental Health,Residential Homes,Collingwood Residential Home,1286.88, 06-Sep-2011
645,Revenue,CCHD,Elderly Purchasing - South,Residential Homes,Collingwood Residential Home,1231, 06-Sep-2011
646,Revenue,CCHD,Elderly Purchasing - North,Residential Homes,Collingwood Residential Home,1110, 06-Sep-2011
647,Revenue,CCHD,Elderly Purchasing - South,Residential Homes,Collingwood Residential Home,1176.32, 06-Sep-2011
648,Revenue,CCHD,Elderly Purchasing - South,Residential Homes,Collingwood Residential Home,1363.88, 06-Sep-2011
649,Revenue,CCHD,S28A - Under 65,Residential Homes,Compass Care,9441.64, 06-Sep-2011
650,Revenue,CCHD,Training - Adult Services,Training Expenses,ComputerWorld Training Limited,790, 08-Sep-2011
651,Revenue,CCHD,Bed and Breakfast,Bed & Breakfast,Connolly & Callaghan Limited,637, 08-Sep-2011
652,Revenue,CCHD,Bed and Breakfast,Bed & Breakfast,Connolly & Callaghan Limited,546, 08-Sep-2011
653,Revenue,CCHD,Bed and Breakfast,Bed & Breakfast,Connolly & Callaghan Limited,476, 08-Sep-2011
654,Revenue,CCHD,Bed and Breakfast,Bed & Breakfast,Connolly & Callaghan Limited,798, 08-Sep-2011
655,Revenue,CCHD,Bed and Breakfast,Bed & Breakfast,Connolly & Callaghan Limited,497, 08-Sep-2011
656,Revenue,CCHD,Bed and Breakfast,Bed & Breakfast,Connolly & Callaghan Limited,651, 08-Sep-2011
657,Revenue,CCHD,Bed and Breakfast,Bed & Breakfast,Connolly & Callaghan Limited,498, 08-Sep-2011
658,Revenue,CCHD,Bed and Breakfast,Bed & Breakfast,Connolly & Callaghan Limited,637, 02-Sep-2011
659,Revenue,CCHD,Bed and Breakfast,Bed & Breakfast,Connolly & Callaghan Limited,546, 02-Sep-2011
660,Revenue,CCHD,Bed and Breakfast,Bed & Breakfast,Connolly & Callaghan Limited,476, 02-Sep-2011
661,Revenue,CCHD,Bed and Breakfast,Bed & Breakfast,Connolly & Callaghan Limited,798, 05-Sep-2011
662,Revenue,CCHD,Bed and Breakfast,Bed & Breakfast,Connolly & Callaghan Limited,426, 02-Sep-2011
663,Revenue,CCHD,Bed and Breakfast,Bed & Breakfast,Connolly & Callaghan Limited,651, 02-Sep-2011
664,Revenue,CCHD,Bed and Breakfast,Bed & Breakfast,Connolly & Callaghan Limited,581, 02-Sep-2011
665,Revenue,CCHD,Bed and Breakfast,Bed & Breakfast,Connolly & Callaghan Limited,637, 13-Sep-2011
666,Revenue,CCHD,Bed and Breakfast,Bed & Breakfast,Connolly & Callaghan Limited,476, 13-Sep-2011
667,Revenue,CCHD,Bed and Breakfast,Bed & Breakfast,Connolly & Callaghan Limited,798, 13-Sep-2011
668,Revenue,CCHD,Bed and Breakfast,Bed & Breakfast,Connolly & Callaghan Limited,438, 13-Sep-2011
669,Revenue,CCHD,Bed and Breakfast,Bed & Breakfast,Connolly & Callaghan Limited,651, 13-Sep-2011
670,Revenue,CCHD,Bed and Breakfast,Bed & Breakfast,Connolly & Callaghan Limited,581, 13-Sep-2011
671,Revenue,CCHD,Under 65s PWLD - KD,Residential Homes,Consensus Support Services Ltd,8938, 19-Sep-2011
672,Revenue,CCHD,Under 65s PWLD - PS,Residential Homes,Consensus Support Services Ltd,9189.2, 23-Sep-2011
673,Revenue,CCHD,Under 65s PWLD - KD,Residential Homes,Consensus Support Services Ltd,8938, 21-Sep-2011
674,Revenue,CCHD,Research & Conferences,Other Supplies & Services,CPEA Ltd,3161.41, 01-Sep-2011
675,Revenue,CCHD,Detained,Nursing Homes,Craegmoor Facilities Company Ltd,13573.66, 02-Sep-2011
676,Revenue,CCHD,Detained,Nursing Homes,Craegmoor Healthcare Co Ltd,13135.8, 21-Sep-2011
677,Revenue,CCHD,S28A - Under 65,Residential Homes,Cream Ii Ltd,7725.68, 06-Sep-2011
678,Revenue,CCHD,S28A - Under 65,Residential Homes,Creedy Court,8934.84, 06-Sep-2011
679,Revenue,CCHD,S28A - Over 65,Residential Homes,Creedy Court,7434.12, 06-Sep-2011
680,Revenue,CCHD,Purchase of Non-Res Care - KH,Private & Voluntary Day Care,Daneswood,5434, 19-Sep-2011
681,Revenue,CCHD,Under 65s PWLD - PS,Residential Homes,Daneswood,10588.2, 06-Sep-2011
682,Revenue,CCHD,Under 65s PWLD - KD,Residential Homes,Daneswood,8756, 06-Sep-2011
683,Revenue,CCHD,Learning Difficulties PSL,Rent,Individual,1800, 22-Sep-2011
684,Revenue,CCHD,Day Care - South,Private & Voluntary Day Care,Deafblind UK,503.34, 12-Sep-2011
685,Revenue,CCHD,Day Care - South,Private & Voluntary Day Care,Deafblind UK,1311.31, 22-Sep-2011
686,Revenue,CCHD,Purchase of Non-Res Care - KD,Private & Voluntary Day Care,Design 4 Life Ltd,1086, 27-Sep-2011
687,Revenue,CCHD,Purchase of Non-Res Care - KD,Private & Voluntary Day Care,Design 4 Life Ltd,1482, 27-Sep-2011
688,Revenue,CCHD,Day Care - South,Private & Voluntary Day Care,Dhek Bhal,835.6, 13-Sep-2011
689,Revenue,CCHD,Supported Living - PS,Private & Voluntary Home Care,Dimensions (UK) Ltd,8006.68, 20-Sep-2011
690,Revenue,CCHD,Under 65s PWLD - KH,Residential Homes,Dimensions(Uk) Ltd,4696, 06-Sep-2011
691,Revenue,CCHD,Under 65s PWLD - PS,Residential Homes,Dimensions(Uk) Ltd,1708.92, 06-Sep-2011
692,Revenue,CCHD,Home Care Purch South,Other Small Contracts,DoCare Ltd,1785.6, 09-Sep-2011
693,Revenue,CCHD,Home Care Purch North,Other Small Contracts,DoCare Ltd,3306.15, 09-Sep-2011
694,Revenue,CCHD,Day Care - South,Private & Voluntary Day Care,DoCare Ltd,227.85, 09-Sep-2011
695,Revenue,CCHD,Day Care - North,Private & Voluntary Day Care,DoCare Ltd,218.55, 09-Sep-2011
696,Revenue,CCHD,Elderly MH Home Care,Other Small Contracts,DoCare Ltd,255.75, 09-Sep-2011
697,Revenue,CCHD,Elderly MH non-res purchasing,Private & Voluntary Day Care,DoCare Ltd,37.2, 09-Sep-2011
698,Revenue,CCHD,Home Care Purch South,Other Small Contracts,DoCare Ltd,1785.6, 09-Sep-2011
699,Revenue,CCHD,Home Care Purch North,Other Small Contracts,DoCare Ltd,2706.3, 09-Sep-2011
700,Revenue,CCHD,Day Care - South,Private & Voluntary Day Care,DoCare Ltd,176.7, 09-Sep-2011
701,Revenue,CCHD,Day Care - North,Private & Voluntary Day Care,DoCare Ltd,288.3, 09-Sep-2011
702,Revenue,CCHD,Elderly MH Home Care,Other Small Contracts,DoCare Ltd,74.4, 09-Sep-2011
703,Revenue,CCHD,Elderly MH non-res purchasing,Private & Voluntary Day Care,DoCare Ltd,37.2, 09-Sep-2011
704,Revenue,CCHD,Home Care Purch South,Other Small Contracts,DoCare Ltd,1832.1, 09-Sep-2011
705,Revenue,CCHD,Home Care Purch North,Other Small Contracts,DoCare Ltd,2859.75, 09-Sep-2011
706,Revenue,CCHD,Day Care - South,Private & Voluntary Day Care,DoCare Ltd,176.7, 09-Sep-2011
707,Revenue,CCHD,Day Care - North,Private & Voluntary Day Care,DoCare Ltd,297.6, 09-Sep-2011
708,Revenue,CCHD,Elderly MH Home Care,Other Small Contracts,DoCare Ltd,74.4, 09-Sep-2011
709,Revenue,CCHD,Elderly MH non-res purchasing,Private & Voluntary Day Care,DoCare Ltd,55.8, 09-Sep-2011
710,Revenue,CCHD,Home Care Purch South,Other Small Contracts,DoCare Ltd,1804.2, 21-Sep-2011
711,Revenue,CCHD,Home Care Purch North,Other Small Contracts,DoCare Ltd,3664.2, 21-Sep-2011
712,Revenue,CCHD,Day Care - South,Private & Voluntary Day Care,DoCare Ltd,176.7, 21-Sep-2011
713,Revenue,CCHD,Day Care - North,Private & Voluntary Day Care,DoCare Ltd,288.3, 21-Sep-2011
714,Revenue,CCHD,Elderly MH Home Care,Other Small Contracts,DoCare Ltd,93, 21-Sep-2011
715,Revenue,CCHD,Elderly MH non-res purchasing,Private & Voluntary Day Care,DoCare Ltd,55.8, 21-Sep-2011
716,Revenue,CCHD,Home Care Purch South,Other Small Contracts,DoCare Ltd,1762.35, 23-Sep-2011
717,Revenue,CCHD,Home Care Purch North,Other Small Contracts,DoCare Ltd,3659.55, 23-Sep-2011
718,Revenue,CCHD,Day Care - South,Private & Voluntary Day Care,DoCare Ltd,269.7, 23-Sep-2011
719,Revenue,CCHD,Day Care - North,Private & Voluntary Day Care,DoCare Ltd,297.6, 23-Sep-2011
720,Revenue,CCHD,Elderly MH Home Care,Other Small Contracts,DoCare Ltd,93, 23-Sep-2011
721,Revenue,CCHD,Elderly MH non-res purchasing,Private & Voluntary Day Care,DoCare Ltd,41.85, 23-Sep-2011
722,Revenue,CCHD,Home Care Purch South,Other Small Contracts,DoCare Ltd,1683.3, 09-Sep-2011
723,Revenue,CCHD,Home Care Purch North,Other Small Contracts,DoCare Ltd,3148.05, 09-Sep-2011
724,Revenue,CCHD,Day Care - South,Private & Voluntary Day Care,DoCare Ltd,232.5, 09-Sep-2011
725,Revenue,CCHD,Day Care - North,Private & Voluntary Day Care,DoCare Ltd,292.95, 09-Sep-2011
726,Revenue,CCHD,Elderly MH Home Care,Other Small Contracts,DoCare Ltd,125.55, 09-Sep-2011
727,Revenue,CCHD,Elderly MH non-res purchasing,Private & Voluntary Day Care,DoCare Ltd,93, 09-Sep-2011
728,Revenue,CCHD,Home Care Purch South,Other Small Contracts,DoCare Ltd,1776.3, 05-Sep-2011
729,Revenue,CCHD,Home Care Purch North,Other Small Contracts,DoCare Ltd,2771.4, 05-Sep-2011
730,Revenue,CCHD,Day Care - South,Private & Voluntary Day Care,DoCare Ltd,55.8, 05-Sep-2011
731,Revenue,CCHD,Day Care - North,Private & Voluntary Day Care,DoCare Ltd,302.25, 05-Sep-2011
732,Revenue,CCHD,Elderly MH Home Care,Other Small Contracts,DoCare Ltd,93, 05-Sep-2011
733,Revenue,CCHD,Elderly MH non-res purchasing,Private & Voluntary Day Care,DoCare Ltd,55.8, 05-Sep-2011
734,Revenue,CCHD,Elderly Purchasing - North,Residential Homes,Drakes Court,5959.12, 06-Sep-2011
735,Revenue,CCHD,Elderly PWLD - PS,Residential Homes,Drakes Court,5055.76, 06-Sep-2011
736,Revenue,CCHD,S28A - Over 65,Residential Homes,Drakes Court,6148.96, 06-Sep-2011
737,Revenue,CCHD,S28A - Over 65,Residential Homes,Drakes Court,6049.52, 06-Sep-2011
738,Revenue,CCHD,S28A - Over 65,Residential Homes,Drakes Court,3970.4, 06-Sep-2011
739,Revenue,CCHD,Elderly PWLD - PS,Residential Homes,Drakes Court,7276.32, 06-Sep-2011
740,Revenue,CCHD,Brokerage and Information Service,Grants to Voluntary Bodies,Drugs & Homeless InitiaDO NOT USE,9210.09, 27-Sep-2011
741,Revenue,CCHD,Elderly Purchasing - South,Nursing Homes,Dunkirk Memorial House,1163.84, 06-Sep-2011
742,Revenue,CCHD,MH Purchasing - Younger,Residential Homes,Dunraven House,3583.2, 06-Sep-2011
743,Revenue,CCHD,Bed and Breakfast,Bed & Breakfast,E J Bartlett,637, 02-Sep-2011
744,Revenue,CCHD,Bed and Breakfast,Bed & Breakfast,E J Bartlett,819, 02-Sep-2011
745,Revenue,CCHD,Bed and Breakfast,Bed & Breakfast,E J Bartlett,546, 02-Sep-2011
746,Revenue,CCHD,Bed and Breakfast,Bed & Breakfast,E J Bartlett,546, 02-Sep-2011
747,Revenue,CCHD,Bed and Breakfast,Bed & Breakfast,E J Bartlett,637, 02-Sep-2011
748,Revenue,CCHD,Bed and Breakfast,Bed & Breakfast,E J Bartlett,819, 02-Sep-2011
749,Revenue,CCHD,Bed and Breakfast,Bed & Breakfast,E J Bartlett,546, 02-Sep-2011
750,Revenue,CCHD,Bed and Breakfast,Bed & Breakfast,E J Bartlett,546, 02-Sep-2011
751,Revenue,CCHD,Bed and Breakfast,Bed & Breakfast,E J Bartlett,637, 13-Sep-2011
752,Revenue,CCHD,Bed and Breakfast,Bed & Breakfast,E J Bartlett,585, 13-Sep-2011
753,Revenue,CCHD,Bed and Breakfast,Bed & Breakfast,E J Bartlett,546, 13-Sep-2011
754,Revenue,CCHD,Bed and Breakfast,Bed & Breakfast,E J Bartlett,546, 13-Sep-2011
755,Revenue,CCHD,Bed and Breakfast,Bed & Breakfast,E J Bartlett,546, 30-Sep-2011
756,Revenue,CCHD,Bed and Breakfast,Bed & Breakfast,E J Bartlett,546, 30-Sep-2011
757,Revenue,CCHD,Bed and Breakfast,Bed & Breakfast,E J Bartlett,650, 30-Sep-2011
758,Revenue,CCHD,Bed and Breakfast,Bed & Breakfast,E J Bartlett,546, 30-Sep-2011
759,Revenue,CCHD,Bed and Breakfast,Bed & Breakfast,E J Bartlett,546, 30-Sep-2011
760,Revenue,CCHD,Bed and Breakfast,Bed & Breakfast,E J Bartlett,546, 30-Sep-2011
761,Revenue,CCHD,Under 65s PWLD - KH,Residential Homes,East Court,2136.36, 06-Sep-2011
762,Revenue,CCHD,Minor Adaptations Service,Operational Equipment,Eastman & Co (Timber) Limited,753.45, 16-Sep-2011
763,Revenue,CCHD,Charlton,Electricity,EDF Energy 1 Limited,1036.31, 16-Sep-2011
764,Revenue,CCHD,Kerr House,Electricity,EDF Energy 1 Limited,877.38, 16-Sep-2011
765,Revenue,CCHD,Wapley Court,Electricity,EDF Energy 1 Limited,803.45, 16-Sep-2011
766,Revenue,CCHD,Woodleaze,Electricity,EDF Energy 1 Limited,922.28, 16-Sep-2011
767,Revenue,CCHD,Alexandra Way,Electricity,EDF Energy 1 Limited,1117, 16-Sep-2011
768,Revenue,CCHD,Newton House,Electricity,EDF Energy 1 Limited,934.25, 16-Sep-2011
769,Revenue,CCHD,Section 117 Placements,Residential Homes,Edgecumbe Lodge,1879.56, 06-Sep-2011
770,Revenue,CCHD,Frenchay Hospital Purchasing,Residential Homes,Edgecumbe Lodge,1170, 06-Sep-2011
771,Revenue,CCHD,Elderly Purchasing - South,Residential Homes,Edgecumbe Lodge,1216.68, 06-Sep-2011
772,Revenue,CCHD,Elderly Purchasing - North,Residential Homes,Edgecumbe Lodge,2458, 06-Sep-2011
773,Revenue,CCHD,Frenchay Hospital Purchasing,Residential Homes,Edgecumbe Lodge,1062.8, 06-Sep-2011
774,Revenue,CCHD,Elderly Mental Health,Residential Homes,Edgecumbe Lodge,1146.36, 06-Sep-2011
775,Revenue,CCHD,Elderly Mental Health,Residential Homes,Edgecumbe Lodge,1350.6, 06-Sep-2011
776,Revenue,CCHD,Elderly PWLD - PS,Residential Homes,Edgemont House Ltd,1299.16, 06-Sep-2011
777,Revenue,CCHD,Frenchay Hospital Purchasing,Residential Homes,Edgemont House Ltd,1240.12, 06-Sep-2011
778,Revenue,CCHD,Elderly Purchasing - South,Residential Homes,Edgemont House Ltd,1122.4, 06-Sep-2011
779,Revenue,CCHD,Elderly Purchasing - South,Residential Homes,Edgemont House Ltd,1262.6, 06-Sep-2011
780,Revenue,CCHD,Elderly Purchasing - South,Residential Homes,Edgemont House Ltd,967.64, 06-Sep-2011
781,Revenue,CCHD,Elderly Purchasing - South,Nursing Homes,Edgemont View Nursing Home,1405, 06-Sep-2011
782,Revenue,CCHD,Frenchay Hospital Purchasing,Nursing Homes,Edgemont View Nursing Home,1335.8, 06-Sep-2011
783,Revenue,CCHD,Elderly Purchasing - North,Nursing Homes,Edgemont View Nursing Home,1440.84, 06-Sep-2011
784,Revenue,CCHD,Elderly Purchasing - South,Nursing Homes,Edgemont View Nursing Home,1247.8, 06-Sep-2011
785,Revenue,CCHD,Elderly Purchasing - South,Nursing Homes,Edgemont View Nursing Home,1586.2, 06-Sep-2011
786,Revenue,CCHD,Frenchay Hospital Purchasing,Nursing Homes,Edgemont View Nursing Home,636.04, 06-Sep-2011
787,Revenue,CCHD,Frenchay Hospital Purchasing,Nursing Homes,Edgemont View Nursing Home,1253.16, 06-Sep-2011
788,Revenue,CCHD,Training - Adult Services,Training Expenses,Effective Training & Consultancy Limited,778.5, 08-Sep-2011
789,Revenue,CCHD,Supporting People Programme,Grants to Voluntary Bodies,Elim Housing Association Ltd,4434.56, 26-Sep-2011
790,Revenue,CCHD,Elderly Purchasing - South,Residential Homes,Elmbridge Residential Home Ltd,1294.4, 06-Sep-2011
791,Revenue,CCHD,Frenchay Hospital Purchasing,Nursing Homes,Elmwood Nursing Home,2162.96, 06-Sep-2011
792,Revenue,CCHD,Younger MH non-res purchasing,Private & Voluntary Day Care,Enham,638.72, 23-Sep-2011
793,Revenue,CCHD,Elderly Mental Health,Residential Homes,Exmouth House,1305.6, 06-Sep-2011
794,Revenue,CCHD,Southmead Hospital Purchasing,Residential Homes,Fairview Court,1661.48, 06-Sep-2011
795,Revenue,CCHD,Elderly Mental Health,Nursing Homes,Fairview Court,983.52, 06-Sep-2011
796,Revenue,CCHD,Elderly Mental Health,Residential Homes,Fairview Court,1389, 06-Sep-2011
797,Revenue,CCHD,Frenchay Hospital Purchasing,Residential Homes,Fairview Court,1507.64, 06-Sep-2011
798,Revenue,CCHD,Elderly Mental Health,Residential Homes,Fairview Court,1611.36, 06-Sep-2011
799,Revenue,CCHD,Frenchay Hospital Purchasing,Nursing Homes,Fairview Court,878.32, 06-Sep-2011
800,Revenue,CCHD,Elderly Purchasing - South,Residential Homes,Fairview Court,1569.75, 06-Sep-2011
801,Revenue,CCHD,Elderly Purchasing - South,Residential Homes,Fairview Court,1345.2, 06-Sep-2011
802,Revenue,CCHD,Elderly Purchasing - South,Residential Homes,Fairview House,637.28, 06-Sep-2011
803,Revenue,CCHD,Frenchay Hospital Purchasing,Residential Homes,Fairview House,873.4, 06-Sep-2011
804,Revenue,CCHD,Section 117 Placements,Residential Homes,Fairview House,1840, 06-Sep-2011
805,Revenue,CCHD,Southmead Hospital Purchasing,Residential Homes,Fairview House,1965.94, 06-Sep-2011
806,Revenue,CCHD,Southmead Hospital Purchasing,Residential Homes,Fairview House,786.45, 06-Sep-2011
807,Revenue,CCHD,Elderly Mental Health,Residential Homes,Fairview House,543.4, 06-Sep-2011
808,Revenue,CCHD,Elderly Mental Health,Residential Homes,Fairview House,1084.72, 06-Sep-2011
809,Revenue,CCHD,Frenchay Hospital Purchasing,Residential Homes,Fairview House,1229, 06-Sep-2011
810,Revenue,CCHD,Southmead Hospital Purchasing,Residential Homes,Fairview House,588.92, 06-Sep-2011
811,Revenue,CCHD,Elderly Mental Health,Residential Homes,Fairview House,1049.28, 06-Sep-2011
812,Revenue,CCHD,Elderly Mental Health,Residential Homes,Fairview House,1163.88, 06-Sep-2011
813,Revenue,CCHD,Frenchay Hospital Purchasing,Residential Homes,Fairview House,1269.32, 06-Sep-2011
814,Revenue,CCHD,Elderly Mental Health,Residential Homes,Fairview House,1061.72, 06-Sep-2011
815,Revenue,CCHD,Elderly Purchasing - North,Residential Homes,Faith House,892.2, 06-Sep-2011
816,Revenue,CCHD,Frenchay Hospital Purchasing,Residential Homes,Faith House,1284.48, 06-Sep-2011
817,Revenue,CCHD,Under 65s PWLD - KD,Residential Homes,Fernbank,16701.12, 06-Sep-2011
818,Revenue,CCHD,Southmead Hospital Purchasing,Residential Homes,Four Seasons Health Care,1136.2, 06-Sep-2011
819,Revenue,CCHD,Frenchay Hospital Purchasing,Residential Homes,Four Seasons Health Care,907.04, 06-Sep-2011
820,Revenue,CCHD,Frenchay Hospital Purchasing,Nursing Homes,Four Seasons Health Care,1349, 06-Sep-2011
821,Revenue,CCHD,Frenchay Hospital Purchasing,Nursing Homes,Four Seasons Health Care,952.46, 06-Sep-2011
822,Revenue,CCHD,Elderly Purchasing - South,Nursing Homes,Four Seasons Health Care,835.52, 06-Sep-2011
823,Revenue,CCHD,Southmead Hospital Purchasing,Nursing Homes,Four Seasons Health Care,1349, 06-Sep-2011
824,Revenue,CCHD,Elderly Purchasing - South,Nursing Homes,Four Seasons Health Care,1489.99, 06-Sep-2011
825,Revenue,CCHD,Elderly Purchasing - South,Nursing Homes,Four Seasons Health Care,1345.8, 06-Sep-2011
826,Revenue,CCHD,Frenchay Hospital Purchasing,Nursing Homes,Four Seasons Health Care,9629.49, 06-Sep-2011
827,Revenue,CCHD,Frenchay Hospital Purchasing,Nursing Homes,Four Seasons Health Care,1349, 06-Sep-2011
828,Revenue,CCHD,Cash for Change Discharges,Nursing Homes,Four Seasons Health Care,1349, 06-Sep-2011
829,Revenue,CCHD,Elderly Purchasing - South,Nursing Homes,Four Seasons Health Care,1349, 06-Sep-2011
830,Revenue,CCHD,Elderly Purchasing - South,Nursing Homes,Four Seasons Health Care,1245.4, 06-Sep-2011
831,Revenue,CCHD,Southmead Hospital Purchasing,Residential Homes,Four Seasons Health Care,580.48, 06-Sep-2011
832,Revenue,CCHD,Frenchay Hospital Purchasing,Nursing Homes,Four Seasons Health Care,1349, 06-Sep-2011
833,Revenue,CCHD,Elderly Purchasing - South,Nursing Homes,Four Seasons Health Care,1046.64, 06-Sep-2011
834,Revenue,CCHD,Southmead Hospital Purchasing,Nursing Homes,Four Seasons Health Care,1253.28, 06-Sep-2011
835,Revenue,CCHD,Elderly Purchasing - South,Nursing Homes,Four Seasons Health Care,1349, 06-Sep-2011
836,Revenue,CCHD,Elderly Purchasing - South,Nursing Homes,Four Seasons Health Care,1290.4, 06-Sep-2011
837,Revenue,CCHD,Elderly Purchasing - South,Residential Homes,Four Seasons Health Care,948.64, 06-Sep-2011
838,Revenue,CCHD,Elderly Purchasing - North,Nursing Homes,Four Seasons Health Care,1313, 06-Sep-2011
839,Revenue,CCHD,Frenchay Hospital Purchasing,Nursing Homes,Four Seasons Health Care,1052.2, 06-Sep-2011
840,Revenue,CCHD,Elderly Mental Health,Residential Homes,Four Seasons Health Care,1056.64, 06-Sep-2011
841,Revenue,CCHD,Frenchay Hospital Purchasing,Residential Homes,Four Seasons Health Care,1063.88, 06-Sep-2011
842,Revenue,CCHD,Elderly Purchasing - South,Nursing Homes,Four Seasons Health Care,1349, 06-Sep-2011
843,Revenue,CCHD,Elderly Purchasing - South,Nursing Homes,Four Seasons Health Care,915.4, 06-Sep-2011
844,Revenue,CCHD,Elderly Purchasing - South,Nursing Homes,Four Seasons Health Care,1291.44, 06-Sep-2011
845,Revenue,CCHD,Elderly Mental Health,Nursing Homes,Four Seasons Health Care,1302.2, 06-Sep-2011
846,Revenue,CCHD,Elderly Purchasing - South,Nursing Homes,Four Seasons Health Care,1341.32, 06-Sep-2011
847,Revenue,CCHD,Frenchay Hospital Purchasing,Nursing Homes,Four Seasons Health Care,1297, 06-Sep-2011
848,Revenue,CCHD,Elderly Mental Health,Nursing Homes,Four Seasons Health Care,1199.32, 06-Sep-2011
849,Revenue,CCHD,Southmead Hospital Purchasing,Nursing Homes,Four Seasons Health Care,1007.24, 06-Sep-2011
850,Revenue,CCHD,Elderly Purchasing - South,Residential Homes,Four Seasons Health Care,570.6, 06-Sep-2011
851,Revenue,CCHD,Elderly Purchasing - North,Nursing Homes,Four Seasons Health Care,1000, 06-Sep-2011
852,Revenue,CCHD,Frenchay Hospital Purchasing,Nursing Homes,Four Seasons Health Care,1517, 06-Sep-2011
853,Revenue,CCHD,Frenchay Hospital Purchasing,Nursing Homes,Four Seasons Health Care,1283.16, 06-Sep-2011
854,Revenue,CCHD,Southmead Hospital Purchasing,Nursing Homes,Four Seasons Health Care,1507.68, 06-Sep-2011
855,Revenue,CCHD,Southmead Hospital Purchasing,Residential Homes,Four Seasons Health Care,1232, 06-Sep-2011
856,Revenue,CCHD,Elderly Mental Health,Nursing Homes,Four Seasons Health Care,1134.44, 06-Sep-2011
857,Revenue,CCHD,Elderly Purchasing - North,Residential Homes,Four Seasons Health Care,6307.35, 06-Sep-2011
858,Revenue,CCHD,Elderly Purchasing - North,Residential Homes,Four Seasons Health Care,1143.08, 06-Sep-2011
859,Revenue,CCHD,South Glos Users in South Glos Homes,Nursing Homes,Four Seasons Health Care,1630.5, 06-Sep-2011
860,Revenue,CCHD,Elderly Mental Health,Nursing Homes,Four Seasons Health Care,1342.6, 06-Sep-2011
861,Revenue,CCHD,Frenchay Hospital Purchasing,Nursing Homes,Four Seasons Health Care,1240.04, 06-Sep-2011
862,Revenue,CCHD,Elderly Purchasing - South,Nursing Homes,Four Seasons Health Care,1206.96, 06-Sep-2011
863,Revenue,CCHD,Elderly Mental Health,Nursing Homes,Four Seasons Health Care,1313, 06-Sep-2011
864,Revenue,CCHD,Frenchay Hospital Purchasing,Nursing Homes,Four Seasons Health Care,1268.08, 06-Sep-2011
865,Revenue,CCHD,Elderly Purchasing - South,Nursing Homes,Four Seasons Health Care,1349, 06-Sep-2011
866,Revenue,CCHD,Elderly Purchasing - South,Nursing Homes,Four Seasons Health Care,1459.32, 06-Sep-2011
867,Revenue,CCHD,Southmead Hospital Purchasing,Nursing Homes,Four Seasons Health Care,1349, 06-Sep-2011
868,Revenue,CCHD,Elderly Purchasing - South,Nursing Homes,Four Seasons Health Care,1349, 06-Sep-2011
869,Revenue,CCHD,Southmead Hospital Purchasing,Nursing Homes,Four Seasons Health Care,726, 06-Sep-2011
870,Revenue,CCHD,Elderly Mental Health,Nursing Homes,Four Seasons Health Care,1431.72, 06-Sep-2011
871,Revenue,CCHD,Elderly Purchasing - North,Nursing Homes,Four Seasons Health Care,1248.52, 06-Sep-2011
872,Revenue,CCHD,Elderly Purchasing - North,Nursing Homes,Four Seasons Health Care,1103.48, 06-Sep-2011
873,Revenue,CCHD,Southmead Hospital Purchasing,Nursing Homes,Four Seasons Health Care,1336.4, 06-Sep-2011
874,Revenue,CCHD,Frenchay Hospital Purchasing,Nursing Homes,Four Seasons Health Care,1284.56, 06-Sep-2011
875,Revenue,CCHD,Elderly Mental Health,Nursing Homes,Four Seasons Health Care,1517, 06-Sep-2011
876,Revenue,CCHD,Elderly Purchasing - North,Residential Homes,Four Seasons Health Care,729.44, 06-Sep-2011
877,Revenue,CCHD,Elderly Purchasing - North,Nursing Homes,Four Seasons Health Care,719.68, 06-Sep-2011
878,Revenue,CCHD,Elderly Mental Health,Nursing Homes,Four Seasons Health Care,1416, 06-Sep-2011
879,Revenue,CCHD,Frenchay Hospital Purchasing,Nursing Homes,Four Seasons Health Care,1323.8, 06-Sep-2011
880,Revenue,CCHD,Elderly Purchasing - North,Nursing Homes,Four Seasons Health Care,1453, 06-Sep-2011
881,Revenue,CCHD,Elderly Purchasing - North,Nursing Homes,Four Seasons Health Care,1349, 06-Sep-2011
882,Revenue,CCHD,Elderly Mental Health,Residential Homes,Four Seasons Health Care,658.4, 06-Sep-2011
883,Revenue,CCHD,Elderly Purchasing - South,Residential Homes,Four Seasons Health Care,1229, 06-Sep-2011
884,Revenue,CCHD,Elderly Purchasing - North,Nursing Homes,Four Seasons Health Care,1346.48, 06-Sep-2011
885,Revenue,CCHD,Southmead Hospital Purchasing,Residential Homes,Four Seasons Health Care,729.36, 06-Sep-2011
886,Revenue,CCHD,Elderly Mental Health,Nursing Homes,Four Seasons Health Care,1402.52, 06-Sep-2011
887,Revenue,CCHD,Southmead Hospital Purchasing,Nursing Homes,Four Seasons Health Care,1349, 06-Sep-2011
888,Revenue,CCHD,Frenchay Hospital Purchasing,Nursing Homes,Four Seasons Health Care,1199.6, 06-Sep-2011
889,Revenue,CCHD,Southmead Hospital Purchasing,Nursing Homes,Four Seasons Health Care,3034, 06-Sep-2011
890,Revenue,CCHD,Elderly Purchasing - North,Nursing Homes,Four Seasons Health Care,1458.32, 06-Sep-2011
891,Revenue,CCHD,Elderly Purchasing - South,Nursing Homes,Four Seasons Health Care,1276.6, 06-Sep-2011
892,Revenue,CCHD,Frenchay Hospital Purchasing,Nursing Homes,Four Seasons Health Care,1161.72, 06-Sep-2011
893,Revenue,CCHD,Elderly Mental Health,Residential Homes,Four Seasons Health Care,1202.24, 06-Sep-2011
894,Revenue,CCHD,Southmead Hospital Purchasing,Nursing Homes,Four Seasons Health Care,1349, 06-Sep-2011
895,Revenue,CCHD,Elderly Mental Health,Nursing Homes,Four Seasons Health Care,1349, 06-Sep-2011
896,Revenue,CCHD,Elderly Mental Health,Residential Homes,Four Seasons Health Care,1344.16, 06-Sep-2011
897,Revenue,CCHD,Elderly Purchasing - North,Nursing Homes,Four Seasons Health Care,1341.32, 06-Sep-2011
898,Revenue,CCHD,Elderly Mental Health,Nursing Homes,Four Seasons Health Care,1034.84, 06-Sep-2011
899,Revenue,CCHD,Frenchay Hospital Purchasing,Nursing Homes,Four Seasons Health Care,1349, 06-Sep-2011
900,Revenue,CCHD,Elderly Mental Health,Residential Homes,Four Seasons Health Care,1139.16, 06-Sep-2011
901,Revenue,CCHD,Southmead Hospital Purchasing,Nursing Homes,Four Seasons Health Care,833.4, 06-Sep-2011
902,Revenue,CCHD,Frenchay Hospital Purchasing,Nursing Homes,Four Seasons Health Care,1349, 06-Sep-2011
903,Revenue,CCHD,Frenchay Hospital Purchasing,Nursing Homes,Four Seasons Health Care,1304.44, 06-Sep-2011
904,Revenue,CCHD,Elderly Purchasing - South,Nursing Homes,Four Seasons Health Care,1251.72, 06-Sep-2011
905,Revenue,CCHD,South Glos Users in South Glos Homes,Nursing Homes,Four Seasons Health Care,1164.64, 06-Sep-2011
906,Revenue,CCHD,Elderly Mental Health,Nursing Homes,Four Seasons Health Care,1224.72, 06-Sep-2011
907,Revenue,CCHD,Frenchay Hospital Purchasing,Nursing Homes,Four Seasons Health Care,1277, 06-Sep-2011
908,Revenue,CCHD,Frenchay Hospital Purchasing,Nursing Homes,Four Seasons Health Care,803.08, 06-Sep-2011
909,Revenue,CCHD,Frenchay Hospital Purchasing,Nursing Homes,Four Seasons Health Care,1011.75, 06-Sep-2011
910,Revenue,CCHD,Frenchay Hospital Purchasing,Nursing Homes,Four Seasons Health Care,1349, 06-Sep-2011
911,Revenue,CCHD,South Glos Users in South Glos Homes,Nursing Homes,Four Seasons Health Care,1288.87, 06-Sep-2011
912,Revenue,CCHD,Frenchay Hospital Purchasing,Nursing Homes,Four Seasons Health Care,1137, 06-Sep-2011
913,Revenue,CCHD,Frenchay Hospital Purchasing,Nursing Homes,Four Seasons Health Care,1349, 06-Sep-2011
914,Revenue,CCHD,Frenchay Hospital Purchasing,Nursing Homes,Four Seasons Health Care,1349, 06-Sep-2011
915,Revenue,CCHD,Frenchay Hospital Purchasing,Nursing Homes,Four Seasons Health Care,1365, 06-Sep-2011
916,Revenue,CCHD,Elderly Purchasing - South,Nursing Homes,Four Seasons Health Care,1057.92, 06-Sep-2011
917,Revenue,CCHD,Southmead Hospital Purchasing,Nursing Homes,Four Seasons Health Care,1349, 06-Sep-2011
918,Revenue,CCHD,Elderly Purchasing - North,Nursing Homes,Four Seasons Health Care,857.96, 06-Sep-2011
919,Revenue,CCHD,Southmead Hospital Purchasing,Residential Homes,Four Seasons Health Care,1103.44, 06-Sep-2011
920,Revenue,CCHD,Southmead Hospital Purchasing,Nursing Homes,Four Seasons Health Care,1349, 06-Sep-2011
921,Revenue,CCHD,Southmead Hospital Purchasing,Nursing Homes,Four Seasons Health Care,1317.56, 06-Sep-2011
922,Revenue,CCHD,Purchasing Phys Dis - North,Nursing Homes,Four Seasons Health Care,1355.08, 06-Sep-2011
923,Revenue,CCHD,Elderly Purchasing - South,Nursing Homes,Four Seasons Health Care,1225.28, 06-Sep-2011
924,Revenue,CCHD,Southmead Hospital Purchasing,Nursing Homes,Four Seasons Health Care,1275.28, 06-Sep-2011
925,Revenue,CCHD,Elderly Mental Health,Residential Homes,Four Seasons Health Care,1375.96, 06-Sep-2011
926,Revenue,CCHD,Elderly Mental Health,Residential Homes,Four Seasons Health Care,1280.12, 06-Sep-2011
927,Revenue,CCHD,Southmead Hospital Purchasing,Residential Homes,Four Seasons Health Care,1151.56, 06-Sep-2011
928,Revenue,CCHD,South Glos Users in South Glos Homes,Nursing Homes,Four Seasons Health Care,791.96, 06-Sep-2011
929,Revenue,CCHD,Elderly PWLD - PS,Residential Homes,Four Seasons Health Care,1229, 06-Sep-2011
930,Revenue,CCHD,Frenchay Hospital Purchasing,Nursing Homes,Four Seasons Health Care,1349, 06-Sep-2011
931,Revenue,CCHD,Elderly Purchasing - South,Nursing Homes,Four Seasons Health Care,1265.52, 06-Sep-2011
932,Revenue,CCHD,Elderly Purchasing - South,Nursing Homes,Four Seasons Health Care,1335.64, 06-Sep-2011
933,Revenue,CCHD,Elderly Purchasing - South,Residential Homes,Four Seasons Health Care,859.68, 06-Sep-2011
934,Revenue,CCHD,Elderly Purchasing - South,Residential Homes,Four Seasons Health Care,1008.32, 06-Sep-2011
935,Revenue,CCHD,Frenchay Hospital Purchasing,Nursing Homes,Four Seasons Health Care,1341.12, 06-Sep-2011
936,Revenue,CCHD,Southmead Hospital Purchasing,Residential Homes,Four Seasons Health Care,2979.16, 06-Sep-2011
937,Revenue,CCHD,Southmead Hospital Purchasing,Residential Homes,Four Seasons Health Care,1367.48, 06-Sep-2011
938,Revenue,CCHD,Elderly Purchasing - South,Nursing Homes,Four Seasons Health Care,1209.56, 06-Sep-2011
939,Revenue,CCHD,Frenchay Hospital Purchasing,Nursing Homes,Four Seasons Health Care,774.32, 06-Sep-2011
940,Revenue,CCHD,Elderly Purchasing - South,Residential Homes,Four Seasons Health Care,1102.04, 06-Sep-2011
941,Revenue,CCHD,Elderly Purchasing - South,Nursing Homes,Four Seasons Health Care,960.32, 06-Sep-2011
942,Revenue,CCHD,Frenchay Hospital Purchasing,Residential Homes,Four Seasons Health Care,1227.8, 06-Sep-2011
943,Revenue,CCHD,Frenchay Hospital Purchasing,Residential Homes,Four Seasons Health Care,1195.84, 06-Sep-2011
944,Revenue,CCHD,Section 117 Placements,Residential Homes,Four Seasons Health Care,1688, 06-Sep-2011
945,Revenue,CCHD,Frenchay Hospital Purchasing,Residential Homes,Four Seasons Health Care,1092.96, 06-Sep-2011
946,Revenue,CCHD,Elderly Mental Health,Residential Homes,Four Seasons Health Care,861.4, 06-Sep-2011
947,Revenue,CCHD,South Glos Users in South Glos Homes,Nursing Homes,Four Seasons Health Care,916.19, 06-Sep-2011
948,Revenue,CCHD,Frenchay Hospital Purchasing,Residential Homes,Four Seasons Health Care,1237.4, 06-Sep-2011
949,Revenue,CCHD,Elderly Purchasing - South,Residential Homes,Four Seasons Health Care,3468, 06-Sep-2011
950,Revenue,CCHD,Elderly Purchasing - South,Residential Homes,Four Seasons Health Care,562.76, 06-Sep-2011
951,Revenue,CCHD,Frenchay Hospital Purchasing,Nursing Homes,Four Seasons Health Care,1361, 06-Sep-2011
952,Revenue,CCHD,South Glos Users in South Glos Homes,Nursing Homes,Four Seasons Health Care,807.49, 06-Sep-2011
953,Revenue,CCHD,Frenchay Hospital Purchasing,Nursing Homes,Four Seasons Health Care,1345.8, 06-Sep-2011
954,Revenue,CCHD,Elderly Mental Health,Residential Homes,Four Seasons Health Care,954.64, 06-Sep-2011
955,Revenue,CCHD,Southmead Hospital Purchasing,Nursing Homes,Four Seasons Health Care,739, 06-Sep-2011
956,Revenue,CCHD,Elderly Mental Health,Nursing Homes,Four Seasons Health Care,1339.16, 06-Sep-2011
957,Revenue,CCHD,Elderly Purchasing - North,Nursing Homes,Four Seasons Health Care,1285.16, 06-Sep-2011
958,Revenue,CCHD,Frenchay Hospital Purchasing,Nursing Homes,Four Seasons Health Care,774.32, 06-Sep-2011
959,Revenue,CCHD,Elderly Purchasing - North,Nursing Homes,Four Seasons Health Care,1349, 06-Sep-2011
960,Revenue,CCHD,Elderly Purchasing - South,Residential Homes,Four Seasons Health Care,1162.04, 06-Sep-2011
961,Revenue,CCHD,Freeways,Residential Homes,Freeways Trust Limited,53092.72, 07-Sep-2011
962,Revenue,CCHD,Under 65s PWLD - KD,Residential Homes,Freeways Trust Ltd,2757, 06-Sep-2011
963,Revenue,CCHD,S28A - Under 65,Residential Homes,Freeways Trust Ltd,2838.8, 06-Sep-2011
964,Revenue,CCHD,Under 65s PWLD - KD,Residential Homes,Freeways Trust Ltd,2206.88, 06-Sep-2011
965,Revenue,CCHD,Under 65s PWLD - KD,Residential Homes,Freeways Trust Ltd,2217.28, 06-Sep-2011
966,Revenue,CCHD,Under 65s PWLD - KD,Residential Homes,Freeways Trust Ltd,2633.48, 06-Sep-2011
967,Revenue,CCHD,Under 65s PWLD - KH,Residential Homes,Freeways Trust Ltd,3216.52, 06-Sep-2011
968,Revenue,CCHD,Elderly PWLD - KD,Residential Homes,Freeways Trust Ltd,2192.48, 06-Sep-2011
969,Revenue,CCHD,Under 65s PWLD - KH,Residential Homes,Freeways Trust Ltd,2335.12, 06-Sep-2011
970,Revenue,CCHD,Under 65s PWLD - KH,Residential Homes,Freeways Trust Ltd,2633.48, 06-Sep-2011
971,Revenue,CCHD,Section 117 Placements MH Younger,Residential Homes,Freeways Trust Ltd,3238, 06-Sep-2011
972,Revenue,CCHD,Frenchay Hospital Purchasing,Nursing Homes,Frenchay Park Nursing Home,1198, 06-Sep-2011
973,Revenue,CCHD,Directorate,Advertising - General,Gatenby Sanderson Limited,5550, 30-Sep-2011
974,Revenue,CCHD,Directorate,Other Supplies & Services,Gatenby Sanderson Limited,1200, 29-Sep-2011
975,Revenue,CCHD,Elderly Purchasing - North,Nursing Homes,Glebe House Nursing Home,1366.64, 06-Sep-2011
976,Revenue,CCHD,Elderly Purchasing - South,Residential Homes,Glebe House Nursing Home,3045.2, 06-Sep-2011
977,Revenue,CCHD,Elderly Purchasing - South,Nursing Homes,Glebe House Nursing Home,2365.2, 06-Sep-2011
978,Revenue,CCHD,Elderly Purchasing - North,Nursing Homes,Glebe House Nursing Home,1285, 06-Sep-2011
979,Revenue,CCHD,Elderly Purchasing - North,Nursing Homes,Glebe House Nursing Home,1285, 06-Sep-2011
980,Revenue,CCHD,Southmead Hospital Purchasing,Nursing Homes,Glebe House Nursing Home,1644, 06-Sep-2011
981,Revenue,CCHD,Section 117 Placements MH Younger,Residential Homes,Glebe House Nursing Home,6563.69, 06-Sep-2011
982,Revenue,CCHD,Elderly Purchasing - North,Nursing Homes,Glebe House Nursing Home,1929.5, 06-Sep-2011
983,Revenue,CCHD,Purchasing Phys Dis - South,Nursing Homes,Glenside Centre For Brain Injury,6955.52, 06-Sep-2011
984,Revenue,CCHD,Under 65s PWLD - KH,Residential Homes,Gordena Care Home,2040.52, 06-Sep-2011
985,Revenue,CCHD,Elderly PWLD - KH,Residential Homes,Gordena Care Home,4624.36, 06-Sep-2011
986,Revenue,CCHD,Elderly PWLD - KH,Residential Homes,Gordena Care Home,2866.12, 06-Sep-2011
987,Revenue,CCHD,Under 65s PWLD - KH,Residential Homes,Gordena Care Home,2036.68, 06-Sep-2011
988,Revenue,CCHD,Home Care Purch South,Other Small Contracts,Greenbanks Homecare (Western) Limited,4153.36, 06-Sep-2011
989,Revenue,CCHD,Home Care Purch North,Other Small Contracts,Greenbanks Homecare (Western) Limited,100.36, 06-Sep-2011
990,Revenue,CCHD,Day Care - South,Private & Voluntary Day Care,Greenbanks Homecare (Western) Limited,177.56, 06-Sep-2011
991,Revenue,CCHD,Day Care - North,Private & Voluntary Day Care,Greenbanks Homecare (Western) Limited,50.18, 06-Sep-2011
992,Revenue,CCHD,Carer`s Grant - South,Carers Breaks & Services,Greenbanks Homecare (Western) Limited,108.08, 06-Sep-2011
993,Revenue,CCHD,Elderly MH Home Care,Other Small Contracts,Greenbanks Homecare (Western) Limited,343.54, 06-Sep-2011
994,Revenue,CCHD,Home Care Purch South,Other Small Contracts,Greenbanks Homecare (Western) Limited,4103.18, 06-Sep-2011
995,Revenue,CCHD,Home Care Purch North,Other Small Contracts,Greenbanks Homecare (Western) Limited,158.26, 06-Sep-2011
996,Revenue,CCHD,Day Care - South,Private & Voluntary Day Care,Greenbanks Homecare (Western) Limited,154.4, 06-Sep-2011
997,Revenue,CCHD,Day Care - North,Private & Voluntary Day Care,Greenbanks Homecare (Western) Limited,61.76, 06-Sep-2011
998,Revenue,CCHD,Carer`s Grant - South,Carers Breaks & Services,Greenbanks Homecare (Western) Limited,108.08, 06-Sep-2011
999,Revenue,CCHD,Elderly MH Home Care,Other Small Contracts,Greenbanks Homecare (Western) Limited,316.52, 06-Sep-2011
1000,Revenue,CCHD,Home Care Purch South,Other Small Contracts,Greenbanks Homecare (Western) Limited,4296.18, 06-Sep-2011
1001,Revenue,CCHD,Home Care Purch North,Other Small Contracts,Greenbanks Homecare (Western) Limited,165.98, 06-Sep-2011
1002,Revenue,CCHD,Day Care - South,Private & Voluntary Day Care,Greenbanks Homecare (Western) Limited,154.4, 06-Sep-2011
1003,Revenue,CCHD,Day Care - North,Private & Voluntary Day Care,Greenbanks Homecare (Western) Limited,61.76, 06-Sep-2011
1004,Revenue,CCHD,Carer`s Grant - South,Carers Breaks & Services,Greenbanks Homecare (Western) Limited,104.22, 06-Sep-2011
1005,Revenue,CCHD,Elderly MH Home Care,Other Small Contracts,Greenbanks Homecare (Western) Limited,389.86, 06-Sep-2011
1006,Revenue,CCHD,Home Care Purch South,Other Small Contracts,Greenbanks Homecare (Western) Limited,4369.52, 06-Sep-2011
1007,Revenue,CCHD,Home Care Purch North,Other Small Contracts,Greenbanks Homecare (Western) Limited,92.64, 06-Sep-2011
1008,Revenue,CCHD,Day Care - South,Private & Voluntary Day Care,Greenbanks Homecare (Western) Limited,88.78, 06-Sep-2011
1009,Revenue,CCHD,Day Care - North,Private & Voluntary Day Care,Greenbanks Homecare (Western) Limited,30.88, 06-Sep-2011
1010,Revenue,CCHD,Carer`s Grant - South,Carers Breaks & Services,Greenbanks Homecare (Western) Limited,108.08, 06-Sep-2011
1011,Revenue,CCHD,Elderly MH Home Care,Other Small Contracts,Greenbanks Homecare (Western) Limited,335.82, 06-Sep-2011
1012,Revenue,CCHD,Home Care Purch South,Other Small Contracts,Greenbanks Homecare (Western) Limited,4288.46, 09-Sep-2011
1013,Revenue,CCHD,Home Care Purch North,Other Small Contracts,Greenbanks Homecare (Western) Limited,115.8, 09-Sep-2011
1014,Revenue,CCHD,Day Care - South,Private & Voluntary Day Care,Greenbanks Homecare (Western) Limited,115.8, 09-Sep-2011
1015,Revenue,CCHD,Day Care - North,Private & Voluntary Day Care,Greenbanks Homecare (Western) Limited,61.76, 09-Sep-2011
1016,Revenue,CCHD,Carer`s Grant - South,Carers Breaks & Services,Greenbanks Homecare (Western) Limited,46.32, 09-Sep-2011
1017,Revenue,CCHD,Elderly MH Home Care,Other Small Contracts,Greenbanks Homecare (Western) Limited,358.98, 09-Sep-2011
1018,Revenue,CCHD,Home Care Purch South,Other Small Contracts,Greenbanks Homecare (Western) Limited,4373.38, 09-Sep-2011
1019,Revenue,CCHD,Home Care Purch North,Other Small Contracts,Greenbanks Homecare (Western) Limited,46.32, 09-Sep-2011
1020,Revenue,CCHD,Day Care - South,Private & Voluntary Day Care,Greenbanks Homecare (Western) Limited,92.64, 09-Sep-2011
1021,Revenue,CCHD,Day Care - North,Private & Voluntary Day Care,Greenbanks Homecare (Western) Limited,54.04, 09-Sep-2011
1022,Revenue,CCHD,Carer`s Grant - South,Carers Breaks & Services,Greenbanks Homecare (Western) Limited,46.32, 09-Sep-2011
1023,Revenue,CCHD,Elderly MH Home Care,Other Small Contracts,Greenbanks Homecare (Western) Limited,320.38, 09-Sep-2011
1024,Revenue,CCHD,Home Care Purch South,Other Small Contracts,Greenbanks Homecare (Western) Limited,4303.9, 09-Sep-2011
1025,Revenue,CCHD,Home Care Purch North,Other Small Contracts,Greenbanks Homecare (Western) Limited,123.52, 09-Sep-2011
1026,Revenue,CCHD,Day Care - South,Private & Voluntary Day Care,Greenbanks Homecare (Western) Limited,181.42, 09-Sep-2011
1027,Revenue,CCHD,Carer`s Grant - South,Carers Breaks & Services,Greenbanks Homecare (Western) Limited,104.22, 09-Sep-2011
1028,Revenue,CCHD,Elderly MH Home Care,Other Small Contracts,Greenbanks Homecare (Western) Limited,304.94, 09-Sep-2011
1029,Revenue,CCHD,Home Care Purch South,Other Small Contracts,Greenbanks Homecare (Western) Limited,4523.92, 09-Sep-2011
1030,Revenue,CCHD,Home Care Purch North,Other Small Contracts,Greenbanks Homecare (Western) Limited,146.68, 09-Sep-2011
1031,Revenue,CCHD,Day Care - South,Private & Voluntary Day Care,Greenbanks Homecare (Western) Limited,150.54, 09-Sep-2011
1032,Revenue,CCHD,Day Care - North,Private & Voluntary Day Care,Greenbanks Homecare (Western) Limited,54.04, 09-Sep-2011
1033,Revenue,CCHD,Carer`s Grant - South,Carers Breaks & Services,Greenbanks Homecare (Western) Limited,108.08, 09-Sep-2011
1034,Revenue,CCHD,Elderly MH Home Care,Other Small Contracts,Greenbanks Homecare (Western) Limited,362.84, 09-Sep-2011
1035,Revenue,CCHD,Home Care Purch South,Other Small Contracts,Greenbanks Homecare (Western) Limited,4319.34, 27-Sep-2011
1036,Revenue,CCHD,Home Care Purch North,Other Small Contracts,Greenbanks Homecare (Western) Limited,123.52, 27-Sep-2011
1037,Revenue,CCHD,Day Care - South,Private & Voluntary Day Care,Greenbanks Homecare (Western) Limited,142.82, 27-Sep-2011
1038,Revenue,CCHD,Day Care - North,Private & Voluntary Day Care,Greenbanks Homecare (Western) Limited,50.18, 27-Sep-2011
1039,Revenue,CCHD,Carer`s Grant - South,Carers Breaks & Services,Greenbanks Homecare (Western) Limited,123.52, 27-Sep-2011
1040,Revenue,CCHD,Elderly MH Home Care,Other Small Contracts,Greenbanks Homecare (Western) Limited,366.7, 27-Sep-2011
1041,Revenue,CCHD,Home Care Purch South,Other Small Contracts,Greenbanks Homecare (Western) Limited,4520.06, 27-Sep-2011
1042,Revenue,CCHD,Home Care Purch North,Other Small Contracts,Greenbanks Homecare (Western) Limited,146.68, 27-Sep-2011
1043,Revenue,CCHD,Day Care - South,Private & Voluntary Day Care,Greenbanks Homecare (Western) Limited,138.96, 27-Sep-2011
1044,Revenue,CCHD,Day Care - North,Private & Voluntary Day Care,Greenbanks Homecare (Western) Limited,84.92, 27-Sep-2011
1045,Revenue,CCHD,Carer`s Grant - South,Carers Breaks & Services,Greenbanks Homecare (Western) Limited,108.08, 27-Sep-2011
1046,Revenue,CCHD,Elderly MH Home Care,Other Small Contracts,Greenbanks Homecare (Western) Limited,351.26, 27-Sep-2011
1047,Revenue,CCHD,Home Care Purch South,Other Small Contracts,Greenbanks Homecare (Western) Limited,4531.64, 30-Sep-2011
1048,Revenue,CCHD,Home Care Purch North,Other Small Contracts,Greenbanks Homecare (Western) Limited,165.98, 30-Sep-2011
1049,Revenue,CCHD,Day Care - South,Private & Voluntary Day Care,Greenbanks Homecare (Western) Limited,181.42, 30-Sep-2011
1050,Revenue,CCHD,Day Care - North,Private & Voluntary Day Care,Greenbanks Homecare (Western) Limited,69.48, 30-Sep-2011
1051,Revenue,CCHD,Carer`s Grant - South,Carers Breaks & Services,Greenbanks Homecare (Western) Limited,108.08, 30-Sep-2011
1052,Revenue,CCHD,Elderly MH Home Care,Other Small Contracts,Greenbanks Homecare (Western) Limited,274.06, 30-Sep-2011
1053,Revenue,CCHD,Elderly Purchasing - North,Residential Homes,Greensleeves,2583.84, 06-Sep-2011
1054,Revenue,CCHD,Elderly Purchasing - South,Residential Homes,Gwendoline House,1465, 06-Sep-2011
1055,Revenue,CCHD,Elderly Purchasing - South,Residential Homes,Gwendoline House,1146.28, 06-Sep-2011
1056,Revenue,CCHD,Elderly Purchasing - South,Residential Homes,Gwendoline House,1202.32, 06-Sep-2011
1057,Revenue,CCHD,Elderly Mental Health,Residential Homes,Gwendoline House,1219.6, 06-Sep-2011
1058,Revenue,CCHD,Elderly Purchasing - South,Residential Homes,Gwendoline House,1413.96, 06-Sep-2011
1059,Revenue,CCHD,Elderly Purchasing - South,Residential Homes,Gwendoline House,1111.56, 06-Sep-2011
1060,Revenue,CCHD,Elderly Purchasing - South,Residential Homes,Gwendoline House,987.72, 06-Sep-2011
1061,Revenue,CCHD,Elderly Purchasing - South,Residential Homes,Harefield Hall,1471.92, 06-Sep-2011
1062,Revenue,CCHD,Elderly Purchasing - South,Residential Homes,Harefield Hall,1256.88, 06-Sep-2011
1063,Revenue,CCHD,Elderly Mental Health,Residential Homes,Harefield Hall,1109.4, 06-Sep-2011
1064,Revenue,CCHD,Alexandra Way,Furniture & Fittings Loose,Harvey Servicing & Engineering Limited,960, 16-Sep-2011
1065,Revenue,CCHD,Elderly Mental Health,Residential Homes,Heathwood Rest Home,1805, 06-Sep-2011
1066,Revenue,CCHD,Supported Living - KH,Private & Voluntary Home Care,HFT,3660.6, 12-Sep-2011
1067,Revenue,CCHD,Southmead Hospital Purchasing,Residential Homes,Highgate Studios,1501, 06-Sep-2011
1068,Revenue,CCHD,Under 65s PWLD - KD,Residential Homes,Holmleigh Care Homes Ltd,3908.68, 06-Sep-2011
1069,Revenue,CCHD,Under 65s PWLD - KH,Residential Homes,Holmleigh Care Homes Ltd,4909.68, 06-Sep-2011
1070,Revenue,CCHD,Under 65s PWLD - KD,Residential Homes,Home Farm,7115.92, 06-Sep-2011
1071,Revenue,CCHD,Under 65s PWLD - KD,Residential Homes,Home Farm Trust Ltd  5-6 Brook Office Pa,2749.36, 06-Sep-2011
1072,Revenue,CCHD,Under 65s PWLD - KD,Residential Homes,Home Farm Trust Ltd  5-6 Brook Office Pa,2209.88, 06-Sep-2011
1073,Revenue,CCHD,Under 65s PWLD - PS,Residential Homes,Home Farm Trust Ltd  5-6 Brook Office Pa,2398.8, 06-Sep-2011
1074,Revenue,CCHD,Under 65s PWLD - PS,Residential Homes,Home Farm Trust Ltd  5-6 Brook Office Pa,3098.8, 06-Sep-2011
1075,Revenue,CCHD,Under 65s PWLD - KD,Residential Homes,Home Farm Trust Ltd  5-6 Brook Office Pa,3319.88, 06-Sep-2011
1076,Revenue,CCHD,Under 65s PWLD - PS,Residential Homes,Home Farm Trust Ltd  5-6 Brook Office Pa,4428.64, 06-Sep-2011
1077,Revenue,CCHD,Under 65s PWLD - KD,Residential Homes,Home From Home Care Ltd,13155.6, 06-Sep-2011
1078,Revenue,CCHD,Elderly Purchasing - North,Nursing Homes,Horfield Care Limited,5674.83, 13-Sep-2011
1079,Revenue,CCHD,Frenchay Hospital Purchasing,Nursing Homes,Horfield Care Limited,6499.16, 13-Sep-2011
1080,Revenue,CCHD,Southmead Hospital Purchasing,Nursing Homes,Horfield Care Limited,2675.7, 13-Sep-2011
1081,Revenue,CCHD,Supporting People Programme,Grants to Voluntary Bodies,Housing 21,828, 08-Sep-2011
1082,Revenue,CCHD,Home Care Purch North,Private & Voluntary Home Care,Housing 21,35220.9, 09-Sep-2011
1083,Revenue,CCHD,Home Care Purch South,Private & Voluntary Home Care,Housing 21,22092.54, 01-Sep-2011
1084,Revenue,CCHD,Home Care Purch South,Private & Voluntary Home Care,Housing 21,22092.54, 30-Sep-2011
1085,Revenue,CCHD,RSL Running Costs,Fees - General,Housing Partners Limited,793.33, 05-Sep-2011
1086,Revenue,CCHD,Training - Adult Services,Training Expenses,Inclusive Trading CIC,560, 14-Sep-2011
1087,Revenue,CCHD,Elderly Purchasing - South,Residential Homes,Jah-Jireh Charity Homes,1241, 06-Sep-2011
1088,Revenue,CCHD,Training - Adult Services,Training Expenses,Jo Williams,782, 13-Sep-2011
1089,Revenue,CCHD,Under 65s PWLD - PS,Residential Homes,Keepers Cottage,1964.08, 06-Sep-2011
1090,Revenue,CCHD,Under 65s PWLD - KD,Residential Homes,Kelly House,3482.2, 06-Sep-2011
1091,Revenue,CCHD,S28A - Under 65,Residential Homes,Kelly House,3366.04, 06-Sep-2011
1092,Revenue,CCHD,Elderly Mental Health,Residential Homes,Kenver House Residential Home,1496.44, 06-Sep-2011
1093,Revenue,CCHD,Section 117 Placements,Residential Homes,Kenver House Residential Home,1848, 06-Sep-2011
1094,Revenue,CCHD,Elderly Mental Health,Residential Homes,Kenver House Residential Home,1358.84, 06-Sep-2011
1095,Revenue,CCHD,Elderly Mental Health,Residential Homes,Kenver House Residential Home,1034.01, 06-Sep-2011
1096,Revenue,CCHD,Southmead Hospital Purchasing,Residential Homes,Kenver House Residential Home,1833.96, 06-Sep-2011
1097,Revenue,CCHD,Southmead Hospital Purchasing,Residential Homes,Kenver House Residential Home,1510.32, 06-Sep-2011
1098,Revenue,CCHD,Frenchay Hospital Purchasing,Residential Homes,Kenver House Residential Home,1621, 06-Sep-2011
1099,Revenue,CCHD,Frenchay Hospital Purchasing,Residential Homes,Kenver House Residential Home,1595.28, 06-Sep-2011
1100,Revenue,CCHD,Frenchay Hospital Purchasing,Residential Homes,Kenver House Residential Home,947.49, 06-Sep-2011
1101,Revenue,CCHD,Frenchay Hospital Purchasing,Residential Homes,Kenver House Residential Home,1046.32, 06-Sep-2011
1102,Revenue,CCHD,Elderly Mental Health,Residential Homes,Kenver House Residential Home,1178.52, 06-Sep-2011
1103,Revenue,CCHD,Elderly Mental Health,Residential Homes,Kenver House Residential Home,1210.44, 06-Sep-2011
1104,Revenue,CCHD,Frenchay Hospital Purchasing,Residential Homes,Kenver House Residential Home,1409.04, 06-Sep-2011
1105,Revenue,CCHD,Elderly Purchasing - South,Residential Homes,Kenver House Residential Home,1228.24, 06-Sep-2011
1106,Revenue,CCHD,Elderly Mental Health,Residential Homes,Kenver House Residential Home,1174.16, 06-Sep-2011
1107,Revenue,CCHD,Elderly Mental Health,Residential Homes,Kenver House Residential Home,1387.64, 06-Sep-2011
1108,Revenue,CCHD,Elderly Purchasing - South,Residential Homes,Kenver House Residential Home,1382.24, 06-Sep-2011
1109,Revenue,CCHD,Frenchay Hospital Purchasing,Residential Homes,Kenver House Residential Home,1550.32, 06-Sep-2011
1110,Revenue,CCHD,Frenchay Hospital Purchasing,Residential Homes,Kenver House Residential Home,1621, 06-Sep-2011
1111,Revenue,CCHD,Elderly Purchasing - South,Residential Homes,Kenver House Residential Home,1565.12, 06-Sep-2011
1112,Revenue,CCHD,Elderly Mental Health,Residential Homes,Kenver House Residential Home,2895.84, 06-Sep-2011
1113,Revenue,CCHD,Elderly Mental Health,Residential Homes,Kenver House Residential Home,1284.48, 06-Sep-2011
1114,Revenue,CCHD,Supporting People Programme,Grants to Voluntary Bodies,Keyring Living Support Networks,2577.6, 08-Sep-2011
1115,Revenue,CCHD,Frenchay Hospital Purchasing,Residential Homes,Kingswood Lodge Care Centre,1135.84, 06-Sep-2011
1116,Revenue,CCHD,Supporting People Programme,Grants to Voluntary Bodies,Kingswood Young Homeless Project,2502.72, 13-Sep-2011
1117,Revenue,CCHD,Supporting People Programme,Grants to Voluntary Bodies,Kingswood Young Homeless Project,5133.12, 13-Sep-2011
1118,Revenue,CCHD,Under 65s PWLD - KH,Residential Homes,Kisimul Group,11078.72, 06-Sep-2011
1119,Revenue,CCHD,Supporting People Programme,Grants to Voluntary Bodies,Knightstone Housing Association Limited,516.64, 12-Sep-2011
1120,Revenue,CCHD,Supporting People Programme,Grants to Voluntary Bodies,Knightstone Housing Association Limited,1387.68, 12-Sep-2011
1121,Revenue,CCHD,Supporting People Programme,Grants to Voluntary Bodies,Knightstone Housing Association Limited,1968, 12-Sep-2011
1122,Revenue,CCHD,Supporting People Programme,Grants to Voluntary Bodies,Knightstone Housing Association Limited,2193.84, 12-Sep-2011
1123,Revenue,CCHD,Supporting People Programme,Grants to Voluntary Bodies,Knightstone Housing Association Limited,2194.4, 12-Sep-2011
1124,Revenue,CCHD,Supporting People Programme,Grants to Voluntary Bodies,Knightstone Housing Association Limited,6717.92, 12-Sep-2011
1125,Revenue,CCHD,Supporting People Programme,Grants to Voluntary Bodies,Knightstone Housing Association Limited,19485.84, 12-Sep-2011
1126,Revenue,CCHD,Contracts & Commissioning Team,Other Small Contracts,Kumari Care Limited,6000, 02-Sep-2011
1127,Revenue,CCHD,Contracts & Commissioning Team,Other Small Contracts,Kumari Care Limited,6000, 09-Sep-2011
1128,Revenue,CCHD,Contracts & Commissioning Team,Other Small Contracts,Kumari Care Limited,6000, 16-Sep-2011
1129,Revenue,CCHD,Contracts & Commissioning Team,Other Small Contracts,Kumari Care Limited,6000, 23-Sep-2011
1130,Revenue,CCHD,Contracts & Commissioning Team,Other Small Contracts,Kumari Care Limited,6000, 30-Sep-2011
1131,Revenue,CCHD,Home Care Purch North,Other Small Contracts,Kumari Care Limited,809.87, 13-Sep-2011
1132,Revenue,CCHD,Home Care Purch North,Other Small Contracts,Kumari Care Limited,809.87, 19-Sep-2011
1133,Revenue,CCHD,Section 117 Placements,Residential Homes,Laurel Court,3376, 30-Sep-2011
1134,Revenue,CCHD,Purchasing Phys Dis - North,Nursing Homes,Leonard Cheshire  National Account Centr,2588.28, 06-Sep-2011
1135,Revenue,CCHD,Purchasing Phys Dis - North,Residential Homes,Leonard Cheshire  National Account Centr,2303.36, 06-Sep-2011
1136,Revenue,CCHD,Under 65s PWLD - KH,Residential Homes,Leonard Cheshire  National Account Centr,2894.92, 06-Sep-2011
1137,Revenue,CCHD,Purchasing Phys Dis - North,Nursing Homes,Leonard Cheshire  National Account Centr,2693.2, 06-Sep-2011
1138,Revenue,CCHD,Elderly Purchasing - North,Residential Homes,Leonard Cheshire  National Account Centr,8141.87, 06-Sep-2011
1139,Revenue,CCHD,Under 65s PWLD - KD,Residential Homes,Leonard Cheshire  National Account Centr,5732.24, 06-Sep-2011
1140,Revenue,CCHD,Under 65s PWLD - KD,Residential Homes,Leonard Cheshire  National Account Centr,5730.72, 06-Sep-2011
1141,Revenue,CCHD,Elderly Purchasing - South,Residential Homes,Leonard Cheshire  National Account Centr,73550.82, 06-Sep-2011
1142,Revenue,CCHD,Purchasing Phys Dis - North,Nursing Homes,Leonard Cheshire  National Account Centr,2777.24, 06-Sep-2011
1143,Revenue,CCHD,Purchasing Phys Dis - North,Nursing Homes,Leonard Cheshire  National Account Centr,3143.8, 06-Sep-2011
1144,Revenue,CCHD,Purchasing Phys Dis - North,Residential Homes,Leonard Cheshire  National Account Centr,2837.08, 06-Sep-2011
1145,Revenue,CCHD,Purchasing Phys Dis - South,Nursing Homes,Leonard Cheshire  National Account Centr,3140.4, 06-Sep-2011
1146,Revenue,CCHD,Purchasing Phys Dis - South,Nursing Homes,Leonard Cheshire  National Account Centr,5956.56, 06-Sep-2011
1147,Revenue,CCHD,Purchasing Phys Dis - North,Nursing Homes,Leonard Cheshire  National Account Centr,5378.48, 06-Sep-2011
1148,Revenue,CCHD,Elderly Purchasing - South,Nursing Homes,Leonard Cheshire  National Account Centr,2569.93, 06-Sep-2011
1149,Revenue,CCHD,Southmead Hospital Purchasing,Nursing Homes,Leonard Cheshire  National Account Centr,2940.48, 06-Sep-2011
1150,Revenue,CCHD,South Glos Users in all other LA Homes,Nursing Homes,Leonard Cheshire  National Account Centr,598.4, 06-Sep-2011
1151,Revenue,CCHD,Purchasing Phys Dis - North,Nursing Homes,Leonard Cheshire  National Account Centr,3235.6, 06-Sep-2011
1152,Revenue,CCHD,Frenchay Hospital Purchasing,Residential Homes,Leonard Cheshire  National Account Centr,3687.8, 06-Sep-2011
1153,Revenue,CCHD,Elderly Purchasing - North,Nursing Homes,Leonard Cheshire  National Account Centr,4408.84, 06-Sep-2011
1154,Revenue,CCHD,S28A - Over 65,Residential Homes,Leonard Cheshire  National Account Centr,2841.44, 06-Sep-2011
1155,Revenue,CCHD,Under 65s PWLD - KD,Residential Homes,Littlecroft Residential Homes  Longcroft,6427.88, 06-Sep-2011
1156,Revenue,CCHD,Supported Living - KH,Private & Voluntary Home Care,Lloyds TSB Commercial Finance Limited,5522.91, 13-Sep-2011
1157,Revenue,CCHD,Home Care Purch South,Other Small Contracts,Lloyds TSB Commercial Finance Limited,379.17, 09-Sep-2011
1158,Revenue,CCHD,Home Care Purch North,Other Small Contracts,Lloyds TSB Commercial Finance Limited,5309.65, 09-Sep-2011
1159,Revenue,CCHD,Day Care - South,Private & Voluntary Day Care,Lloyds TSB Commercial Finance Limited,122.56, 09-Sep-2011
1160,Revenue,CCHD,Day Care - North,Private & Voluntary Day Care,Lloyds TSB Commercial Finance Limited,505.56, 09-Sep-2011
1161,Revenue,CCHD,Elderly MH Home Care,Other Small Contracts,Lloyds TSB Commercial Finance Limited,88.09, 09-Sep-2011
1162,Revenue,CCHD,Elderly MH non-res purchasing,Private & Voluntary Day Care,Lloyds TSB Commercial Finance Limited,45.96, 09-Sep-2011
1163,Revenue,CCHD,Home Care Purch South,Other Small Contracts,Lloyds TSB Commercial Finance Limited,478.75, 09-Sep-2011
1164,Revenue,CCHD,Home Care Purch North,Other Small Contracts,Lloyds TSB Commercial Finance Limited,4832.39, 09-Sep-2011
1165,Revenue,CCHD,Day Care - South,Private & Voluntary Day Care,Lloyds TSB Commercial Finance Limited,57.45, 09-Sep-2011
1166,Revenue,CCHD,Day Care - North,Private & Voluntary Day Care,Lloyds TSB Commercial Finance Limited,474.92, 09-Sep-2011
1167,Revenue,CCHD,Elderly MH Home Care,Other Small Contracts,Lloyds TSB Commercial Finance Limited,91.92, 09-Sep-2011
1168,Revenue,CCHD,Elderly MH non-res purchasing,Private & Voluntary Day Care,Lloyds TSB Commercial Finance Limited,45.96, 09-Sep-2011
1169,Revenue,CCHD,Home Care Purch South,Other Small Contracts,Lloyds TSB Commercial Finance Limited,367.68, 09-Sep-2011
1170,Revenue,CCHD,Home Care Purch North,Other Small Contracts,Lloyds TSB Commercial Finance Limited,5361.79, 09-Sep-2011
1171,Revenue,CCHD,Day Care - South,Private & Voluntary Day Care,Lloyds TSB Commercial Finance Limited,91.92, 09-Sep-2011
1172,Revenue,CCHD,Day Care - North,Private & Voluntary Day Care,Lloyds TSB Commercial Finance Limited,501.73, 09-Sep-2011
1173,Revenue,CCHD,Elderly MH Home Care,Other Small Contracts,Lloyds TSB Commercial Finance Limited,103.41, 09-Sep-2011
1174,Revenue,CCHD,Elderly MH non-res purchasing,Private & Voluntary Day Care,Lloyds TSB Commercial Finance Limited,45.96, 09-Sep-2011
1175,Revenue,CCHD,Home Care Purch South,Other Small Contracts,Lloyds TSB Commercial Finance Limited,417.47, 09-Sep-2011
1176,Revenue,CCHD,Home Care Purch North,Other Small Contracts,Lloyds TSB Commercial Finance Limited,5204.75, 09-Sep-2011
1177,Revenue,CCHD,Day Care - South,Private & Voluntary Day Care,Lloyds TSB Commercial Finance Limited,91.92, 09-Sep-2011
1178,Revenue,CCHD,Day Care - North,Private & Voluntary Day Care,Lloyds TSB Commercial Finance Limited,486.41, 09-Sep-2011
1179,Revenue,CCHD,Elderly MH Home Care,Other Small Contracts,Lloyds TSB Commercial Finance Limited,107.24, 09-Sep-2011
1180,Revenue,CCHD,Elderly MH non-res purchasing,Private & Voluntary Day Care,Lloyds TSB Commercial Finance Limited,45.96, 09-Sep-2011
1181,Revenue,CCHD,Home Care Purch South,Other Small Contracts,Lloyds TSB Commercial Finance Limited,547.69, 16-Sep-2011
1182,Revenue,CCHD,Home Care Purch North,Other Small Contracts,Lloyds TSB Commercial Finance Limited,6638.38, 16-Sep-2011
1183,Revenue,CCHD,Day Care - South,Private & Voluntary Day Care,Lloyds TSB Commercial Finance Limited,61.28, 16-Sep-2011
1184,Revenue,CCHD,Day Care - North,Private & Voluntary Day Care,Lloyds TSB Commercial Finance Limited,578.33, 16-Sep-2011
1185,Revenue,CCHD,Elderly MH Home Care,Other Small Contracts,Lloyds TSB Commercial Finance Limited,107.24, 16-Sep-2011
1186,Revenue,CCHD,Elderly MH non-res purchasing,Private & Voluntary Day Care,Lloyds TSB Commercial Finance Limited,42.13, 16-Sep-2011
1187,Revenue,CCHD,Home Care Purch South,Other Small Contracts,Lloyds TSB Commercial Finance Limited,582.16, 16-Sep-2011
1188,Revenue,CCHD,Home Care Purch North,Other Small Contracts,Lloyds TSB Commercial Finance Limited,6862.8, 16-Sep-2011
1189,Revenue,CCHD,Day Care - South,Private & Voluntary Day Care,Lloyds TSB Commercial Finance Limited,61.28, 16-Sep-2011
1190,Revenue,CCHD,Day Care - North,Private & Voluntary Day Care,Lloyds TSB Commercial Finance Limited,574.5, 16-Sep-2011
1191,Revenue,CCHD,Elderly MH Home Care,Other Small Contracts,Lloyds TSB Commercial Finance Limited,95.75, 16-Sep-2011
1192,Revenue,CCHD,Elderly MH non-res purchasing,Private & Voluntary Day Care,Lloyds TSB Commercial Finance Limited,45.96, 16-Sep-2011
1193,Revenue,CCHD,Home Care Purch South,Other Small Contracts,Lloyds TSB Commercial Finance Limited,1168.15, 16-Sep-2011
1194,Revenue,CCHD,Home Care Purch North,Other Small Contracts,Lloyds TSB Commercial Finance Limited,7053.11, 16-Sep-2011
1195,Revenue,CCHD,Day Care - South,Private & Voluntary Day Care,Lloyds TSB Commercial Finance Limited,91.92, 16-Sep-2011
1196,Revenue,CCHD,Day Care - North,Private & Voluntary Day Care,Lloyds TSB Commercial Finance Limited,528.54, 16-Sep-2011
1197,Revenue,CCHD,Elderly MH Home Care,Other Small Contracts,Lloyds TSB Commercial Finance Limited,99.58, 16-Sep-2011
1198,Revenue,CCHD,Elderly MH non-res purchasing,Private & Voluntary Day Care,Lloyds TSB Commercial Finance Limited,42.13, 16-Sep-2011
1199,Revenue,CCHD,Home Care Purch South,Other Small Contracts,Lloyds TSB Commercial Finance Limited,1283.05, 23-Sep-2011
1200,Revenue,CCHD,Home Care Purch North,Other Small Contracts,Lloyds TSB Commercial Finance Limited,6968.41, 23-Sep-2011
1201,Revenue,CCHD,Day Care - South,Private & Voluntary Day Care,Lloyds TSB Commercial Finance Limited,122.56, 23-Sep-2011
1202,Revenue,CCHD,Day Care - North,Private & Voluntary Day Care,Lloyds TSB Commercial Finance Limited,601.31, 23-Sep-2011
1203,Revenue,CCHD,Elderly MH Home Care,Other Small Contracts,Lloyds TSB Commercial Finance Limited,126.39, 23-Sep-2011
1204,Revenue,CCHD,Elderly MH non-res purchasing,Private & Voluntary Day Care,Lloyds TSB Commercial Finance Limited,42.13, 23-Sep-2011
1205,Revenue,CCHD,Home Care Purch South,Other Small Contracts,Lloyds TSB Commercial Finance Limited,1570.3, 30-Sep-2011
1206,Revenue,CCHD,Home Care Purch North,Other Small Contracts,Lloyds TSB Commercial Finance Limited,7266.95, 30-Sep-2011
1207,Revenue,CCHD,Day Care - South,Private & Voluntary Day Care,Lloyds TSB Commercial Finance Limited,122.56, 30-Sep-2011
1208,Revenue,CCHD,Day Care - North,Private & Voluntary Day Care,Lloyds TSB Commercial Finance Limited,555.35, 30-Sep-2011
1209,Revenue,CCHD,Elderly MH Home Care,Other Small Contracts,Lloyds TSB Commercial Finance Limited,321.72, 30-Sep-2011
1210,Revenue,CCHD,Elderly MH non-res purchasing,Private & Voluntary Day Care,Lloyds TSB Commercial Finance Limited,42.13, 30-Sep-2011
1211,Revenue,CCHD,Supported Living - PS,Private & Voluntary Home Care,Lloyds TSB Commercial Finance Limited,3880.05, 05-Sep-2011
1212,Revenue,CCHD,Supported Living - PS,Private & Voluntary Home Care,Lloyds TSB Commercial Finance Limited,3864.35, 13-Sep-2011
1213,Revenue,CCHD,Supported Living - KD,Private & Voluntary Home Care,Lloyds TSB Commercial Finance Limited,3749.17, 14-Sep-2011
1214,Revenue,CCHD,Supported Living - PS,Private & Voluntary Home Care,Lloyds TSB Commercial Finance Limited,6077.68, 06-Sep-2011
1215,Revenue,CCHD,Supported Living - PS,Private & Voluntary Home Care,Lloyds TSB Commercial Finance Limited,4788.43, 13-Sep-2011
1216,Revenue,CCHD,Supported Living - KD,Private & Voluntary Home Care,Lloyds TSB Commercial Finance Limited,3851.28, 14-Sep-2011
1217,Revenue,CCHD,Supported Living - PS,Private & Voluntary Home Care,Lloyds TSB Commercial Finance Limited,4021.12, 14-Sep-2011
1218,Revenue,CCHD,Supported Living - PS,Private & Voluntary Home Care,Lloyds TSB Commercial Finance Limited,3707.23, 05-Sep-2011
1219,Revenue,CCHD,Supported Living - PS,Private & Voluntary Home Care,Lloyds TSB Commercial Finance Limited,3691.65, 14-Sep-2011
1220,Revenue,CCHD,Supported Living - PS,Private & Voluntary Home Care,Lloyds TSB Commercial Finance Limited,3494.3, 05-Sep-2011
1221,Revenue,CCHD,Supported Living - PS,Private & Voluntary Home Care,Lloyds TSB Commercial Finance Limited,3499.49, 14-Sep-2011
1222,Revenue,CCHD,Purchase of Non-Res Care - KH,Private & Voluntary Day Care,Lloyds TSB Commercial Finance Limited,3043.5, 19-Sep-2011
1223,Revenue,CCHD,Supported Living - KD,Private & Voluntary Home Care,Lloyds TSB Commercial Finance Limited,3588.28, 14-Sep-2011
1224,Revenue,CCHD,Supported Living - KH,Private & Voluntary Home Care,Lloyds TSB Commercial Finance Limited,580.9, 14-Sep-2011
1225,Revenue,CCHD,Under 65s PWLD - KH,Residential Homes,Longton Court,9361.2, 06-Sep-2011
1226,Revenue,CCHD,Southmead Hospital Purchasing,Nursing Homes,Majestic 3 Limited,1018.52, 06-Sep-2011
1227,Revenue,CCHD,Supporting People Programme,Grants to Voluntary Bodies,Maples Community Housing Limited,2401.2, 13-Sep-2011
1228,Revenue,CCHD,Under 65s PWLD - PS,Residential Homes,Marsden Healthcare Limited,1575.76, 06-Sep-2011
1229,Revenue,CCHD,Under 65s PWLD - PS,Residential Homes,Marsden Healthcare Limited,865.12, 30-Sep-2011
1230,Revenue,CCHD,Elderly PWLD - KH,Residential Homes,Marsden Healthcare Limited,5709.37, 06-Sep-2011
1231,Revenue,CCHD,Elderly PWLD - KH,Residential Homes,Marsden Healthcare Limited,3134.56, 30-Sep-2011
1232,Revenue,CCHD,Elderly PWLD - KH,Residential Homes,Marsden Healthcare Limited,2698.26, 06-Sep-2011
1233,Revenue,CCHD,Elderly PWLD - KH,Residential Homes,Marsden Healthcare Limited,1481.4, 30-Sep-2011
1234,Revenue,CCHD,Elderly Mental Health,Nursing Homes,Meadow Care Home,1452.96, 06-Sep-2011
1235,Revenue,CCHD,Home Care Purch South,Other Small Contracts,Mears Care,902.4, 09-Sep-2011
1236,Revenue,CCHD,Home Care Purch North,Other Small Contracts,Mears Care,9385.9, 09-Sep-2011
1237,Revenue,CCHD,Day Care - South,Private & Voluntary Day Care,Mears Care,230.3, 09-Sep-2011
1238,Revenue,CCHD,Day Care - North,Private & Voluntary Day Care,Mears Care,366.6, 09-Sep-2011
1239,Revenue,CCHD,Carer`s Grant - North,Carers Breaks & Services,Mears Care,37.6, 09-Sep-2011
1240,Revenue,CCHD,Under 65s -MH  Home Care Purch,Other Small Contracts,Mears Care,141, 09-Sep-2011
1241,Revenue,CCHD,Elderly MH Home Care,Other Small Contracts,Mears Care,841.3, 09-Sep-2011
1242,Revenue,CCHD,Elderly MH non-res purchasing,Private & Voluntary Day Care,Mears Care,112.8, 09-Sep-2011
1243,Revenue,CCHD,Home Care - Elderly LD - KH,Private & Voluntary Home Care,Mears Care,65.8, 09-Sep-2011
1244,Revenue,CCHD,Home Care Purch South,Other Small Contracts,Mears Care,893, 09-Sep-2011
1245,Revenue,CCHD,Home Care Purch North,Other Small Contracts,Mears Care,8554, 09-Sep-2011
1246,Revenue,CCHD,Day Care - South,Private & Voluntary Day Care,Mears Care,206.8, 09-Sep-2011
1247,Revenue,CCHD,Day Care - North,Private & Voluntary Day Care,Mears Care,366.6, 09-Sep-2011
1248,Revenue,CCHD,Under 65s -MH  Home Care Purch,Other Small Contracts,Mears Care,141, 09-Sep-2011
1249,Revenue,CCHD,Elderly MH Home Care,Other Small Contracts,Mears Care,860.1, 09-Sep-2011
1250,Revenue,CCHD,Elderly MH non-res purchasing,Private & Voluntary Day Care,Mears Care,112.8, 09-Sep-2011
1251,Revenue,CCHD,Home Care - Elderly LD - KH,Private & Voluntary Home Care,Mears Care,65.8, 09-Sep-2011
1252,Revenue,CCHD,Home Care Purch South,Other Small Contracts,Mears Care,841.3, 09-Sep-2011
1253,Revenue,CCHD,Home Care Purch North,Other Small Contracts,Mears Care,9291.9, 09-Sep-2011
1254,Revenue,CCHD,Day Care - South,Private & Voluntary Day Care,Mears Care,220.9, 09-Sep-2011
1255,Revenue,CCHD,Day Care - North,Private & Voluntary Day Care,Mears Care,423, 09-Sep-2011
1256,Revenue,CCHD,Under 65s -MH  Home Care Purch,Other Small Contracts,Mears Care,141, 09-Sep-2011
1257,Revenue,CCHD,Elderly MH Home Care,Other Small Contracts,Mears Care,850.7, 09-Sep-2011
1258,Revenue,CCHD,Elderly MH non-res purchasing,Private & Voluntary Day Care,Mears Care,112.8, 09-Sep-2011
1259,Revenue,CCHD,Home Care - Elderly LD - KH,Private & Voluntary Home Care,Mears Care,65.8, 09-Sep-2011
1260,Revenue,CCHD,Home Care Purch South,Other Small Contracts,Mears Care,860.1, 19-Sep-2011
1261,Revenue,CCHD,Home Care Purch North,Other Small Contracts,Mears Care,9428.2, 19-Sep-2011
1262,Revenue,CCHD,Day Care - South,Private & Voluntary Day Care,Mears Care,206.8, 19-Sep-2011
1263,Revenue,CCHD,Day Care - North,Private & Voluntary Day Care,Mears Care,413.6, 19-Sep-2011
1264,Revenue,CCHD,Under 65s -MH  Home Care Purch,Other Small Contracts,Mears Care,131.6, 19-Sep-2011
1265,Revenue,CCHD,Elderly MH Home Care,Other Small Contracts,Mears Care,874.2, 19-Sep-2011
1266,Revenue,CCHD,Elderly MH non-res purchasing,Private & Voluntary Day Care,Mears Care,112.8, 19-Sep-2011
1267,Revenue,CCHD,Home Care Purch South,Other Small Contracts,Medacs Home Care,329.8, 06-Sep-2011
1268,Revenue,CCHD,Home Care Purch North,Other Small Contracts,Medacs Home Care,1319.2, 06-Sep-2011
1269,Revenue,CCHD,Day Care - North,Private & Voluntary Day Care,Medacs Home Care,3.4, 06-Sep-2011
1270,Revenue,CCHD,Elderly MH Home Care,Other Small Contracts,Medacs Home Care,258.4, 06-Sep-2011
1271,Revenue,CCHD,Elderly MH non-res purchasing,Private & Voluntary Day Care,Medacs Home Care,64.6, 06-Sep-2011
1272,Revenue,CCHD,Home Care Purch South,Other Small Contracts,Medacs Home Care,336.6, 06-Sep-2011
1273,Revenue,CCHD,Home Care Purch North,Other Small Contracts,Medacs Home Care,1302.2, 06-Sep-2011
1274,Revenue,CCHD,Day Care - North,Private & Voluntary Day Care,Medacs Home Care,13.6, 06-Sep-2011
1275,Revenue,CCHD,Elderly MH Home Care,Other Small Contracts,Medacs Home Care,261.8, 06-Sep-2011
1276,Revenue,CCHD,Elderly MH non-res purchasing,Private & Voluntary Day Care,Medacs Home Care,81.6, 06-Sep-2011
1277,Revenue,CCHD,Home Care Purch South,Other Small Contracts,Medacs Home Care,329.8, 09-Sep-2011
1278,Revenue,CCHD,Home Care Purch North,Other Small Contracts,Medacs Home Care,1230.8, 09-Sep-2011
1279,Revenue,CCHD,Day Care - North,Private & Voluntary Day Care,Medacs Home Care,27.2, 09-Sep-2011
1280,Revenue,CCHD,Elderly MH Home Care,Other Small Contracts,Medacs Home Care,265.2, 09-Sep-2011
1281,Revenue,CCHD,Elderly MH non-res purchasing,Private & Voluntary Day Care,Medacs Home Care,57.8, 09-Sep-2011
1282,Revenue,CCHD,Home Care Purch South,Other Small Contracts,Medacs Home Care,316.2, 06-Sep-2011
1283,Revenue,CCHD,Home Care Purch North,Other Small Contracts,Medacs Home Care,1278.4, 06-Sep-2011
1284,Revenue,CCHD,Day Care - North,Private & Voluntary Day Care,Medacs Home Care,54.4, 06-Sep-2011
1285,Revenue,CCHD,Elderly MH Home Care,Other Small Contracts,Medacs Home Care,265.2, 06-Sep-2011
1286,Revenue,CCHD,Elderly MH non-res purchasing,Private & Voluntary Day Care,Medacs Home Care,88.4, 06-Sep-2011
1287,Revenue,CCHD,Home Care Purch South,Other Small Contracts,Medacs Home Care,323, 09-Sep-2011
1288,Revenue,CCHD,Home Care Purch North,Other Small Contracts,Medacs Home Care,1101.6, 09-Sep-2011
1289,Revenue,CCHD,Elderly MH Home Care,Other Small Contracts,Medacs Home Care,248.2, 09-Sep-2011
1290,Revenue,CCHD,Elderly MH non-res purchasing,Private & Voluntary Day Care,Medacs Home Care,61.2, 09-Sep-2011
1291,Revenue,CCHD,NRS Contract,Daily Living Equipment,Medequip Assistive Technology Ltd,32478.49, 21-Sep-2011
1292,Revenue,CCHD,NRS Contract,Daily Living Equipment,Medequip Assistive Technology Ltd,54840.35, 21-Sep-2011
1293,Revenue,CCHD,NRS Contract,Other Supplies & Services,Medequip Assistive Technology Ltd,11582.86, 21-Sep-2011
1294,Revenue,CCHD,Contracts & Commissioning Team,Other Small Contracts,Medico Nursing & Homecare Ltd,13500, 02-Sep-2011
1295,Revenue,CCHD,Contracts & Commissioning Team,Other Small Contracts,Medico Nursing & Homecare Ltd,13500, 09-Sep-2011
1296,Revenue,CCHD,Contracts & Commissioning Team,Other Small Contracts,Medico Nursing & Homecare Ltd,13500, 16-Sep-2011
1297,Revenue,CCHD,Contracts & Commissioning Team,Other Small Contracts,Medico Nursing & Homecare Ltd,13500, 23-Sep-2011
1298,Revenue,CCHD,Contracts & Commissioning Team,Other Small Contracts,Medico Nursing & Homecare Ltd,13500, 30-Sep-2011
1299,Revenue,CCHD,Home Care Purch North,Other Small Contracts,Medico Nursing & Homecare Ltd,1927.73, 02-Sep-2011
1300,Revenue,CCHD,Home Care Purch North,Other Small Contracts,Medico Nursing & Homecare Ltd,1927.73, 09-Sep-2011
1301,Revenue,CCHD,Home Care Purch North,Other Small Contracts,Medico Nursing & Homecare Ltd,1927.73, 16-Sep-2011
1302,Revenue,CCHD,Home Care Purch North,Other Small Contracts,Medico Nursing & Homecare Ltd,1927.73, 23-Sep-2011
1303,Revenue,CCHD,Under 65s PWLD - KH,Residential Homes,Mencap,2173.8, 06-Sep-2011
1304,Revenue,CCHD,Supporting People Programme,Grants to Voluntary Bodies,Merlin Housing Society,2172.8, 12-Sep-2011
1305,Revenue,CCHD,Supporting People Programme,Grants to Voluntary Bodies,Merlin Housing Society,2186.3, 12-Sep-2011
1306,Revenue,CCHD,Supporting People Programme,Grants to Voluntary Bodies,Merlin Housing Society,2416.44, 12-Sep-2011
1307,Revenue,CCHD,Supporting People Programme,Grants to Voluntary Bodies,Merlin Housing Society,2638.89, 12-Sep-2011
1308,Revenue,CCHD,Supporting People Programme,Grants to Voluntary Bodies,Merlin Housing Society,13808.8, 12-Sep-2011
1309,Revenue,CCHD,Supporting People Programme,Grants to Voluntary Bodies,Merlin Housing Society,41424.66, 12-Sep-2011
1310,Revenue,CCHD,Contracts & Commissioning Team,Other Small Contracts,Milestones Outreach Dementia Services,1350, 02-Sep-2011
1311,Revenue,CCHD,Contracts & Commissioning Team,Other Small Contracts,Milestones Outreach Dementia Services,1350, 09-Sep-2011
1312,Revenue,CCHD,Contracts & Commissioning Team,Other Small Contracts,Milestones Outreach Dementia Services,1350, 16-Sep-2011
1313,Revenue,CCHD,Contracts & Commissioning Team,Other Small Contracts,Milestones Outreach Dementia Services,1350, 23-Sep-2011
1314,Revenue,CCHD,Contracts & Commissioning Team,Other Small Contracts,Milestones Outreach Dementia Services,1350, 30-Sep-2011
1315,Revenue,CCHD,Supported Living (S28a),Private & Voluntary Home Care,Milestones Trust,582.1, 29-Sep-2011
1316,Revenue,CCHD,Elderly MH non-res purchasing,Private & Voluntary Day Care,Milestones Trust,523.64, 29-Sep-2011
1317,Revenue,CCHD,Supported Living - KH,Private & Voluntary Home Care,Milestones Trust,926.1, 30-Sep-2011
1318,Revenue,CCHD,Elderly MH non-res purchasing,Private & Voluntary Day Care,Milestones Trust,554.71, 20-Sep-2011
1319,Revenue,CCHD,Supported Living - PS,Private & Voluntary Home Care,Milestones Trust,782.68, 12-Sep-2011
1320,Revenue,CCHD,Supported Living - KH,Private & Voluntary Home Care,Milestones Trust,1473.45, 23-Sep-2011
1321,Revenue,CCHD,Supported Living - KH,Private & Voluntary Home Care,Milestones Trust,4617.69, 12-Sep-2011
1322,Revenue,CCHD,Supported Living - KH,Private & Voluntary Home Care,Milestones Trust,4280.07, 23-Sep-2011
1323,Revenue,CCHD,Supported Living - KD,Private & Voluntary Home Care,Milestones Trust,5528.05, 23-Sep-2011
1324,Revenue,CCHD,Supported Living (S28a),Private & Voluntary Home Care,Milestones Trust,617.4, 02-Sep-2011
1325,Revenue,CCHD,Supported Living - PS,Private & Voluntary Home Care,Milestones Trust,797.86, 05-Sep-2011
1326,Revenue,CCHD,Supported Living - PS,Private & Voluntary Home Care,Milestones Trust,799.2, 08-Sep-2011
1327,Revenue,CCHD,Supported Living (S28a),Private & Voluntary Home Care,Milestones Trust,1091.14, 02-Sep-2011
1328,Revenue,CCHD,Supported Living (S28a),Private & Voluntary Home Care,Milestones Trust,3667.69, 26-Sep-2011
1329,Revenue,CCHD,Supported Living (S28a),Private & Voluntary Home Care,Milestones Trust,9325.14, 02-Sep-2011
1330,Revenue,CCHD,Supported Living (S28a),Private & Voluntary Home Care,Milestones Trust,3080, 02-Sep-2011
1331,Revenue,CCHD,Supported Living (S28a),Private & Voluntary Home Care,Milestones Trust,3124, 02-Sep-2011
1332,Revenue,CCHD,Supported Living - KH,Private & Voluntary Home Care,Milestones Trust,3075.89, 23-Sep-2011
1333,Revenue,CCHD,Supported Living (S28a),Private & Voluntary Home Care,Milestones Trust,3113.3, 02-Sep-2011
1334,Revenue,CCHD,Supported Living (S28a),Private & Voluntary Home Care,Milestones Trust,4143.36, 02-Sep-2011
1335,Revenue,CCHD,Supported Living (S28a),Private & Voluntary Home Care,Milestones Trust,4143.36, 02-Sep-2011
1336,Revenue,CCHD,Supported Living (S28a),Private & Voluntary Home Care,Milestones Trust,3662.32, 02-Sep-2011
1337,Revenue,CCHD,Supported Living (S28a),Private & Voluntary Home Care,Milestones Trust,3662.32, 02-Sep-2011
1338,Revenue,CCHD,Supported Living (S28a),Private & Voluntary Home Care,Milestones Trust,3662.32, 02-Sep-2011
1339,Revenue,CCHD,Supported Living (S28a),Private & Voluntary Home Care,Milestones Trust,6840.62, 02-Sep-2011
1340,Revenue,CCHD,Supported Living (S28a),Private & Voluntary Home Care,Milestones Trust,9689.17, 02-Sep-2011
1341,Revenue,CCHD,Supported Living (S28a),Private & Voluntary Home Care,Milestones Trust,5238.91, 02-Sep-2011
1342,Revenue,CCHD,Supported Living - PS,Private & Voluntary Home Care,Milestones Trust,1123.61, 20-Sep-2011
1343,Revenue,CCHD,Supported Living - PS,Private & Voluntary Home Care,Milestones Trust,622.94, 07-Sep-2011
1344,Revenue,CCHD,Supported Living - PS,Private & Voluntary Home Care,Milestones Trust,2894.06, 20-Sep-2011
1345,Revenue,CCHD,Supported Living - PS,Private & Voluntary Home Care,Milestones Trust,826.21, 07-Sep-2011
1346,Revenue,CCHD,Elderly MH non-res purchasing,Private & Voluntary Day Care,Milestones Trust,614.63, 05-Sep-2011
1347,Revenue,CCHD,Elderly MH non-res purchasing,Private & Voluntary Day Care,Milestones Trust,640.4, 06-Sep-2011
1348,Revenue,CCHD,Elderly MH non-res purchasing,Private & Voluntary Day Care,Milestones Trust,743.55, 05-Sep-2011
1349,Revenue,CCHD,Younger MH non-res purchasing,Private & Voluntary Day Care,Milestones Trust,882.37, 05-Sep-2011
1350,Revenue,CCHD,Section 117 Placements,Private & Voluntary Day Care,Milestones Trust,1183.62, 05-Sep-2011
1351,Revenue,CCHD,Elderly MH non-res purchasing,Private & Voluntary Day Care,Milestones Trust,805.96, 29-Sep-2011
1352,Revenue,CCHD,Elderly MH non-res purchasing,Private & Voluntary Day Care,Milestones Trust,629.23, 05-Sep-2011
1353,Revenue,CCHD,Elderly MH non-res purchasing,Private & Voluntary Day Care,Milestones Trust,1183.8, 20-Sep-2011
1354,Revenue,CCHD,Younger MH non-res purchasing,Private & Voluntary Day Care,Milestones Trust,1274.81, 05-Sep-2011
1355,Revenue,CCHD,Purchase of Non-Res Care - KD,Private & Voluntary Day Care,Milestones Trust,1645.7, 13-Sep-2011
1356,Revenue,CCHD,Supported Living - KH,Private & Voluntary Home Care,Milestones Trust,806.22, 23-Sep-2011
1357,Revenue,CCHD,Purchase of Non-Res Care - PS,Private & Voluntary Day Care,Milestones Trust,710.72, 06-Sep-2011
1358,Revenue,CCHD,Purchase of Non-Res Care - KH,Private & Voluntary Day Care,Milestones Trust,1242.01, 30-Sep-2011
1359,Revenue,CCHD,Purchase of Non-Res Care - PS,Private & Voluntary Day Care,Milestones Trust,1462.64, 06-Sep-2011
1360,Revenue,CCHD,Purchase of Non-Res Care - PS,Private & Voluntary Day Care,Milestones Trust,1079.39, 13-Sep-2011
1361,Revenue,CCHD,Purchase of Non-Res Care - PS,Private & Voluntary Day Care,Milestones Trust,1483.64, 06-Sep-2011
1362,Revenue,CCHD,Purchase of Non-Res Care - KH,Private & Voluntary Day Care,Milestones Trust,1255.79, 30-Sep-2011
1363,Revenue,CCHD,Purchase of Non-Res Care - KH,Private & Voluntary Day Care,Milestones Trust,1025.49, 30-Sep-2011
1364,Revenue,CCHD,Purchase of Non-Res Care - KH,Private & Voluntary Day Care,Milestones Trust,997.9, 30-Sep-2011
1365,Revenue,CCHD,Purchase of Non-Res Care - PS,Private & Voluntary Day Care,Milestones Trust,1199.65, 06-Sep-2011
1366,Revenue,CCHD,Purchase of Non-Res Care - KH,Private & Voluntary Day Care,Milestones Trust,1458.72, 30-Sep-2011
1367,Revenue,CCHD,Purchase of Non-Res Care - KH,Private & Voluntary Day Care,Milestones Trust,1194.31, 23-Sep-2011
1368,Revenue,CCHD,Supported Living - KD,Private & Voluntary Home Care,Milestones Trust,757.5, 12-Sep-2011
1369,Revenue,CCHD,Supported Living - PS,Private & Voluntary Home Care,Milestones Trust,1471.75, 07-Sep-2011
1370,Revenue,CCHD,Purchase of Non-Res Care - KD,Private & Voluntary Day Care,Milestones Trust,906.66, 27-Sep-2011
1371,Revenue,CCHD,Supported Living (S28a),Private & Voluntary Home Care,Milestones Trust,1283.46, 29-Sep-2011
1372,Revenue,CCHD,Under 65s PWLD - PS,Residential Homes,Miller Farm,3305, 06-Sep-2011
1373,Revenue,CCHD,Section 117 Placements,Nursing Homes,Mimosa Healthcare Holdings Ltd,1888, 06-Sep-2011
1374,Revenue,CCHD,Frenchay Hospital Purchasing,Nursing Homes,Mimosa Healthcare Holdings Ltd,516.11, 06-Sep-2011
1375,Revenue,CCHD,S28A - Over 65,Nursing Homes,Mortimer House Nursing Home,3227.8, 06-Sep-2011
1376,Revenue,CCHD,S28A - Over 65,Nursing Homes,Mortimer House Nursing Home,3227.8, 30-Sep-2011
1377,Revenue,CCHD,S28A - Over 65,Nursing Homes,Mortimer House Nursing Home,3233, 06-Sep-2011
1378,Revenue,CCHD,S28A - Over 65,Nursing Homes,Mortimer House Nursing Home,3233, 30-Sep-2011
1379,Revenue,CCHD,Southmead Hospital Purchasing,Residential Homes,Mostyn Lodge Residential Home,1253, 06-Sep-2011
1380,Revenue,CCHD,Section 117 Placements,Residential Homes,Mostyn Lodge Residential Home,1848, 06-Sep-2011
1381,Revenue,CCHD,Mental Illness SLA's,Grants to Voluntary Bodies,Mothers for Mothers,2100, 30-Sep-2011
1382,Revenue,CCHD,Supported Living - PS,Private & Voluntary Home Care,Moving On,6440.99, 20-Sep-2011
1383,Revenue,CCHD,Supported Living - PS,Private & Voluntary Home Care,Moving On,6440.99, 20-Sep-2011
1384,Revenue,CCHD,Under 65s PWLD - KH,Residential Homes,Mr J Davis & Mrs S Davis,1840, 13-Sep-2011
1385,Revenue,CCHD,Under 65s PWLD - KD,Residential Homes,Mr Philip Bishop,624, 16-Sep-2011
1386,Revenue,CCHD,Purchase of Non-Res Care - KH,Private & Voluntary Day Care,Mrs B Kimber,1273.32, 12-Sep-2011
1387,Revenue,CCHD,Purchase of Non-Res Care - KD,Private & Voluntary Day Care,Mrs B Kimber,761.87, 27-Sep-2011
1388,Revenue,CCHD,Supported Living - KD,Private & Voluntary Home Care,Mrs B Kimber,1199.76, 27-Sep-2011
1389,Revenue,CCHD,Supported Living - KH,Private & Voluntary Home Care,Mrs B Kimber,963.01, 30-Sep-2011
1390,Revenue,CCHD,Supported Living - KH,Private & Voluntary Home Care,Mrs B Kimber,1557.54, 30-Sep-2011
1391,Revenue,CCHD,Contracts & Commissioning Team,Other Small Contracts,Mrs B Kimber,7500, 02-Sep-2011
1392,Revenue,CCHD,Contracts & Commissioning Team,Other Small Contracts,Mrs B Kimber,7500, 09-Sep-2011
1393,Revenue,CCHD,Contracts & Commissioning Team,Other Small Contracts,Mrs B Kimber,7500, 16-Sep-2011
1394,Revenue,CCHD,Contracts & Commissioning Team,Other Small Contracts,Mrs B Kimber,7500, 23-Sep-2011
1395,Revenue,CCHD,Contracts & Commissioning Team,Other Small Contracts,Mrs B Kimber,7500, 30-Sep-2011
1396,Revenue,CCHD,Younger MH non-res purchasing,Private & Voluntary Home Care,Mrs Felicity Cooksley,1676, 26-Sep-2011
1397,Revenue,CCHD,Purchase of Non-Res Care - KD,Private & Voluntary Day Care,Mrs W Thompson,1460, 22-Sep-2011
1398,Revenue,CCHD,Purchase of Non-Res Care - KD,Private & Voluntary Day Care,Mrs W Thompson,554, 22-Sep-2011
1399,Revenue,CCHD,Complaints and FOI,Complaints External Expenses,Ms Linda Davis,1092.3, 12-Sep-2011
1400,Revenue,CCHD,Complaints and FOI,Complaints External Expenses,Ms Suzanne Gibbon,1161.12, 08-Sep-2011
1401,Revenue,CCHD,Alexandra Way,Cleaning & Domestic Supplies,Muzzell Healthcare,420.75, 16-Sep-2011
1402,Revenue,CCHD,Younger MH non-res purchasing,Private & Voluntary Day Care,NAS Services Limited,1621.1, 06-Sep-2011
1403,Revenue,CCHD,Younger MH non-res purchasing,Private & Voluntary Day Care,NAS Services Limited,1386.47, 16-Sep-2011
1404,Revenue,CCHD,Purchase of Non-Res Care - KD,Private & Voluntary Day Care,Natureworks Training Community Interest,993.82, 19-Sep-2011
1405,Revenue,CCHD,Contracts & Commissioning Team,Other Small Contracts,Network Health & Social Care,2200, 02-Sep-2011
1406,Revenue,CCHD,Contracts & Commissioning Team,Other Small Contracts,Network Health & Social Care,2200, 09-Sep-2011
1407,Revenue,CCHD,Contracts & Commissioning Team,Other Small Contracts,Network Health & Social Care,2200, 16-Sep-2011
1408,Revenue,CCHD,Contracts & Commissioning Team,Other Small Contracts,Network Health & Social Care,2200, 23-Sep-2011
1409,Revenue,CCHD,Contracts & Commissioning Team,Other Small Contracts,Network Health & Social Care,2200, 30-Sep-2011
1410,Revenue,CCHD,Under 65s PWLD - KH,Residential Homes,Nightingale Nursing Home,3037.08, 06-Sep-2011
1411,Revenue,CCHD,Under 65s PWLD - PS,Residential Homes,Norwood   Broadway House,4784.72, 06-Sep-2011
1412,Revenue,CCHD,Home Care Purch South,Other Small Contracts,Nursing Solutions Limited,927.45, 01-Sep-2011
1413,Revenue,CCHD,Day Care - South,Private & Voluntary Day Care,Nursing Solutions Limited,97.2, 01-Sep-2011
1414,Revenue,CCHD,Elderly MH Home Care,Other Small Contracts,Nursing Solutions Limited,348.3, 01-Sep-2011
1415,Revenue,CCHD,Elderly MH non-res purchasing,Private & Voluntary Day Care,Nursing Solutions Limited,129.6, 01-Sep-2011
1416,Revenue,CCHD,Home Care Purch South,Other Small Contracts,Nursing Solutions Limited,931.5, 01-Sep-2011
1417,Revenue,CCHD,Elderly MH Home Care,Other Small Contracts,Nursing Solutions Limited,356.4, 01-Sep-2011
1418,Revenue,CCHD,Elderly MH non-res purchasing,Private & Voluntary Day Care,Nursing Solutions Limited,210.6, 01-Sep-2011
1419,Revenue,CCHD,Home Care Purch South,Other Small Contracts,Nursing Solutions Limited,951.75, 09-Sep-2011
1420,Revenue,CCHD,Elderly MH Home Care,Other Small Contracts,Nursing Solutions Limited,364.5, 09-Sep-2011
1421,Revenue,CCHD,Elderly MH non-res purchasing,Private & Voluntary Day Care,Nursing Solutions Limited,210.6, 09-Sep-2011
1422,Revenue,CCHD,Home Care Purch South,Other Small Contracts,Nursing Solutions Limited,761.4, 09-Sep-2011
1423,Revenue,CCHD,Elderly MH Home Care,Other Small Contracts,Nursing Solutions Limited,356.4, 09-Sep-2011
1424,Revenue,CCHD,Elderly MH non-res purchasing,Private & Voluntary Day Care,Nursing Solutions Limited,210.6, 09-Sep-2011
1425,Revenue,CCHD,Home Care Purch South,Other Small Contracts,Nursing Solutions Limited,773.55, 16-Sep-2011
1426,Revenue,CCHD,Elderly MH Home Care,Other Small Contracts,Nursing Solutions Limited,319.95, 16-Sep-2011
1427,Revenue,CCHD,Elderly MH non-res purchasing,Private & Voluntary Day Care,Nursing Solutions Limited,202.5, 16-Sep-2011
1428,Revenue,CCHD,Home Care Purch South,Other Small Contracts,Nursing Solutions Limited,814.05, 23-Sep-2011
1429,Revenue,CCHD,Elderly MH Home Care,Other Small Contracts,Nursing Solutions Limited,352.35, 23-Sep-2011
1430,Revenue,CCHD,Elderly MH non-res purchasing,Private & Voluntary Day Care,Nursing Solutions Limited,210.6, 23-Sep-2011
1431,Revenue,CCHD,Home Care Purch South,Other Small Contracts,On the Up,398.52, 06-Sep-2011
1432,Revenue,CCHD,Day Care - South,Private & Voluntary Day Care,On the Up,68.04, 06-Sep-2011
1433,Revenue,CCHD,Elderly MH non-res purchasing,Private & Voluntary Day Care,On the Up,155.52, 06-Sep-2011
1434,Revenue,CCHD,Home Care Purch South,Other Small Contracts,On the Up,393.66, 13-Sep-2011
1435,Revenue,CCHD,Day Care - South,Private & Voluntary Day Care,On the Up,68.04, 13-Sep-2011
1436,Revenue,CCHD,Elderly MH non-res purchasing,Private & Voluntary Day Care,On the Up,155.52, 13-Sep-2011
1437,Revenue,CCHD,Home Care Purch South,Other Small Contracts,On the Up,359.64, 13-Sep-2011
1438,Revenue,CCHD,Day Care - South,Private & Voluntary Day Care,On the Up,68.04, 13-Sep-2011
1439,Revenue,CCHD,Elderly MH non-res purchasing,Private & Voluntary Day Care,On the Up,116.64, 13-Sep-2011
1440,Revenue,CCHD,Home Care Purch South,Other Small Contracts,On the Up,398.52, 14-Sep-2011
1441,Revenue,CCHD,Day Care - South,Private & Voluntary Day Care,On the Up,68.04, 14-Sep-2011
1442,Revenue,CCHD,Elderly MH non-res purchasing,Private & Voluntary Day Care,On the Up,72.9, 14-Sep-2011
1443,Revenue,CCHD,S28A - Under 65,Residential Homes,Orchard End Limited,7466.16, 06-Sep-2011
1444,Revenue,CCHD,Turnberries,"Provisions (Food, etc)",Origin Cafe,534, 02-Sep-2011
1445,Revenue,CCHD,Under 65s PWLD - KH,Residential Homes,Osbourne Court,39015.97, 06-Sep-2011
1446,Revenue,CCHD,Elderly Mental Health,Residential Homes,Osbourne Court,1389, 06-Sep-2011
1447,Revenue,CCHD,Elderly Mental Health,Nursing Homes,Osbourne Court,2524.68, 06-Sep-2011
1448,Revenue,CCHD,Elderly Purchasing - North,Residential Homes,Osbourne Court,1935.68, 06-Sep-2011
1449,Revenue,CCHD,Elderly Mental Health,Nursing Homes,Osbourne Court,2731.68, 06-Sep-2011
1450,Revenue,CCHD,Section 117 Placements,Residential Homes,Osbourne Court,3696, 06-Sep-2011
1451,Revenue,CCHD,Section 117 Placements,Residential Homes,Osbourne Court,3436.29, 06-Sep-2011
1452,Revenue,CCHD,Elderly Purchasing - North,Residential Homes,Osbourne Court,746.18, 06-Sep-2011
1453,Revenue,CCHD,Elderly Purchasing - North,Residential Homes,Osbourne Court,2061.52, 06-Sep-2011
1454,Revenue,CCHD,Elderly Mental Health,Residential Homes,Osbourne Court,1438.61, 06-Sep-2011
1455,Revenue,CCHD,Elderly Mental Health,Residential Homes,Osbourne Court,2842, 06-Sep-2011
1456,Revenue,CCHD,Section 117 Placements,Residential Homes,Osbourne Court,3696, 06-Sep-2011
1457,Revenue,CCHD,Elderly Purchasing - South,Residential Homes,Osbourne Court,3000, 06-Sep-2011
1458,Revenue,CCHD,Frenchay Hospital Purchasing,Residential Homes,Osbourne Court,2375.6, 06-Sep-2011
1459,Revenue,CCHD,Under 65s PWLD - PS,Residential Homes,Osprey Court,7741.52, 06-Sep-2011
1460,Revenue,CCHD,S28A - Under 65,Residential Homes,Osprey Court,4323.36, 06-Sep-2011
1461,Revenue,CCHD,S28A - Under 65,Residential Homes,Osprey Court,6566.88, 06-Sep-2011
1462,Revenue,CCHD,Elderly Mental Health,Residential Homes,Park Farm House,1331.48, 06-Sep-2011
1463,Revenue,CCHD,Elderly Purchasing - South,Residential Homes,Park Farm House,1498.8, 06-Sep-2011
1464,Revenue,CCHD,Elderly Mental Health,Residential Homes,Park Farm House,1566.4, 06-Sep-2011
1465,Revenue,CCHD,Elderly Mental Health,Residential Homes,Park Farm House,1106, 06-Sep-2011
1466,Revenue,CCHD,Under 65s PWLD - KH,Residential Homes,Park Hall,4037.52, 06-Sep-2011
1467,Revenue,CCHD,Under 65s PWLD - KH,Residential Homes,Park Hall,24672.8, 06-Sep-2011
1468,Revenue,CCHD,Under 65s PWLD - PS,Residential Homes,Park Hall,10840.8, 06-Sep-2011
1469,Revenue,CCHD,Elderly PWLD - KH,Residential Homes,Park Hall,2470.16, 06-Sep-2011
1470,Revenue,CCHD,Under 65s PWLD - KD,Residential Homes,Park Hall,2720.8, 06-Sep-2011
1471,Revenue,CCHD,S28A - Under 65,Residential Homes,Park Hall,5477.72, 06-Sep-2011
1472,Revenue,CCHD,S28A - Over 65,Residential Homes,Park Hall,5163.72, 06-Sep-2011
1473,Revenue,CCHD,Under 65s PWLD - KH,Residential Homes,Park Hall,12553.36, 06-Sep-2011
1474,Revenue,CCHD,Under 65s PWLD - KD,Residential Homes,Park Hall,2149.28, 06-Sep-2011
1475,Revenue,CCHD,S28A - Under 65,Residential Homes,Park Hall,3955.6, 06-Sep-2011
1476,Revenue,CCHD,Elderly Purchasing - South,Residential Homes,Park Street Home,2012.48, 06-Sep-2011
1477,Revenue,CCHD,Swift Dump Code,Residential Homes,Pendruccombe House,941.51, 06-Sep-2011
1478,Revenue,CCHD,Elderly Purchasing - South,Residential Homes,Pendruccombe House,818.58, 06-Sep-2011
1479,Revenue,CCHD,Under 65s PWLD - KH,Residential Homes,Penleigh House Care Home,4389.32, 06-Sep-2011
1480,Revenue,CCHD,Elderly PWLD - KD,Residential Homes,Penleigh House Care Home,4162.72, 06-Sep-2011
1481,Revenue,CCHD,Under 65s PWLD - KD,Residential Homes,Penleigh House Care Home,4326.72, 06-Sep-2011
1482,Revenue,CCHD,S28A - Under 65,Residential Homes,Penleigh House Care Home,5288.92, 06-Sep-2011
1483,Revenue,CCHD,Section 117 Placements,Nursing Homes,Pennwood Lodge Nursing Home,1911.96, 06-Sep-2011
1484,Revenue,CCHD,Elderly Purchasing - North,Nursing Homes,Pennwood Lodge Nursing Home,1463.32, 06-Sep-2011
1485,Revenue,CCHD,Frenchay Hospital Purchasing,Nursing Homes,Pennwood Lodge Nursing Home,990.86, 06-Sep-2011
1486,Revenue,CCHD,Frenchay Hospital Purchasing,Nursing Homes,Pennwood Lodge Nursing Home,641.14, 06-Sep-2011
1487,Revenue,CCHD,Elderly Mental Health,Nursing Homes,Pennwood Lodge Nursing Home,1453, 06-Sep-2011
1488,Revenue,CCHD,Elderly Mental Health,Nursing Homes,Pennwood Lodge Nursing Home,1210.68, 06-Sep-2011
1489,Revenue,CCHD,Elderly Mental Health,Nursing Homes,Pennwood Lodge Nursing Home,1453, 06-Sep-2011
1490,Revenue,CCHD,Elderly Mental Health,Nursing Homes,Pennwood Lodge Nursing Home,1166.48, 06-Sep-2011
1491,Revenue,CCHD,Elderly Mental Health,Nursing Homes,Pennwood Lodge Nursing Home,874.28, 06-Sep-2011
1492,Revenue,CCHD,Southmead Hospital Purchasing,Residential Homes,Petersfield Ad Care Home,1843.5, 06-Sep-2011
1493,Revenue,CCHD,Home Care Purch North,Other Small Contracts,Premier Homecare Limited,6147.2, 09-Sep-2011
1494,Revenue,CCHD,Day Care - North,Private & Voluntary Day Care,Premier Homecare Limited,587.52, 09-Sep-2011
1495,Revenue,CCHD,Elderly MH Home Care,Other Small Contracts,Premier Homecare Limited,184.96, 09-Sep-2011
1496,Revenue,CCHD,Elderly MH non-res purchasing,Private & Voluntary Day Care,Premier Homecare Limited,250.24, 09-Sep-2011
1497,Revenue,CCHD,Home Care Purch North,Other Small Contracts,Premier Homecare Limited,865.24, 05-Sep-2011
1498,Revenue,CCHD,Day Care - North,Private & Voluntary Day Care,Premier Homecare Limited,31.04, 05-Sep-2011
1499,Revenue,CCHD,Elderly MH Home Care,Other Small Contracts,Premier Homecare Limited,248.32, 05-Sep-2011
1500,Revenue,CCHD,Elderly MH non-res purchasing,Private & Voluntary Day Care,Premier Homecare Limited,186.24, 05-Sep-2011
1501,Revenue,CCHD,Home Care Purch North,Other Small Contracts,Premier Homecare Limited,6129.76, 09-Sep-2011
1502,Revenue,CCHD,Day Care - North,Private & Voluntary Day Care,Premier Homecare Limited,609.28, 09-Sep-2011
1503,Revenue,CCHD,Elderly MH Home Care,Other Small Contracts,Premier Homecare Limited,179.52, 09-Sep-2011
1504,Revenue,CCHD,Elderly MH non-res purchasing,Private & Voluntary Day Care,Premier Homecare Limited,250.24, 09-Sep-2011
1505,Revenue,CCHD,Home Care Purch North,Other Small Contracts,Premier Homecare Limited,888.52, 23-Sep-2011
1506,Revenue,CCHD,Day Care - North,Private & Voluntary Day Care,Premier Homecare Limited,31.04, 23-Sep-2011
1507,Revenue,CCHD,Elderly MH Home Care,Other Small Contracts,Premier Homecare Limited,248.32, 23-Sep-2011
1508,Revenue,CCHD,Elderly MH non-res purchasing,Private & Voluntary Day Care,Premier Homecare Limited,186.24, 23-Sep-2011
1509,Revenue,CCHD,Home Care Purch North,Other Small Contracts,Premier Homecare Limited,5775.68, 09-Sep-2011
1510,Revenue,CCHD,Day Care - North,Private & Voluntary Day Care,Premier Homecare Limited,544, 09-Sep-2011
1511,Revenue,CCHD,Elderly MH Home Care,Other Small Contracts,Premier Homecare Limited,179.52, 09-Sep-2011
1512,Revenue,CCHD,Elderly MH non-res purchasing,Private & Voluntary Day Care,Premier Homecare Limited,250.24, 09-Sep-2011
1513,Revenue,CCHD,Home Care Purch North,Other Small Contracts,Premier Homecare Limited,915.68, 23-Sep-2011
1514,Revenue,CCHD,Day Care - North,Private & Voluntary Day Care,Premier Homecare Limited,31.04, 23-Sep-2011
1515,Revenue,CCHD,Elderly MH Home Care,Other Small Contracts,Premier Homecare Limited,248.32, 23-Sep-2011
1516,Revenue,CCHD,Elderly MH non-res purchasing,Private & Voluntary Day Care,Premier Homecare Limited,186.24, 23-Sep-2011
1517,Revenue,CCHD,Home Care Purch North,Other Small Contracts,Premier Homecare Limited,6228, 14-Sep-2011
1518,Revenue,CCHD,Day Care - North,Private & Voluntary Day Care,Premier Homecare Limited,609.28, 14-Sep-2011
1519,Revenue,CCHD,Elderly MH Home Care,Other Small Contracts,Premier Homecare Limited,157.76, 14-Sep-2011
1520,Revenue,CCHD,Elderly MH non-res purchasing,Private & Voluntary Day Care,Premier Homecare Limited,250.24, 14-Sep-2011
1521,Revenue,CCHD,Home Care Purch North,Other Small Contracts,Premier Homecare Limited,6515.28, 26-Sep-2011
1522,Revenue,CCHD,Day Care - North,Private & Voluntary Day Care,Premier Homecare Limited,587.52, 26-Sep-2011
1523,Revenue,CCHD,Elderly MH Home Care,Other Small Contracts,Premier Homecare Limited,184.96, 26-Sep-2011
1524,Revenue,CCHD,Elderly MH non-res purchasing,Private & Voluntary Day Care,Premier Homecare Limited,250.24, 26-Sep-2011
1525,Revenue,CCHD,Contracts & Commissioning Team,Other Small Contracts,Prestige Nursing,4200, 02-Sep-2011
1526,Revenue,CCHD,Contracts & Commissioning Team,Other Small Contracts,Prestige Nursing,4200, 09-Sep-2011
1527,Revenue,CCHD,Contracts & Commissioning Team,Other Small Contracts,Prestige Nursing,4200, 16-Sep-2011
1528,Revenue,CCHD,Contracts & Commissioning Team,Other Small Contracts,Prestige Nursing,4200, 23-Sep-2011
1529,Revenue,CCHD,Contracts & Commissioning Team,Other Small Contracts,Prestige Nursing,4200, 30-Sep-2011
1530,Revenue,CCHD,Carers STF,Grants to Voluntary Bodies,Princess Royal Trust Carers Centre,37500, 30-Sep-2011
1531,Revenue,CCHD,Carers STF,Grants to Voluntary Bodies,Princess Royal Trust Carers Centre,1930.75, 30-Sep-2011
1532,Revenue,CCHD,Kingswood District Office,Other Supplies & Services,Professional Hygiene Ltd,845.85, 08-Sep-2011
1533,Revenue,CCHD,Kingswood District Office,Postages,Purchase Power,975.19, 09-Sep-2011
1534,Revenue,CCHD,Elderly Purchasing - South,Residential Homes,Quality Care Homes Ltd,1238.96, 06-Sep-2011
1535,Revenue,CCHD,Elderly Purchasing - South,Residential Homes,Quality Care Homes Ltd,1229, 06-Sep-2011
1536,Revenue,CCHD,Elderly Purchasing - South,Residential Homes,Quality Care Homes Ltd,1396, 06-Sep-2011
1537,Revenue,CCHD,Elderly Purchasing - South,Residential Homes,Quality Care Homes Ltd,1128.96, 06-Sep-2011
1538,Revenue,CCHD,Elderly Purchasing - South,Residential Homes,Quality Care Homes Ltd,1349, 06-Sep-2011
1539,Revenue,CCHD,Elderly Purchasing - South,Residential Homes,Quality Care Homes Ltd,1390.15, 06-Sep-2011
1540,Revenue,CCHD,Elderly Purchasing - South,Residential Homes,Quality Care Homes Ltd,1242.8, 06-Sep-2011
1541,Revenue,CCHD,Southmead Hospital Purchasing,Residential Homes,Quality Care Homes Ltd,1199.04, 06-Sep-2011
1542,Revenue,CCHD,Southmead Hospital Purchasing,Residential Homes,Quality Care Homes Ltd,1232.16, 06-Sep-2011
1543,Revenue,CCHD,Frenchay Hospital Purchasing,Residential Homes,Quality Care Homes Ltd,1229, 06-Sep-2011
1544,Revenue,CCHD,Frenchay Hospital Purchasing,Residential Homes,Quality Care Homes Ltd,614.5, 06-Sep-2011
1545,Revenue,CCHD,Elderly Mental Health,Nursing Homes,Ravenswood,1266.8, 06-Sep-2011
1546,Revenue,CCHD,Section 117 Placements,Nursing Homes,Redholme Memory Care Limited,1912, 06-Sep-2011
1547,Revenue,CCHD,Elderly Purchasing - South,Nursing Homes,Regent House,1620.8, 06-Sep-2011
1548,Revenue,CCHD,Elderly Purchasing - South,Nursing Homes,Regent House,800.24, 06-Sep-2011
1549,Revenue,CCHD,South Glos Users in South Glos Homes,Nursing Homes,Regent House,1055.94, 06-Sep-2011
1550,Revenue,CCHD,Elderly Purchasing - South,Nursing Homes,Regent House,1620.8, 06-Sep-2011
1551,Revenue,CCHD,Elderly Purchasing - South,Nursing Homes,Regent House,621.2, 06-Sep-2011
1552,Revenue,CCHD,Southmead Hospital Purchasing,Nursing Homes,Regent House,1367, 06-Sep-2011
1553,Revenue,CCHD,Elderly Purchasing - South,Nursing Homes,Regent House,1102.6, 06-Sep-2011
1554,Revenue,CCHD,Elderly Mental Health,Nursing Homes,Regent House,1906.2, 06-Sep-2011
1555,Revenue,CCHD,Elderly Mental Health,Nursing Homes,Regent House,1444.2, 06-Sep-2011
1556,Revenue,CCHD,Elderly Mental Health,Nursing Homes,Regent House,1053.04, 06-Sep-2011
1557,Revenue,CCHD,Elderly Mental Health,Nursing Homes,Regent House,1282.72, 06-Sep-2011
1558,Revenue,CCHD,Elderly PWLD - PS,Residential Homes,Renaissance,2156.6, 06-Sep-2011
1559,Revenue,CCHD,Under 65s PWLD - PS,Residential Homes,Ridgeway House,3373.32, 06-Sep-2011
1560,Revenue,CCHD,Elderly Purchasing - South,Nursing Homes,Riversway Nursing Home,1146.88, 06-Sep-2011
1561,Revenue,CCHD,Southmead Hospital Purchasing,Nursing Homes,Riversway Nursing Home,1334.52, 06-Sep-2011
1562,Revenue,CCHD,Southmead Hospital Purchasing,Nursing Homes,Riversway Nursing Home,1690.2, 06-Sep-2011
1563,Revenue,CCHD,Elderly PWLD - PS,Residential Homes,Rockleaze,2134.16, 06-Sep-2011
1564,Revenue,CCHD,Elderly PWLD - PS,Residential Homes,Rockleaze,1386.56, 06-Sep-2011
1565,Revenue,CCHD,S28A - Over 65,Residential Homes,Rockleaze,2015.52, 06-Sep-2011
1566,Revenue,CCHD,Under 65s PWLD - PS,Residential Homes,Rockleaze,2335.08, 06-Sep-2011
1567,Revenue,CCHD,Elderly PWLD - PS,Residential Homes,Rockleaze,1386.56, 06-Sep-2011
1568,Revenue,CCHD,Under 65s PWLD - KD,Residential Homes,Rolle Quay House,2581.99, 06-Sep-2011
1569,Revenue,CCHD,Elderly Mental Health,Residential Homes,Ross Healthcare,1265.36, 06-Sep-2011
1570,Revenue,CCHD,LD - Kingswood PCT,Agency Staff (Operational)/PCT Pay,Ryeford Cleaning Services Limited,628.33, 01-Sep-2011
1571,Revenue,CCHD,LD - Kingswood PCT,Agency Staff (Operational)/PCT Pay,Ryeford Cleaning Services Limited,628.33, 30-Sep-2011
1572,Revenue,CCHD,Learning Difficulties PSL,Rent,Individual,1400, 01-Sep-2011
1573,Revenue,CCHD,Learning Difficulties PSL,Rent,Individual,1400, 30-Sep-2011
1574,Revenue,CCHD,Woodleaze,"Provisions (Food, etc)",School Milk Services Limited,850.48, 30-Sep-2011
1575,Revenue,CCHD,Charlton,"Provisions (Food, etc)",School Milk Services Limited,694.2, 30-Sep-2011
1576,Revenue,CCHD,Under 65s PWLD - KH,Residential Homes,Scope   Accounts Dept,4926.6, 06-Sep-2011
1577,Revenue,CCHD,Under 65s PWLD - KH,Residential Homes,Scope   Accounts Dept,3016.28, 06-Sep-2011
1578,Revenue,CCHD,Supported Living - PS,Private & Voluntary Home Care,Selborne Care Ltd,4997.44, 12-Sep-2011
1579,Revenue,CCHD,Supported Living - PS,Private & Voluntary Home Care,Selborne Care Ltd,1706.4, 12-Sep-2011
1580,Revenue,CCHD,Supported Living - PS,Private & Voluntary Home Care,Selborne Care Ltd,2932.24, 20-Sep-2011
1581,Revenue,CCHD,Supported Living - PS,Private & Voluntary Home Care,Selborne Care Ltd,1134.96, 19-Sep-2011
1582,Revenue,CCHD,Purchase of Non-Res Care - KH,Private & Voluntary Day Care,Selborne Care Ltd,1437.76, 06-Sep-2011
1583,Revenue,CCHD,Supported Living - PS,Private & Voluntary Home Care,Selborne Care Ltd,4997.44, 14-Sep-2011
1584,Revenue,CCHD,Purchase of Non-Res Care - KD,Private & Voluntary Day Care,Selborne Care Ltd,888.08, 06-Sep-2011
1585,Revenue,CCHD,Supported Living - KH,Private & Voluntary Home Care,Selborne Care Ltd,1120.8, 06-Sep-2011
1586,Revenue,CCHD,Purchase of Non-Res Care - KD,Private & Voluntary Day Care,Selborne Care Ltd,816.64, 06-Sep-2011
1587,Revenue,CCHD,Supported Living - KH,Private & Voluntary Home Care,Selborne Care Ltd,505.36, 06-Sep-2011
1588,Revenue,CCHD,Supported Living - PS,Private & Voluntary Home Care,Selborne Care Ltd,4557, 06-Sep-2011
1589,Revenue,CCHD,Purchase of Non-Res Care - KD,Private & Voluntary Day Care,Selborne Care Ltd,768.32, 06-Sep-2011
1590,Revenue,CCHD,Supported Living - KH,Private & Voluntary Home Care,Selborne Care Ltd,540.44, 06-Sep-2011
1591,Revenue,CCHD,Supported Living - PS,Private & Voluntary Home Care,Selborne Care Ltd,1823.41, 06-Sep-2011
1592,Revenue,CCHD,Purchase of Non-Res Care - KD,Private & Voluntary Day Care,Selborne Care Ltd,886.36, 06-Sep-2011
1593,Revenue,CCHD,Purchase of Non-Res Care - KH,Private & Voluntary Day Care,Servoca Nursing & Care,1237.9, 22-Sep-2011
1594,Revenue,CCHD,Management & Support costs,Other Supplies & Services,Servoca Nursing & Care,900, 09-Sep-2011
1595,Revenue,CCHD,Southmead Hospital Purchasing,Nursing Homes,Shaw Healthcare Ltd,1453, 06-Sep-2011
1596,Revenue,CCHD,Elderly Mental Health,Nursing Homes,Shaw Healthcare Ltd,1231.84, 06-Sep-2011
1597,Revenue,CCHD,S28A - Under 65,Residential Homes,Shaw Healthcare Ltd,10446.72, 06-Sep-2011
1598,Revenue,CCHD,S28A - Under 65,Residential Homes,Shaw Healthcare Ltd,10282.72, 06-Sep-2011
1599,Revenue,CCHD,S28A - Under 65,Residential Homes,Shaw Healthcare Ltd,10446.72, 06-Sep-2011
1600,Revenue,CCHD,S117 Placements PCT,Residential Homes,Shaw Healthcare Ltd,15925.32, 06-Sep-2011
1601,Revenue,CCHD,Under 65s PWLD - PS,Nursing Homes,Shaw Healthcare Ltd,9886.84, 06-Sep-2011
1602,Revenue,CCHD,Under 65s PWLD - KD,Residential Homes,Shaw Healthcare Ltd,9120.92, 06-Sep-2011
1603,Revenue,CCHD,S28A - Under 65,Residential Homes,Shaw Healthcare Ltd,10944.96, 06-Sep-2011
1604,Revenue,CCHD,S28A - Under 65,Residential Homes,Shaw Healthcare Ltd,11746.04, 06-Sep-2011
1605,Revenue,CCHD,S28A - Under 65,Residential Homes,Shaw Healthcare Ltd,5048.8, 06-Sep-2011
1606,Revenue,CCHD,S28A - Over 65,Residential Homes,Shaw Healthcare Ltd,4858.4, 06-Sep-2011
1607,Revenue,CCHD,Under 65s PWLD - PS,Nursing Homes,Shaw Healthcare Ltd,9886.84, 06-Sep-2011
1608,Revenue,CCHD,S28A - Over 65,Residential Homes,Shaw Healthcare Ltd,4850.4, 06-Sep-2011
1609,Revenue,CCHD,S28A - Over 65,Residential Homes,Shaw Healthcare Ltd,4858.4, 06-Sep-2011
1610,Revenue,CCHD,S28A - Over 65,Residential Homes,Shaw Healthcare Ltd,4866.4, 06-Sep-2011
1611,Revenue,CCHD,S28A - Under 65,Residential Homes,Shaw Healthcare Ltd,9120.92, 06-Sep-2011
1612,Revenue,CCHD,S28A - Over 65,Residential Homes,Shaw Healthcare Ltd,8956.92, 06-Sep-2011
1613,Revenue,CCHD,Purchase of Non-Res Care - KD,Private & Voluntary Day Care,Shaw Healthcare Specialist Services Ltd,559.55, 27-Sep-2011
1614,Revenue,CCHD,Day Care - North,Private & Voluntary Day Care,Silva Care Limited,952.45, 08-Sep-2011
1615,Revenue,CCHD,Elderly Purchasing - North,Residential Homes,Simeon Care For The Elderly,1426.64, 06-Sep-2011
1616,Revenue,CCHD,Alexandra Way,Refuse Collection Charges,SITA UK LTD,614.1, 16-Sep-2011
1617,Revenue,CCHD,Under 65s PWLD - KD,Residential Homes,Small House Homes Limited,34617.36, 06-Sep-2011
1618,Revenue,CCHD,Purchase of Non-Res Care - PS,Private & Voluntary Day Care,Smile Independent Living Support Limited,1817.63, 14-Sep-2011
1619,Revenue,CCHD,Purchase of Non-Res Care - PS,Private & Voluntary Day Care,Smile Independent Living Support Limited,695.1, 14-Sep-2011
1620,Revenue,CCHD,Purchase of Non-Res Care - PS,Private & Voluntary Day Care,Smile Independent Living Support Limited,1143.95, 14-Sep-2011
1621,Revenue,CCHD,Supported Living - PS,Private & Voluntary Home Care,Smile Independent Living Support Limited,644.6, 14-Sep-2011
1622,Revenue,CCHD,Purchase of Non-Res Care - KD,Private & Voluntary Day Care,Smile Independent Living Support Limited,1302.6, 15-Sep-2011
1623,Revenue,CCHD,Purchase of Non-Res Care - KD,Private & Voluntary Day Care,Smile Independent Living Support Limited,1343.6, 15-Sep-2011
1624,Revenue,CCHD,Supported Living - KD,Private & Voluntary Home Care,Smile Independent Living Support Limited,1089.25, 15-Sep-2011
1625,Revenue,CCHD,Supported Living - KD,Private & Voluntary Home Care,Smile Independent Living Support Limited,1962.52, 15-Sep-2011
1626,Revenue,CCHD,Purchase of Non-Res Care - KD,Private & Voluntary Day Care,Smile Independent Living Support Limited,998, 15-Sep-2011
1627,Revenue,CCHD,Purchase of Non-Res Care - KD,Private & Voluntary Day Care,Smile Independent Living Support Limited,1246.05, 19-Sep-2011
1628,Revenue,CCHD,Purchase of Non-Res Care - KD,Private & Voluntary Day Care,Smile Independent Living Support Limited,587.6, 15-Sep-2011
1629,Revenue,CCHD,Purchase of Non-Res Care - KD,Private & Voluntary Day Care,Smile Independent Living Support Limited,997.87, 22-Sep-2011
1630,Revenue,CCHD,Supported Living - KD,Private & Voluntary Home Care,Smile Independent Living Support Limited,4093.66, 15-Sep-2011
1631,Revenue,CCHD,Supported Living - KD,Private & Voluntary Home Care,Smile Independent Living Support Limited,4152.79, 15-Sep-2011
1632,Revenue,CCHD,Purchase of Non-Res Care - KD,Private & Voluntary Day Care,Smile Independent Living Support Limited,2658.38, 15-Sep-2011
1633,Revenue,CCHD,Day Care - South,Private & Voluntary Day Care,South Gloucestershire Crossroads,565.04, 26-Sep-2011
1634,Revenue,CCHD,Carers STF,Grants to Voluntary Bodies,South Gloucestershire Crossroads,16223, 30-Sep-2011
1635,Revenue,CCHD,Contracts & Commissioning Team,Other Small Contracts,South Gloucestershire Crossroads,6000, 02-Sep-2011
1636,Revenue,CCHD,Contracts & Commissioning Team,Other Small Contracts,South Gloucestershire Crossroads,6000, 09-Sep-2011
1637,Revenue,CCHD,Contracts & Commissioning Team,Other Small Contracts,South Gloucestershire Crossroads,6000, 16-Sep-2011
1638,Revenue,CCHD,Under 65s PWLD - KH,Residential Homes,South Gloucestershire Primary Care Trust,41428.57, 19-Sep-2011
1639,Revenue,CCHD,Adult LD - Fiveways PCT,Agency Staff (Operational)/PCT Pay,South Gloucestershire Primary Care Trust,310828, 06-Sep-2011
1640,Revenue,CCHD,Adult LD - Thornbury PCT,Other Supplies & Services,South Gloucestershire Primary Care Trust,17107.12, 06-Sep-2011
1641,Revenue,CCHD,Southmead Hospital Purchasing,Nursing Homes,Southern Cross Healthcare,6344.8, 06-Sep-2011
1642,Revenue,CCHD,Elderly Purchasing - South,Nursing Homes,Southern Cross Healthcare,1287.96, 06-Sep-2011
1643,Revenue,CCHD,Southmead Hospital Purchasing,Residential Homes,Southern Cross Healthcare,1389, 06-Sep-2011
1644,Revenue,CCHD,Under 65s PWLD - KH,Residential Homes,St Brigas,2014.4, 06-Sep-2011
1645,Revenue,CCHD,Under 65s PWLD - PS,Residential Homes,St Brigas,2907.24, 06-Sep-2011
1646,Revenue,CCHD,Under 65s PWLD - KH,Residential Homes,St Brigas,1963.52, 06-Sep-2011
1647,Revenue,CCHD,Elderly Mental Health,Nursing Homes,St George Nursing Home,1285, 06-Sep-2011
1648,Revenue,CCHD,Elderly Purchasing - South,Nursing Homes,St George Nursing Home,757.64, 06-Sep-2011
1649,Revenue,CCHD,Frenchay Hospital Purchasing,Nursing Homes,St George Nursing Home,1285, 06-Sep-2011
1650,Revenue,CCHD,Frenchay Hospital Purchasing,Nursing Homes,St George Nursing Home,1285, 06-Sep-2011
1651,Revenue,CCHD,Southmead Hospital Purchasing,Nursing Homes,St George Nursing Home,1285, 06-Sep-2011
1652,Revenue,CCHD,Elderly Purchasing - South,Nursing Homes,St George Nursing Home,1293, 06-Sep-2011
1653,Revenue,CCHD,Elderly Mental Health,Nursing Homes,St George Nursing Home,1285, 06-Sep-2011
1654,Revenue,CCHD,Southmead Hospital Purchasing,Nursing Homes,St George Nursing Home,1293, 06-Sep-2011
1655,Revenue,CCHD,Southmead Hospital Purchasing,Nursing Homes,St Monicas Trust,764.72, 06-Sep-2011
1656,Revenue,CCHD,Elderly Purchasing - South,Nursing Homes,St Monicas Trust,695.04, 06-Sep-2011
1657,Revenue,CCHD,Elderly Purchasing - North,Nursing Homes,St Monicas Trust,642.5, 06-Sep-2011
1658,Revenue,CCHD,Frenchay Hospital Purchasing,Residential Homes,St Monicas Trust,1232.16, 06-Sep-2011
1659,Revenue,CCHD,Under 65s PWLD - PS,Residential Homes,Stepping Stones Re-Sett. Unit,8464.68, 06-Sep-2011
1660,Revenue,CCHD,Frenchay Hospital Purchasing,Residential Homes,Stonebow House Residential Home,1218.16, 06-Sep-2011
1661,Revenue,CCHD,Elderly Mental Health,Residential Homes,Stuart House,1809.24, 06-Sep-2011
1662,Revenue,CCHD,Southmead Hospital Purchasing,Residential Homes,Stuart House,4629.4, 06-Sep-2011
1663,Revenue,CCHD,Elderly Mental Health,Residential Homes,Stuart House,1557.32, 06-Sep-2011
1664,Revenue,CCHD,Elderly MH non-res purchasing,Private & Voluntary Day Care,Supported Independence Ltd,819, 26-Sep-2011
1665,Revenue,CCHD,Supported Living - KD,Private & Voluntary Home Care,Supported Independence Ltd,1560, 01-Sep-2011
1666,Revenue,CCHD,Supported Living - KD,Private & Voluntary Home Care,Supported Independence Ltd,2749.5, 01-Sep-2011
1667,Revenue,CCHD,Younger MH non-res purchasing,Private & Voluntary Day Care,Supported Independence Ltd,624, 06-Sep-2011
1668,Revenue,CCHD,Supported Living - KD,Private & Voluntary Home Care,Supported Independence Ltd,877.5, 30-Sep-2011
1669,Revenue,CCHD,Supported Living - KD,Private & Voluntary Home Care,Supported Independence Ltd,858, 01-Sep-2011
1670,Revenue,CCHD,Younger MH non-res purchasing,Private & Voluntary Day Care,Supported Independence Ltd,858, 29-Sep-2011
1671,Revenue,CCHD,Younger MH non-res purchasing,Private & Voluntary Day Care,Supported Independence Ltd,741, 29-Sep-2011
1672,Revenue,CCHD,Younger MH non-res purchasing,Private & Voluntary Day Care,Supported Independence Ltd,975, 29-Sep-2011
1673,Revenue,CCHD,Section 117 Placements MH Younger,Private & Voluntary Day Care,Supported Independence Ltd,819, 29-Sep-2011
1674,Revenue,CCHD,Younger MH non-res purchasing,Private & Voluntary Day Care,Supported Independence Ltd,1248, 30-Sep-2011
1675,Revenue,CCHD,Day Care - North,Private & Voluntary Day Care,Supported Independence Ltd,858, 30-Sep-2011
1676,Revenue,CCHD,Younger MH non-res purchasing,Private & Voluntary Day Care,Supported Independence Ltd,2456.03, 30-Sep-2011
1677,Revenue,CCHD,Supported Living - KD,Private & Voluntary Home Care,Supported Independence Ltd,877.5, 30-Sep-2011
1678,Revenue,CCHD,Younger MH non-res purchasing,Private & Voluntary Day Care,Supported Independence Ltd,1131, 30-Sep-2011
1679,Revenue,CCHD,Younger MH non-res purchasing,Private & Voluntary Day Care,Supported Independence Ltd,5047.45, 30-Sep-2011
1680,Revenue,CCHD,Younger MH non-res purchasing,Private & Voluntary Day Care,Supported Independence Ltd,507, 30-Sep-2011
1681,Revenue,CCHD,Supporting People Programme,Grants to Voluntary Bodies,Supported Independence Ltd,2678.48, 08-Sep-2011
1682,Revenue,CCHD,Supporting People Programme,Grants to Voluntary Bodies,Supported Independence Ltd,5538.4, 08-Sep-2011
1683,Revenue,CCHD,Supporting People Programme,Grants to Voluntary Bodies,Supported Independent Living Schemes,4465.92, 26-Sep-2011
1684,Revenue,CCHD,Supporting People Programme,Grants to Voluntary Bodies,Supported Independent Living Schemes,5388.32, 26-Sep-2011
1685,Revenue,CCHD,Supported Living - PS,Private & Voluntary Home Care,Supported Independent Living Schemes,638.93, 14-Sep-2011
1686,Revenue,CCHD,Housing Needs,Agency Staff (Admin/Support Staff) Pay,SWIM Recruitment,424.42, 30-Sep-2011
1687,Revenue,CCHD,Frenchay Hospital Purchasing,Residential Homes,The Beeches,3005.1, 06-Sep-2011
1688,Revenue,CCHD,Elderly Purchasing - South,Residential Homes,The Beeches,1098.68, 06-Sep-2011
1689,Revenue,CCHD,Purchase of Non-Res Care - KH,Private & Voluntary Day Care,The Brandon Trust,812.08, 05-Sep-2011
1690,Revenue,CCHD,Supported Living - KH,Private & Voluntary Home Care,The Brandon Trust,746.64, 09-Sep-2011
1691,Revenue,CCHD,Purchase of Non-Res Care - KH,Private & Voluntary Day Care,The Brandon Trust,886.63, 02-Sep-2011
1692,Revenue,CCHD,Purchase of Non-Res Care - KH,Private & Voluntary Day Care,The Brandon Trust,622.2, 02-Sep-2011
1693,Revenue,CCHD,Purchase of Non-Res Care - KD,Private & Voluntary Day Care,The Brandon Trust,1655.38, 13-Sep-2011
1694,Revenue,CCHD,Purchase of Non-Res Care - KH,Private & Voluntary Day Care,The Brandon Trust,1435, 02-Sep-2011
1695,Revenue,CCHD,Supported Living - KH,Private & Voluntary Home Care,The Brandon Trust,622.2, 02-Sep-2011
1696,Revenue,CCHD,Purchase of Non-Res Care - KH,Private & Voluntary Day Care,The Brandon Trust,4161.5, 09-Sep-2011
1697,Revenue,CCHD,Purchase of Non-Res Care - KH,Private & Voluntary Day Care,The Brandon Trust,1057.74, 05-Sep-2011
1698,Revenue,CCHD,Day Care - South,Private & Voluntary Day Care,The Brandon Trust,622.2, 08-Sep-2011
1699,Revenue,CCHD,Purchase of Non-Res Care - KD,Private & Voluntary Day Care,The Brandon Trust,1276.13, 02-Sep-2011
1700,Revenue,CCHD,Purchase of Non-Res Care - KD,Private & Voluntary Day Care,The Brandon Trust,4390.61, 12-Sep-2011
1701,Revenue,CCHD,Purchase of Non-Res Care - KD,Private & Voluntary Day Care,The Brandon Trust,591.09, 12-Sep-2011
1702,Revenue,CCHD,Supported Living - KH,Private & Voluntary Home Care,The Brandon Trust,746.64, 05-Sep-2011
1703,Revenue,CCHD,Purchase of Non-Res Care - PS,Private & Voluntary Day Care,The Brandon Trust,746.64, 06-Sep-2011
1704,Revenue,CCHD,Supported Living - KD,Private & Voluntary Home Care,The Brandon Trust,1735.05, 07-Sep-2011
1705,Revenue,CCHD,Supported Living - KD,Private & Voluntary Home Care,The Brandon Trust,9151.46, 14-Sep-2011
1706,Revenue,CCHD,Purchase of Non-Res Care - KD,Private & Voluntary Day Care,The Brandon Trust,1645.13, 30-Sep-2011
1707,Revenue,CCHD,Purchase of Non-Res Care - KD,Private & Voluntary Day Care,The Brandon Trust,937.88, 30-Sep-2011
1708,Revenue,CCHD,Under 65s PWLD - PS,Nursing Homes,The Brandon Trust  Olympus House,5641, 06-Sep-2011
1709,Revenue,CCHD,S28A - Over 65,Residential Homes,The Brandon Trust  Olympus House,3537.96, 06-Sep-2011
1710,Revenue,CCHD,Under 65s PWLD - PS,Residential Homes,The Brandon Trust  Olympus House,11149.88, 06-Sep-2011
1711,Revenue,CCHD,Under 65s PWLD - KD,Residential Homes,The Brandon Trust  Olympus House,3227.8, 06-Sep-2011
1712,Revenue,CCHD,Under 65s PWLD - KD,Residential Homes,The Brandon Trust  Olympus House,5108.24, 06-Sep-2011
1713,Revenue,CCHD,Elderly PWLD - PS,Residential Homes,The Brandon Trust  Olympus House,3338.16, 06-Sep-2011
1714,Revenue,CCHD,S28A - Over 65,Residential Homes,The Brandon Trust  Olympus House,3781.68, 06-Sep-2011
1715,Revenue,CCHD,S28A - Over 65,Residential Homes,The Brandon Trust  Olympus House,3788.72, 06-Sep-2011
1716,Revenue,CCHD,Under 65s PWLD - PS,Nursing Homes,The Brandon Trust  Olympus House,5054.2, 06-Sep-2011
1717,Revenue,CCHD,S28A - Under 65,Residential Homes,The Brandon Trust  Olympus House,5944.52, 06-Sep-2011
1718,Revenue,CCHD,S28A - Under 65,Residential Homes,The Brandon Trust  Olympus House,4815.96, 06-Sep-2011
1719,Revenue,CCHD,S28A - Under 65,Residential Homes,The Brandon Trust  Olympus House,5944.52, 06-Sep-2011
1720,Revenue,CCHD,S28A - Under 65,Residential Homes,The Brandon Trust  Olympus House,5780.52, 06-Sep-2011
1721,Revenue,CCHD,S28A - Over 65,Nursing Homes,The Brandon Trust  Olympus House,5368.28, 06-Sep-2011
1722,Revenue,CCHD,S28A - Over 65,Nursing Homes,The Brandon Trust  Olympus House,5720.76, 06-Sep-2011
1723,Revenue,CCHD,S28A - Under 65,Residential Homes,The Brandon Trust  Olympus House,5189.52, 06-Sep-2011
1724,Revenue,CCHD,S28A - Under 65,Residential Homes,The Brandon Trust  Olympus House,5262.04, 06-Sep-2011
1725,Revenue,CCHD,S28A - Over 65,Residential Homes,The Brandon Trust  Olympus House,7104.36, 06-Sep-2011
1726,Revenue,CCHD,S28A - Under 65,Residential Homes,The Brandon Trust  Olympus House,5944.52, 06-Sep-2011
1727,Revenue,CCHD,S28A - Under 65,Residential Homes,The Brandon Trust  Olympus House,5944.48, 06-Sep-2011
1728,Revenue,CCHD,S28A - Under 65,Residential Homes,The Brandon Trust  Olympus House,4603.08, 06-Sep-2011
1729,Revenue,CCHD,S28A - Under 65,Residential Homes,The Brandon Trust  Olympus House,5262.08, 06-Sep-2011
1730,Revenue,CCHD,S28A - Over 65,Residential Homes,The Brandon Trust  Olympus House,4662.84, 06-Sep-2011
1731,Revenue,CCHD,Purchase of Non-Res Care - KH,Private & Voluntary Day Care,The Camphill Village Trust,3462.74, 01-Sep-2011
1732,Revenue,CCHD,Purchase of Non-Res Care - KH,Private & Voluntary Day Care,The Camphill Village Trust,4190.35, 01-Sep-2011
1733,Revenue,CCHD,Elderly Mental Health,Nursing Homes,The Cidermill,954, 06-Sep-2011
1734,Revenue,CCHD,Elderly Mental Health,Residential Homes,The Cidermill,1389, 06-Sep-2011
1735,Revenue,CCHD,Elderly Mental Health,Nursing Homes,The Cidermill,1181.8, 06-Sep-2011
1736,Revenue,CCHD,Elderly Mental Health,Residential Homes,The Cidermill,1389, 06-Sep-2011
1737,Revenue,CCHD,Alexandra Way,Furniture & Fittings Loose,The Consortium,699.99, 06-Sep-2011
1738,Revenue,CCHD,Elderly Purchasing - South,Residential Homes,The Gables Residential Home,1285.04, 06-Sep-2011
1739,Revenue,CCHD,Frenchay Hospital Purchasing,Residential Homes,The Gables Residential Home,1229, 06-Sep-2011
1740,Revenue,CCHD,Elderly Purchasing - South,Residential Homes,The Gables Residential Home,1084.28, 06-Sep-2011
1741,Revenue,CCHD,Elderly Mental Health,Residential Homes,The Gables Residential Home,1172.52, 06-Sep-2011
1742,Revenue,CCHD,Section 117 Placements,Residential Homes,The Gables Residential Home,2156.84, 06-Sep-2011
1743,Revenue,CCHD,Elderly Mental Health,Residential Homes,The Grove,983.64, 06-Sep-2011
1744,Revenue,CCHD,Elderly Mental Health,Residential Homes,The Grove,1582.4, 06-Sep-2011
1745,Revenue,CCHD,Elderly Mental Health,Residential Homes,The Grove,1112.08, 06-Sep-2011
1746,Revenue,CCHD,Elderly Mental Health,Residential Homes,The Grove,580.64, 06-Sep-2011
1747,Revenue,CCHD,Section 117 Placements,Residential Homes,The Grove,2040, 06-Sep-2011
1748,Revenue,CCHD,Elderly Mental Health,Residential Homes,The Grove,1475.92, 06-Sep-2011
1749,Revenue,CCHD,Elderly Mental Health,Residential Homes,The Grove,1720.76, 06-Sep-2011
1750,Revenue,CCHD,Southmead Hospital Purchasing,Residential Homes,The Grove,1318.76, 06-Sep-2011
1751,Revenue,CCHD,Elderly Mental Health,Residential Homes,The Grove,1480.48, 06-Sep-2011
1752,Revenue,CCHD,Frenchay Hospital Purchasing,Residential Homes,The Grove,814.32, 06-Sep-2011
1753,Revenue,CCHD,Supporting People Programme,Grants to Voluntary Bodies,The Hatch Camphill Community,1168.28, 12-Sep-2011
1754,Revenue,CCHD,Supporting People Programme,Grants to Voluntary Bodies,The Hatch Camphill Community,1168.28, 12-Sep-2011
1755,Revenue,CCHD,Supporting People Programme,Grants to Voluntary Bodies,The Hatch Camphill Community,1168.28, 12-Sep-2011
1756,Revenue,CCHD,Supporting People Programme,Grants to Voluntary Bodies,The Hatch Camphill Community,1168.28, 12-Sep-2011
1757,Revenue,CCHD,Supporting People Programme,Grants to Voluntary Bodies,The Hatch Camphill Community,1168.28, 12-Sep-2011
1758,Revenue,CCHD,Supporting People Programme,Grants to Voluntary Bodies,The Hatch Camphill Community,1168.28, 12-Sep-2011
1759,Revenue,CCHD,Supporting People Programme,Grants to Voluntary Bodies,The Hatch Camphill Community,1168.28, 12-Sep-2011
1760,Revenue,CCHD,Supporting People Programme,Grants to Voluntary Bodies,The Hatch Camphill Community,1168.28, 12-Sep-2011
1761,Revenue,CCHD,Supporting People Programme,Grants to Voluntary Bodies,The Hatch Camphill Community,1168.28, 12-Sep-2011
1762,Revenue,CCHD,Frenchay Hospital Purchasing,Nursing Homes,The Heathers,1285, 06-Sep-2011
1763,Revenue,CCHD,Elderly Mental Health,Nursing Homes,The Heathers,1262.52, 06-Sep-2011
1764,Revenue,CCHD,Southmead Hospital Purchasing,Nursing Homes,The Heathers,1422.67, 06-Sep-2011
1765,Revenue,CCHD,Southmead Hospital Purchasing,Nursing Homes,The Heathers,1285, 06-Sep-2011
1766,Revenue,CCHD,Elderly Purchasing - South,Nursing Homes,The Heathers,1285, 06-Sep-2011
1767,Revenue,CCHD,Frenchay Hospital Purchasing,Nursing Homes,The Heathers,718.6, 06-Sep-2011
1768,Revenue,CCHD,Southmead Hospital Purchasing,Nursing Homes,The Heathers,4462.28, 06-Sep-2011
1769,Revenue,CCHD,Southmead Hospital Purchasing,Nursing Homes,The Heathers,1249.44, 06-Sep-2011
1770,Revenue,CCHD,Southmead Hospital Purchasing,Nursing Homes,The Heathers,996.6, 06-Sep-2011
1771,Revenue,CCHD,Frenchay Hospital Purchasing,Nursing Homes,The Heathers,1288.24, 06-Sep-2011
1772,Revenue,CCHD,Elderly Mental Health,Nursing Homes,The Heathers,543.45, 06-Sep-2011
1773,Revenue,CCHD,Frenchay Hospital Purchasing,Nursing Homes,The Heathers,1215.84, 06-Sep-2011
1774,Revenue,CCHD,Southmead Hospital Purchasing,Nursing Homes,The Heathers,738.32, 06-Sep-2011
1775,Revenue,CCHD,Frenchay Hospital Purchasing,Nursing Homes,The Heathers,1285, 06-Sep-2011
1776,Revenue,CCHD,Elderly Purchasing - North,Nursing Homes,The Heathers,1140.72, 06-Sep-2011
1777,Revenue,CCHD,Elderly Purchasing - South,Nursing Homes,The Laurels Nursing Home,613.11, 06-Sep-2011
1778,Revenue,CCHD,Elderly Purchasing - South,Residential Homes,The Manor Cottage,738.68, 06-Sep-2011
1779,Revenue,CCHD,Elderly Purchasing - South,Residential Homes,The Manor Cottage,723.24, 06-Sep-2011
1780,Revenue,CCHD,Elderly Purchasing - South,Residential Homes,The Manor Cottage,1421.44, 06-Sep-2011
1781,Revenue,CCHD,Elderly Purchasing - South,Residential Homes,The Manor Cottage,894.56, 06-Sep-2011
1782,Revenue,CCHD,Under 65s PWLD - KH,Residential Homes,The Manor House,2932, 06-Sep-2011
1783,Revenue,CCHD,Under 65s PWLD - KD,Residential Homes,The Manor House,936.24, 06-Sep-2011
1784,Revenue,CCHD,Under 65s PWLD - KD,Residential Homes,The Manor House,598.6, 06-Sep-2011
1785,Revenue,CCHD,Under 65s PWLD - KH,Residential Homes,The Manor House,5069, 06-Sep-2011
1786,Revenue,CCHD,Under 65s PWLD - KH,Residential Homes,The Manor House,3614.36, 06-Sep-2011
1787,Revenue,CCHD,Under 65s PWLD - KH,Residential Homes,The Manor House,2775.52, 06-Sep-2011
1788,Revenue,CCHD,Under 65s PWLD - PS,Residential Homes,The Manor House,3345.84, 06-Sep-2011
1789,Revenue,CCHD,Under 65s PWLD - KD,Residential Homes,The Manor House,2745, 06-Sep-2011
1790,Revenue,CCHD,Under 65s PWLD - KH,Residential Homes,The Manor House,2775.52, 06-Sep-2011
1791,Revenue,CCHD,Under 65s PWLD - KH,Residential Homes,The Manor House,3433, 06-Sep-2011
1792,Revenue,CCHD,Under 65s PWLD - KH,Residential Homes,The Manor House,6230.32, 06-Sep-2011
1793,Revenue,CCHD,S28A - Under 65,Residential Homes,The Manor House,5013, 06-Sep-2011
1794,Revenue,CCHD,Under 65s PWLD - KH,Residential Homes,The Manor House,2822.32, 06-Sep-2011
1795,Revenue,CCHD,Under 65s PWLD - KH,Residential Homes,The Manor House,3519.16, 06-Sep-2011
1796,Revenue,CCHD,Under 65s PWLD - KH,Residential Homes,The Manor House,3086.16, 06-Sep-2011
1797,Revenue,CCHD,Under 65s PWLD - KH,Residential Homes,The Manor House,3431.96, 06-Sep-2011
1798,Revenue,CCHD,Under 65s PWLD - KH,Residential Homes,The Manor House,4629.32, 06-Sep-2011
1799,Revenue,CCHD,Under 65s PWLD - PS,Residential Homes,The Manor House,3202.12, 06-Sep-2011
1800,Revenue,CCHD,Under 65s PWLD - PS,Residential Homes,The Manor House,3008.12, 06-Sep-2011
1801,Revenue,CCHD,Under 65s PWLD - KH,Residential Homes,The Manor House,4322.32, 06-Sep-2011
1802,Revenue,CCHD,Under 65s PWLD - KH,Residential Homes,The Manor House,4474.8, 06-Sep-2011
1803,Revenue,CCHD,Under 65s PWLD - KD,Residential Homes,The Manor House,3355.24, 06-Sep-2011
1804,Revenue,CCHD,Elderly PWLD - KH,Residential Homes,The Manor House,2382.24, 06-Sep-2011
1805,Revenue,CCHD,Under 65s PWLD - PS,Residential Homes,The Manor House,3339.16, 06-Sep-2011
1806,Revenue,CCHD,Under 65s PWLD - KH,Residential Homes,The Manor House,1014.06, 06-Sep-2011
1807,Revenue,CCHD,Under 65s PWLD - KD,Residential Homes,The Manor House,928.9, 06-Sep-2011
1808,Revenue,CCHD,Under 65s PWLD - KH,Residential Homes,The Manor House,4993.04, 06-Sep-2011
1809,Revenue,CCHD,Under 65s PWLD - KH,Residential Homes,The Manor House,2822.32, 06-Sep-2011
1810,Revenue,CCHD,Training - Adult Services,Training Expenses,The National Autistic Society,3675, 20-Sep-2011
1811,Revenue,CCHD,Elderly Mental Health,Residential Homes,The Old Vicarage Residential Home,1378.84, 06-Sep-2011
1812,Revenue,CCHD,Under 65s PWLD - KD,Residential Homes,The Red House Residential Home,2008.36, 06-Sep-2011
1813,Revenue,CCHD,Under 65s PWLD - KD,Residential Homes,The Red House Residential Home,1920.8, 06-Sep-2011
1814,Revenue,CCHD,Elderly PWLD - KD,Residential Homes,The Red House Residential Home,1844.36, 06-Sep-2011
1815,Revenue,CCHD,Under 65s PWLD - KD,Residential Homes,The Red House Residential Home,2008.36, 06-Sep-2011
1816,Revenue,CCHD,Elderly PWLD - KD,Residential Homes,The Red House Residential Home,1844.36, 06-Sep-2011
1817,Revenue,CCHD,Contracts & Commissioning Team,Other Small Contracts,The Royal Bank of Scotland Commercial,5000, 02-Sep-2011
1818,Revenue,CCHD,Contracts & Commissioning Team,Other Small Contracts,The Royal Bank of Scotland Commercial,5000, 09-Sep-2011
1819,Revenue,CCHD,Contracts & Commissioning Team,Other Small Contracts,The Royal Bank of Scotland Commercial,5000, 16-Sep-2011
1820,Revenue,CCHD,Contracts & Commissioning Team,Other Small Contracts,The Royal Bank of Scotland Commercial,5000, 23-Sep-2011
1821,Revenue,CCHD,Contracts & Commissioning Team,Other Small Contracts,The Royal Bank of Scotland Commercial,5000, 30-Sep-2011
1822,Revenue,CCHD,Home Care Purch North,Other Small Contracts,The Royal Bank of Scotland Commercial,1095, 12-Sep-2011
1823,Revenue,CCHD,Home Care Purch North,Other Small Contracts,The Royal Bank of Scotland Commercial,1095, 12-Sep-2011
1824,Revenue,CCHD,Under 65s PWLD - PS,Residential Homes,The Stanstead Centre,3477.88, 06-Sep-2011
1825,Revenue,CCHD,Under 65s PWLD - KD,Residential Homes,The Thomas Moore Project,1730.32, 06-Sep-2011
1826,Revenue,CCHD,Elderly Mental Health,Residential Homes,The Worthies,1389, 06-Sep-2011
1827,Revenue,CCHD,Elderly Mental Health,Residential Homes,The Worthies,1190.57, 06-Sep-2011
1828,Revenue,CCHD,Elderly Mental Health,Residential Homes,The Worthies,1389, 06-Sep-2011
1829,Revenue,CCHD,Southmead Hospital Purchasing,Residential Homes,The Worthies,861.2, 06-Sep-2011
1830,Revenue,CCHD,Turnberries,Rent,Thornbury Community Building Trust,16447, 28-Sep-2011
1831,Revenue,CCHD,Elderly Purchasing - South,Nursing Homes,Thornhill House,1790.64, 06-Sep-2011
1832,Revenue,CCHD,Under 65s PWLD - KD,Residential Homes,Three Roses Home,1854.64, 06-Sep-2011
1833,Revenue,CCHD,Learning Difficulties PSL,Rent,Individual,650, 22-Sep-2011
1834,Revenue,CCHD,Learning Difficulties PSL,Rent,Individual,750, 22-Sep-2011
1835,Revenue,CCHD,Learning Difficulties PSL,Rent,Individual,488, 22-Sep-2011
1836,Revenue,CCHD,Under 65s PWLD - KH,Residential Homes,Tomlen,6388.84, 06-Sep-2011
1837,Revenue,CCHD,Purchasing Phys Dis - North,Residential Homes,Tracs Group Ltd,6112.4, 06-Sep-2011
1838,Revenue,CCHD,Purchasing Phys Dis - North,Residential Homes,Tracs Group Ltd,4467.68, 06-Sep-2011
1839,Revenue,CCHD,Under 65s PWLD - PS,Residential Homes,Tracs Group Ltd,6414.36, 06-Sep-2011
1840,Revenue,CCHD,Elderly Purchasing - South,Residential Homes,Tracs Group Ltd,6835.76, 06-Sep-2011
1841,Revenue,CCHD,Emersons Green Offices,Rent,Trustees Of The Thorner 1990 Settlement,946.25, 23-Sep-2011
1842,Revenue,CCHD,Minor Adaptations Service,Daily Living Equipment,TVM Cheltenham Limited,822.88, 08-Sep-2011
1843,Revenue,CCHD,Minor Adaptations Service,Daily Living Equipment,TVM Cheltenham Limited,769.25, 26-Sep-2011
1844,Revenue,CCHD,Minor Adaptations Service,Daily Living Equipment,TVM Cheltenham Limited,2393.5, 08-Sep-2011
1845,Revenue,CCHD,Minor Adaptations Service,Daily Living Equipment,TVM Cheltenham Limited,1305.5, 26-Sep-2011
1846,Revenue,CCHD,Minor Adaptations Service,Daily Living Equipment,TVM Cheltenham Limited,645.87, 30-Sep-2011
1847,Revenue,CCHD,Preventative Technology Grant,Other Supplies & Services,Tytherington Post Office,3250, 19-Sep-2011
1848,Revenue,CCHD,PWLD S 117 Placements,Residential Homes,Unit 2 Office 6,7341.4, 06-Sep-2011
1849,Revenue,CCHD,Supported Living - KH,Private & Voluntary Home Care,United Response,1803.46, 30-Sep-2011
1850,Revenue,CCHD,NTS Grant - Trainee Social Wor,Training Expenses,University Of The West Of England,3375, 15-Sep-2011
1851,Revenue,CCHD,NTS Grant - Trainee Social Wor,Training Expenses,University Of The West Of England,3375, 20-Sep-2011
1852,Revenue,CCHD,Training - Adult Services,Training Expenses,University Of The West Of England,1136, 20-Sep-2011
1853,Revenue,CCHD,NTS Grant - Trainee Social Wor,Training Expenses,University Of The West Of England,1120, 20-Sep-2011
1854,Revenue,CCHD,NTS Grant - Trainee Social Wor,Training Expenses,University Of The West Of England,568, 15-Sep-2011
1855,Revenue,CCHD,NTS Grant - Trainee Social Wor,Training Expenses,University Of The West Of England,568, 15-Sep-2011
1856,Revenue,CCHD,Training - Adult Services,Training Expenses,University Of The West Of England,568, 29-Sep-2011
1857,Revenue,CCHD,Southmead Hospital Purchasing,Residential Homes,Vaughan Lee House,1162.2, 06-Sep-2011
1858,Revenue,CCHD,Homelessness Grant,Agency Staff (Admin/Support Staff) Pay,Venn Group Limited,669.33, 06-Sep-2011
1859,Revenue,CCHD,Homelessness Grant,Agency Staff (Admin/Support Staff) Pay,Venn Group Limited,669.33, 06-Sep-2011
1860,Revenue,CCHD,Homelessness Grant,Agency Staff (Admin/Support Staff) Pay,Venn Group Limited,669.33, 06-Sep-2011
1861,Revenue,CCHD,Homelessness Grant,Agency Staff (Admin/Support Staff) Pay,Venn Group Limited,669.33, 07-Sep-2011
1862,Revenue,CCHD,Homelessness Grant,Agency Staff (Admin/Support Staff) Pay,Venn Group Limited,669.33, 21-Sep-2011
1863,Revenue,CCHD,Elderly Mental Health,Residential Homes,Ventura Residential Care Home,1229, 06-Sep-2011
1864,Revenue,CCHD,Under 65s PWLD - PS,Residential Homes,Victoria Court,11023.36, 06-Sep-2011
1865,Revenue,CCHD,Elderly PWLD - KD,Residential Homes,Victoria Court,8535.32, 06-Sep-2011
1866,Revenue,CCHD,Under 65s PWLD - PS,Residential Homes,Visions,3542.56, 06-Sep-2011
1867,Revenue,CCHD,Under 65s PWLD - PS,Residential Homes,Voyage Ltd,6387.12, 06-Sep-2011
1868,Revenue,CCHD,Under 65s PWLD - KD,Residential Homes,Voyage Ltd,15149.79, 06-Sep-2011
1869,Revenue,CCHD,Under 65s PWLD - KD,Residential Homes,Voyage Ltd,17426.48, 06-Sep-2011
1870,Revenue,CCHD,S28A - Under 65,Residential Homes,Voyage Ltd,27881.73, 06-Sep-2011
1871,Revenue,CCHD,S28A - Under 65,Residential Homes,Voyage Ltd,6441.04, 06-Sep-2011
1872,Revenue,CCHD,S28A - Under 65,Residential Homes,Voyage Ltd,5945, 06-Sep-2011
1873,Revenue,CCHD,Under 65s PWLD - PS,Residential Homes,Voyage Ltd,28761.38, 06-Sep-2011
1874,Revenue,CCHD,Under 65s PWLD - PS,Residential Homes,Voyage Ltd,6963.96, 06-Sep-2011
1875,Revenue,CCHD,Under 65s PWLD - PS,Residential Homes,Voyage Ltd,6295.08, 06-Sep-2011
1876,Revenue,CCHD,Under 65s PWLD - PS,Residential Homes,Voyage Ltd,11009.44, 06-Sep-2011
1877,Revenue,CCHD,Under 65s PWLD - PS,Residential Homes,Voyage Ltd,12065.18, 06-Sep-2011
1878,Revenue,CCHD,Under 65s PWLD - PS,Residential Homes,Voyage Ltd,34104.21, 06-Sep-2011
1879,Revenue,CCHD,Under 65s PWLD - PS,Residential Homes,Voyage Ltd,6233, 06-Sep-2011
1880,Revenue,CCHD,Purchasing Phys Dis - South,Residential Homes,Voyage Ltd,11569.5, 06-Sep-2011
1881,Revenue,CCHD,Under 65s PWLD - KH,Residential Homes,Voyage Ltd,60472.24, 06-Sep-2011
1882,Revenue,CCHD,Under 65s PWLD - KH,Residential Homes,Voyage Ltd,10676.76, 06-Sep-2011
1883,Revenue,CCHD,Under 65s PWLD - PS,Residential Homes,Voyage Ltd,28121.71, 06-Sep-2011
1884,Revenue,CCHD,Under 65s PWLD - PS,Residential Homes,Voyage Ltd,2114.41, 06-Sep-2011
1885,Revenue,CCHD,Under 65s PWLD - KH,Residential Homes,Voyage Ltd,6365.1, 06-Sep-2011
1886,Revenue,CCHD,Preventative Technology Grant,Other Supplies & Services,W.E.C.I.L Limited,5000, 07-Sep-2011
1887,Revenue,CCHD,Elderly Mental Health,Residential Homes,Wayside Residential Care Home,1389, 06-Sep-2011
